{"text_format":"1","workbook":"xlsx","n_sheets":2,"sheets":["ANEXO No. 1 CCPET-INGRESOS","ANEXO No. 2 CCPET-GASTOS"],"not_rendered":{"charts":0,"images":0,"macros":1,"external_links":0,"defined_names":2,"comments":0,"pivot_tables":0},"unopened":[],"bounds":{"document_bytes":16777216,"sheet_cells":100000,"rows_first":2000,"rows_last":500,"rows_between":2000,"halvings":0,"cell_chars":16384,"cell_head_chars":4096},"cells_cut":0,"cells_raw":0,"read":"whole","date_system":"1900"}

{"sheet":"ANEXO No. 1 CCPET-INGRESOS","index":0,"n_rows":463,"n_cols":22,"rows_kept":463,"cut":false,"hidden":false,"merged":[[1,15,4,21],[3,0,4,0],[3,1,4,1],[3,2,4,2],[1,4,2,12],[3,3,4,13]]}
["ANEXO No. 1 - RESOLUCIÓN No. 1355 DE 2020 - CATALOGO DE CLASIFICACION PRESUPUESTAL PARA ENTIDADES TERRITORIALES Y SUS DESCENTRALIZADAS  - DE INGRESOS - CCPET (JULIO_01_2020)"]
[null,null,null,null,null,null,null,null,null,null,null,null,null,null,null,"OBSERVACIONES"]
[]
["Código","Nivel","Tipo","Nombre Cuenta"]
[null,null,null,null,null,null,null,null,null,null,null,null,null,null,"TN"]
["1",1,"A","Ingresos",null,null,null,null,null,null,null,null,null,null,{"$f":"C6&B6","v":"A1"}]
["1.0",2,"A",null,"Disponibilidad Inicial",null,null,null,null,null,null,null,null,null,{"$f":"C7&B7","v":"A2"}]
["1.0.01",3,"C",null,null,"Caja",null,null,null,null,null,null,null,null,{"$f":"C8&B8","v":"C3"}]
["1.0.02",3,"C",null,null,"Bancos",null,null,null,null,null,null,null,null,{"$f":"C9&B9","v":"C3"}]
["1.0.03",3,"C",null,null,"Inversiones Temporales",null,null,null,null,null,null,null,null,{"$f":"C10&B10","v":"C3"}]
["1.1",2,"A",null,"Ingresos Corrientes",null,null,null,null,null,null,null,null,null,{"$f":"C11&B11","v":"A2"}]
["1.1.01",3,"A",null,null,"Ingresos tributarios",null,null,null,null,null,null,null,null,{"$f":"C12&B12","v":"A3"}]
["1.1.01.01",4,"A",null,null,null,"Impuestos directos",null,null,null,null,null,null,null,{"$f":"C13&B13","v":"A4"}]
["1.1.01.01.014",5,"A",null,null,null,null,"Sobretasa ambiental - Corporaciones Autónomas Regionales",null,null,null,null,null,null,{"$f":"C14&B14","v":"A5"}]
["1.1.01.01.014.01",6,"C",null,null,null,null,null,"Sobretasa ambiental - Corporaciones Autónomas Regionales - Urbano",null,null,null,null,null,{"$f":"C15&B15","v":"C6"}]
["1.1.01.01.014.02",6,"C",null,null,null,null,null,"Sobretasa ambiental - Corporaciones Autónomas Regionales - Rural",null,null,null,null,null,{"$f":"C16&B16","v":"C6"}]
["1.1.01.01.100",5,"C",null,null,null,null,"Impuesto sobre vehículos automotores",null,null,null,null,null,null,{"$f":"C17&B17","v":"C5"}]
["1.1.01.01.101",5,"C",null,null,null,null,"Impuesto a ganadores de sorteos ordinarios y extraordinarios",null,null,null,null,null,null,{"$f":"C18&B18","v":"C5"}]
["1.1.01.01.200",5,"A",null,null,null,null,"Impuesto Predial Unificado",null,null,null,null,null,null,{"$f":"C19&B19","v":"A5"}]
["1.1.01.01.200.01",6,"C",null,null,null,null,null,"Impuesto Predial Unificado - Urbano",null,null,null,null,null,{"$f":"C20&B20","v":"C6"}]
["1.1.01.01.200.02",6,"C",null,null,null,null,null,"Impuesto Predial Unificado - Rural",null,null,null,null,null,{"$f":"C21&B21","v":"C6"}]
["1.1.01.01.201",5,"C",null,null,null,null,"Sobretasa Ambiental Áreas Metropolitanas",null,null,null,null,null,null,{"$f":"C22&B22","v":"C5"}]
["1.1.01.01.202",5,"C",null,null,null,null,"Sobretasa especial para el distrito de Cartagena",null,null,null,null,null,null,{"$f":"C23&B23","v":"C5"}]
["1.1.01.01.203",5,"C",null,null,null,null,"Sobretasa por el alumbrado público",null,null,null,null,null,null,{"$f":"C24&B24","v":"C5"}]
["1.1.01.02",4,"A",null,null,null,"Impuestos indirectos",null,null,null,null,null,null,null,{"$f":"C25&B25","v":"A4"}]
["1.1.01.02.100",5,"A",null,null,null,null,"Impuesto de Registro",null,null,null,null,null,null,{"$f":"C26&B26","v":"A5"}]
["1.1.01.02.100.01",6,"C",null,null,null,null,null,"Impuesto de Registro - Cámaras de Comercio",null,null,null,null,null,{"$f":"C27&B27","v":"C6"}]
["1.1.01.02.100.02",6,"C",null,null,null,null,null,"Impuesto de Registro - Oficinas de Instrumentos Públicos",null,null,null,null,null,{"$f":"C28&B28","v":"C6"}]
["1.1.01.02.101",5,"C",null,null,null,null,"Impuesto de loterías foráneas",null,null,null,null,null,null,{"$f":"C29&B29","v":"C5"}]
["1.1.01.02.102",5,"C",null,null,null,null,"Impuesto al degüello de ganado mayor",null,null,null,null,null,null,{"$f":"C30&B30","v":"C5"}]
["1.1.01.02.103",5,"C",null,null,null,null,"IVA sobre licores, vinos, aperitivos y similares (régimen anterior)",null,null,null,null,null,null,{"$f":"C31&B31","v":"C5"}]
["1.1.01.02.104",5,"A",null,null,null,null,"Impuesto al consumo de licores, vinos, aperitivos y similares",null,null,null,null,null,null,{"$f":"C32&B32","v":"A5"}]
["1.1.01.02.104.01",6,"A",null,null,null,null,null,"Impuesto al consumo de licores",null,null,null,null,null,{"$f":"C33&B33","v":"A6"}]
["1.1.01.02.104.01.01",7,"C",null,null,null,null,null,null,"Impuesto al consumo de licores - Nacionales",null,null,null,null,{"$f":"C34&B34","v":"C7"}]
["1.1.01.02.104.01.02",7,"C",null,null,null,null,null,null,"Impuesto al consumo de licores - Extranjeros",null,null,null,null,{"$f":"C35&B35","v":"C7"}]
["1.1.01.02.104.02",6,"A",null,null,null,null,null,"Impuesto al consumo de vinos, aperitivos y similares",null,null,null,null,null,{"$f":"C36&B36","v":"A6"}]
["1.1.01.02.104.02.01",7,"C",null,null,null,null,null,null,"Impuesto al consumo de vinos, aperitivos y similares - Nacionales",null,null,null,null,{"$f":"C37&B37","v":"C7"}]
["1.1.01.02.104.02.02",7,"C",null,null,null,null,null,null,"Impuesto al consumo de vinos, aperitivos y similares - Extranjeros",null,null,null,null,{"$f":"C38&B38","v":"C7"}]
["1.1.01.02.105",5,"A",null,null,null,null,"Impuesto al consumo de cervezas, sifones, refajos y mezclas",null,null,null,null,null,null,{"$f":"C39&B39","v":"A5"}]
["1.1.01.02.105.01",6,"C",null,null,null,null,null,"Impuesto al consumo de cervezas, sifones, refajos y mezclas - Nacionales",null,null,null,null,null,{"$f":"C40&B40","v":"C6"}]
["1.1.01.02.105.02",6,"C",null,null,null,null,null,"Impuesto al consumo de cervezas, sifones, refajos y mezclas - Extranjeras",null,null,null,null,null,{"$f":"C41&B41","v":"C6"}]
["1.1.01.02.106",5,"A",null,null,null,null,"Impuesto al consumo de cigarrillos y tabaco",null,null,null,null,null,null,{"$f":"C42&B42","v":"A5"}]
["1.1.01.02.106.01",6,"A",null,null,null,null,null,"Componente específico del impuesto al consumo de cigarrillos y tabaco",null,null,null,null,null,{"$f":"C43&B43","v":"A6"}]
["1.1.01.02.106.01.01",7,"C",null,null,null,null,null,null,"Componente específico del impuesto al consumo de cigarrillos y tabaco - Nacionales",null,null,null,null,{"$f":"C44&B44","v":"C7"}]
["1.1.01.02.106.01.02",7,"C",null,null,null,null,null,null,"Componente específico del impuesto al consumo de cigarrillos y tabaco - Extranjeros",null,null,null,null,{"$f":"C45&B45","v":"C7"}]
["1.1.01.02.106.02",6,"A",null,null,null,null,null,"Componente ad valorem del impuesto al consumo de cigarrillos y tabaco elaborado",null,null,null,null,null,{"$f":"C46&B46","v":"A6"}]
["1.1.01.02.106.02.01",7,"C",null,null,null,null,null,null,"Componente ad valorem del impuesto al consumo de cigarrillos y tabaco elaborado - Nacionales",null,null,null,null,{"$f":"C47&B47","v":"C7"}]
["1.1.01.02.106.02.02",7,"C",null,null,null,null,null,null,"Componente ad valorem del impuesto al consumo de cigarrillos y tabaco elaborado - Extranjeros",null,null,null,null,{"$f":"C48&B48","v":"C7"}]
["1.1.01.02.107",5,"C",null,null,null,null,"Impuesto al consumo sobre mercancías extranjeras",null,null,null,null,null,null,{"$f":"C49&B49","v":"C5"}]
["1.1.01.02.108",5,"C",null,null,null,null,"Sobretasa fondo departamental de bomberos",null,null,null,null,null,null,{"$f":"C50&B50","v":"C5"}]
["1.1.01.02.109",5,"C",null,null,null,null,"Sobretasa a la gasolina ",null,null,null,null,null,null,{"$f":"C51&B51","v":"C5"}]
["1.1.01.02.200",5,"A",null,null,null,null,"Impuesto de industria y comercio",null,null,null,null,null,null,{"$f":"C52&B52","v":"A5"}]
["1.1.01.02.200.01",6,"C",null,null,null,null,null,"Impuesto de industria y comercio - sobre actividades comerciales",null,null,null,null,null,{"$f":"C53&B53","v":"C6"}]
["1.1.01.02.200.02",6,"C",null,null,null,null,null,"Impuesto de industria y comercio - sobre actividades industriales",null,null,null,null,null,{"$f":"C54&B54","v":"C6"}]
["1.1.01.02.200.03",6,"C",null,null,null,null,null,"Impuesto de industria y comercio - sobre actividades de servicios",null,null,null,null,null,{"$f":"C55&B55","v":"C6"}]
["1.1.01.02.201",5,"C",null,null,null,null,"Impuesto complementario de avisos y tableros",null,null,null,null,null,null,{"$f":"C56&B56","v":"C5"}]
["1.1.01.02.202",5,"C",null,null,null,null,"Impuesto a la publicidad exterior visual",null,null,null,null,null,null,{"$f":"C57&B57","v":"C5"}]
["1.1.01.02.203",5,"C",null,null,null,null,"Impuesto de circulación y tránsito sobre vehículos de servicio público",null,null,null,null,null,null,{"$f":"C58&B58","v":"C5"}]
["1.1.01.02.204",5,"C",null,null,null,null,"Impuesto de delineación",null,null,null,null,null,null,{"$f":"C59&B59","v":"C5"}]
["1.1.01.02.205",5,"C",null,null,null,null,"Impuesto de espectáculos públicos nacional con destino al deporte ",null,null,null,null,null,null,{"$f":"C60&B60","v":"C5"}]
["1.1.01.02.206",5,"C",null,null,null,null,"Impuesto a las ventas por el sistema de clubes",null,null,null,null,null,null,{"$f":"C61&B61","v":"C5"}]
["1.1.01.02.207",5,"C",null,null,null,null,"Impuesto de casinos",null,null,null,null,null,null,{"$f":"C62&B62","v":"C5"}]
["1.1.01.02.208",5,"C",null,null,null,null,"Impuesto sobre apuestas mutuas",null,null,null,null,null,null,{"$f":"C63&B63","v":"C5"}]
["1.1.01.02.209",5,"C",null,null,null,null,"Impuesto al degüello de ganado menor",null,null,null,null,null,null,{"$f":"C64&B64","v":"C5"}]
["1.1.01.02.210",5,"C",null,null,null,null,"Impuesto sobre teléfonos",null,null,null,null,null,null,{"$f":"C65&B65","v":"C5"}]
["1.1.01.02.211",5,"C",null,null,null,null,"Impuesto de alumbrado público",null,null,null,null,null,null,{"$f":"C66&B66","v":"C5"}]
["1.1.01.02.212",5,"C",null,null,null,null,"Sobretasa bomberil",null,null,null,null,null,null,{"$f":"C67&B67","v":"C5"}]
["1.1.01.02.213",5,"C",null,null,null,null,"Sobretasa fondo de Seguridad",null,null,null,null,null,null,{"$f":"C68&B68","v":"C5"}]
["1.1.01.02.214",5,"C",null,null,null,null,"Impuesto de transporte por oleoductos y gasoductos",null,null,null,null,null,null,{"$f":"C69&B69","v":"C5"}]
["1.1.01.02.215",5,"C",null,null,null,null,"Impuesto de fondo de pobres",null,null,null,null,null,null,{"$f":"C70&B70","v":"C5"}]
["1.1.01.02.216",5,"C",null,null,null,null,"Impuesto de espectáculos públicos municipal",null,null,null,null,null,null,{"$f":"C71&B71","v":"C5"}]
["1.1.01.02.217",5,"A",null,null,null,null,"Sobretasa de solidaridad servicios públicos acueducto, aseo y alcantarillado",null,null,null,null,null,null,{"$f":"C72&B72","v":"A5"}]
["1.1.01.02.217.01",6,"C",null,null,null,null,null,"Sobretasa de solidaridad de servicios públicos - acueducto",null,null,null,null,null,{"$f":"C73&B73","v":"C6"}]
["1.1.01.02.217.02",6,"C",null,null,null,null,null,"Sobretasa de solidaridad de servicios públicos - aseo",null,null,null,null,null,{"$f":"C74&B74","v":"C6"}]
["1.1.01.02.217.03",6,"C",null,null,null,null,null,"Sobretasa de solidaridad de servicios públicos - alcantarillado",null,null,null,null,null,{"$f":"C75&B75","v":"C6"}]
["1.1.01.02.300",5,"A",null,null,null,null,"Estampillas",null,null,null,null,null,null,{"$f":"C76&B76","v":"A5"}]
["1.1.01.02.300.01",6,"C",null,null,null,null,null,"Estampilla para el bienestar del adulto mayor",null,null,null,null,null,{"$f":"C77&B77","v":"C6"}]
["1.1.01.02.300.02",6,"C",null,null,null,null,null,"Estampilla pro desarrollo departamental",null,null,null,null,null,{"$f":"C78&B78","v":"C6"}]
["1.1.01.02.300.03",6,"C",null,null,null,null,null,"Estampilla pro desarrollo fronterizo",null,null,null,null,null,{"$f":"C79&B79","v":"C6"}]
["1.1.01.02.300.04",6,"C",null,null,null,null,null,"Estampilla fondo departamental de bomberos",null,null,null,null,null,{"$f":"C80&B80","v":"C6"}]
["1.1.01.02.300.05",6,"C",null,null,null,null,null,"Estampilla pro electrificación rural",null,null,null,null,null,{"$f":"C81&B81","v":"C6"}]
["1.1.01.02.300.06",6,"C",null,null,null,null,null,"Estampilla pro desarrollo de la Universidad de la Amazonia",null,null,null,null,null,{"$f":"C82&B82","v":"C6"}]
["1.1.01.02.300.07",6,"C",null,null,null,null,null,"Estampilla la Universidad de Antioquia",null,null,null,null,null,{"$f":"C83&B83","v":"C6"}]
["1.1.01.02.300.08",6,"C",null,null,null,null,null,"Estampilla pro ciudadela universitaria del Atlántico",null,null,null,null,null,{"$f":"C84&B84","v":"C6"}]
["1.1.01.02.300.09",6,"C",null,null,null,null,null,"Estampilla Universidad de Caldas y Universidad Nacional sede Manizales",null,null,null,null,null,{"$f":"C85&B85","v":"C6"}]
["1.1.01.02.300.10",6,"C",null,null,null,null,null,"Estampilla Universidad de Cartagena",null,null,null,null,null,{"$f":"C86&B86","v":"C6"}]
["1.1.01.02.300.11",6,"C",null,null,null,null,null,"Estampilla pro creación de la Seccional Universidad de Cartagena en El Carmen de Bolívar",null,null,null,null,null,{"$f":"C87&B87","v":"C6"}]
["1.1.01.02.300.12",6,"C",null,null,null,null,null,"Estampilla Universidad del Cauca",null,null,null,null,null,{"$f":"C88&B88","v":"C6"}]
["1.1.01.02.300.13",6,"C",null,null,null,null,null,"Estampilla pro Universidad Popular del Cesar",null,null,null,null,null,{"$f":"C89&B89","v":"C6"}]
["1.1.01.02.300.14",6,"C",null,null,null,null,null,"Estampilla pro Universidad Tecnológica del Chocó",null,null,null,null,null,{"$f":"C90&B90","v":"C6"}]
["1.1.01.02.300.15",6,"C",null,null,null,null,null,"Estampilla pro desarrollo de la Universidad de Córdoba",null,null,null,null,null,{"$f":"C91&B91","v":"C6"}]
["1.1.01.02.300.16",6,"C",null,null,null,null,null,"Estampilla pro desarrollo Universidad de Cundinamarca",null,null,null,null,null,{"$f":"C92&B92","v":"C6"}]
["1.1.01.02.300.17",6,"C",null,null,null,null,null,"Estampilla pro Universidad de la Guajira",null,null,null,null,null,{"$f":"C93&B93","v":"C6"}]
["1.1.01.02.300.18",6,"C",null,null,null,null,null,"Estampilla Universidad de los Llanos",null,null,null,null,null,{"$f":"C94&B94","v":"C6"}]
["1.1.01.02.300.19",6,"C",null,null,null,null,null,"Estampilla refundación Universidad del Magdalena",null,null,null,null,null,{"$f":"C95&B95","v":"C6"}]
["1.1.01.02.300.20",6,"C",null,null,null,null,null,"Estampilla pro desarrollo de la Universidad de Nariño",null,null,null,null,null,{"$f":"C96&B96","v":"C6"}]
["1.1.01.02.300.21",6,"C",null,null,null,null,null,"Estampilla pro desarrollo de la Universidad Pública del Norte de Santander",null,null,null,null,null,{"$f":"C97&B97","v":"C6"}]
["1.1.01.02.300.22",6,"C",null,null,null,null,null,"Estampilla pro Universidad del Pacífico",null,null,null,null,null,{"$f":"C98&B98","v":"C6"}]
["1.1.01.02.300.23",6,"C",null,null,null,null,null,"Estampilla pro desarrollo del Instituto Técnico del Putumayo",null,null,null,null,null,{"$f":"C99&B99","v":"C6"}]
["1.1.01.02.300.24",6,"C",null,null,null,null,null,"Estampilla pro Universidad del Quindío",null,null,null,null,null,{"$f":"C100&B100","v":"C6"}]
["1.1.01.02.300.25",6,"C",null,null,null,null,null,"Estampilla pro Universidad Industrial de Santander",null,null,null,null,null,{"$f":"C101&B101","v":"C6"}]
["1.1.01.02.300.26",6,"C",null,null,null,null,null,"Estampilla de la Universidad de Sucre",null,null,null,null,null,{"$f":"C102&B102","v":"C6"}]
["1.1.01.02.300.27",6,"C",null,null,null,null,null,"Estampilla pro desarrollo de la Universidad Surcolombiana del Huila",null,null,null,null,null,{"$f":"C103&B103","v":"C6"}]
["1.1.01.02.300.28",6,"C",null,null,null,null,null,"Estampilla pro Universidad del Tolima",null,null,null,null,null,{"$f":"C104&B104","v":"C6"}]
["1.1.01.02.300.29",6,"C",null,null,null,null,null,"Estampilla pro desarrollo del Instituto Tolimense de Formación Técnica Profesional",null,null,null,null,null,{"$f":"C105&B105","v":"C6"}]
["1.1.01.02.300.30",6,"C",null,null,null,null,null,"Estampilla pro Universidad del Valle",null,null,null,null,null,{"$f":"C106&B106","v":"C6"}]
["1.1.01.02.300.31",6,"C",null,null,null,null,null,"Estampilla pro Universidad Tecnológica de Pereira",null,null,null,null,null,{"$f":"C107&B107","v":"C6"}]
["1.1.01.02.300.32",6,"C",null,null,null,null,null,"Estampilla pro Universidad Pedagógica y Tecnológica de Colombia",null,null,null,null,null,{"$f":"C108&B108","v":"C6"}]
["1.1.01.02.300.33",6,"C",null,null,null,null,null,"Estampilla Universidad Distrital Francisco José de Caldas",null,null,null,null,null,{"$f":"C109&B109","v":"C6"}]
["1.1.01.02.300.34",6,"C",null,null,null,null,null,"Estampilla pro desarrollo del Instituto Tecnológico de Soledad, Atlántico",null,null,null,null,null,{"$f":"C110&B110","v":"C6"}]
["1.1.01.02.300.35",6,"C",null,null,null,null,null,"Estampilla pro desarrollo Unidad Central del Valle del Cauca",null,null,null,null,null,{"$f":"C111&B111","v":"C6"}]
["1.1.01.02.300.36",6,"C",null,null,null,null,null,"Estampilla pro desarrollo de la Institución Universitaria de Envigado",null,null,null,null,null,{"$f":"C112&B112","v":"C6"}]
["1.1.01.02.300.37",6,"C",null,null,null,null,null,"Estampilla Politécnico Colombiano Jaime Isaza Cadavid",null,null,null,null,null,{"$f":"C113&B113","v":"C6"}]
["1.1.01.02.300.38",6,"C",null,null,null,null,null,"Estampilla pro hospitales primer y segundo nivel del Atlántico",null,null,null,null,null,{"$f":"C114&B114","v":"C6"}]
["1.1.01.02.300.39",6,"C",null,null,null,null,null,"Estampilla pro hospitales San Juan de Dios y Gilberto Mejía Mejía de Rionegro Antioquia",null,null,null,null,null,{"$f":"C115&B115","v":"C6"}]
["1.1.01.02.300.40",6,"C",null,null,null,null,null,"Estampilla pro hospitales públicos de Antioquia",null,null,null,null,null,{"$f":"C116&B116","v":"C6"}]
["1.1.01.02.300.41",6,"C",null,null,null,null,null,"Estampilla pro hospitales del Guaviare",null,null,null,null,null,{"$f":"C117&B117","v":"C6"}]
["1.1.01.02.300.42",6,"C",null,null,null,null,null,"Estampilla pro salud departamental del Valle del Cauca",null,null,null,null,null,{"$f":"C118&B118","v":"C6"}]
["1.1.01.02.300.43",6,"C",null,null,null,null,null,"Estampilla pro Hospital de Caldas",null,null,null,null,null,{"$f":"C119&B119","v":"C6"}]
["1.1.01.02.300.44",6,"C",null,null,null,null,null,"Estampillas pro hospitales universitarios",null,null,null,null,null,{"$f":"C120&B120","v":"C6"}]
["1.1.01.02.300.45",6,"C",null,null,null,null,null,"Estampilla pro Hospital Departamental Universitario del Quindío San Juan de Dios",null,null,null,null,null,{"$f":"C121&B121","v":"C6"}]
["1.1.01.02.300.46",6,"C",null,null,null,null,null,"Estampilla pro salud Guainía",null,null,null,null,null,{"$f":"C122&B122","v":"C6"}]
["1.1.01.02.300.47",6,"C",null,null,null,null,null,"Estampilla pro salud Vaupés",null,null,null,null,null,{"$f":"C123&B123","v":"C6"}]
["1.1.01.02.300.48",6,"C",null,null,null,null,null,"Estampilla Armero 10 años",null,null,null,null,null,{"$f":"C124&B124","v":"C6"}]
["1.1.01.02.300.49",6,"C",null,null,null,null,null,"Estampilla de fomento turístico del Meta",null,null,null,null,null,{"$f":"C125&B125","v":"C6"}]
["1.1.01.02.300.50",6,"C",null,null,null,null,null,"Estampilla Sogamoso 2000",null,null,null,null,null,{"$f":"C126&B126","v":"C6"}]
["1.1.01.02.300.51",6,"C",null,null,null,null,null,"Estampilla pro centro de formación artística y cultural Rodrigo Arenas Betancourt",null,null,null,null,null,{"$f":"C127&B127","v":"C6"}]
["1.1.01.02.300.52",6,"C",null,null,null,null,null,"Estampilla Tolima 150 años de contribución a la grandeza de Colombia",null,null,null,null,null,{"$f":"C128&B128","v":"C6"}]
["1.1.01.02.300.53",6,"C",null,null,null,null,null,"Estampilla pro empleo Antioquia",null,null,null,null,null,{"$f":"C129&B129","v":"C6"}]
["1.1.01.02.300.54",6,"C",null,null,null,null,null,"Estampilla pro palacio de la Gobernación y Centro Administrativo Municipal de Popayán",null,null,null,null,null,{"$f":"C130&B130","v":"C6"}]
["1.1.01.02.300.55",6,"C",null,null,null,null,null,"Estampilla pro cultura",null,null,null,null,null,{"$f":"C131&B131","v":"C6"}]
["1.1.01.02.300.56",6,"C",null,null,null,null,null,"Estampilla pro desarrollo urbano de Santiago de Cali",null,null,null,null,null,{"$f":"C132&B132","v":"C6"}]
["1.1.01.02.300.57",6,"C",null,null,null,null,null,"Estampilla homenaje a Carlos E. Restrepo",null,null,null,null,null,{"$f":"C133&B133","v":"C6"}]
["1.1.02",3,"A",null,null,"Ingresos no tributarios",null,null,null,null,null,null,null,null,{"$f":"C134&B134","v":"A3"}]
["1.1.02.01",4,"A",null,null,null,"Contribuciones",null,null,null,null,null,null,null,{"$f":"C135&B135","v":"A4"}]
["1.1.02.01.003",5,"A",null,null,null,null,"Contribuciones especiales",null,null,null,null,null,null,{"$f":"C136&B136","v":"A5"}]
["1.1.02.01.003.01",6,"C",null,null,null,null,null,"Cuota de fiscalización y auditaje",null,null,null,null,null,{"$f":"C137&B137","v":"C6"}]
["1.1.02.01.005",5,"A",null,null,null,null,"Contribuciones diversas",null,null,null,null,null,null,{"$f":"C138&B138","v":"A5"}]
["1.1.02.01.005.39",6,"C",null,null,null,null,null,"Contribución de Valorización",null,null,null,null,null,{"$f":"C139&B139","v":"C6"}]
["1.1.02.01.005.59",6,"C",null,null,null,null,null,"Contribución especial sobre contratos de obras públicas",null,null,null,null,null,{"$f":"C140&B140","v":"C6"}]
["1.1.02.01.005.60",6,"C",null,null,null,null,null,"Contribución a RTVC y organizaciones regionales de televisión y radio difusión",null,null,null,null,null,{"$f":"C141&B141","v":"C6"}]
["1.1.02.01.005.61",6,"C",null,null,null,null,null,"Contribución de infraestructura vial y de transporte",null,null,null,null,null,{"$f":"C142&B142","v":"C6"}]
["1.1.02.01.005.62",6,"C",null,null,null,null,null,"Contribución de infraestructura pública turística",null,null,null,null,null,{"$f":"C143&B143","v":"C6"}]
["1.1.02.01.005.63",6,"C",null,null,null,null,null,"Participación en la plusvalía",null,null,null,null,null,{"$f":"C144&B144","v":"C6"}]
["1.1.02.01.005.64",6,"A",null,null,null,null,null,"Contribución sector eléctrico",null,null,null,null,null,{"$f":"C145&B145","v":"A6"}]
["1.1.02.01.005.64.01",7,"C",null,null,null,null,null,null,"Contribución sector eléctrico - Generadores de energía convencional",null,null,null,null,{"$f":"C146&B146","v":"C7"}]
["1.1.02.01.005.64.02",7,"C",null,null,null,null,null,null,"Contribución sector eléctrico - Generadores de energía no convencional",null,null,null,null,{"$f":"C147&B147","v":"C7"}]
["1.1.02.01.005.65",6,"C",null,null,null,null,null,"Concurso Económico - Estratificación",null,null,null,null,null,{"$f":"C148&B148","v":"C6"}]
["1.1.02.02",4,"A",null,null,null,"Tasas y derechos administrativos",null,null,null,null,null,null,null,{"$f":"C149&B149","v":"A4"}]
["1.1.02.02.002",5,"C",null,null,null,null,"Expedición de pasaportes",null,null,null,null,null,null,{"$f":"C150&B150","v":"C5"}]
["1.1.02.02.033",5,"C",null,null,null,null,"Peajes",null,null,null,null,null,null,{"$f":"C151&B151","v":"C5"}]
["1.1.02.02.084",5,"C",null,null,null,null,"Tasas fondos de seguridad",null,null,null,null,null,null,{"$f":"C152&B152","v":"C5"}]
["1.1.02.02.085",5,"C",null,null,null,null,"Tasas fondo departamental de bomberos",null,null,null,null,null,null,{"$f":"C153&B153","v":"C5"}]
["1.1.02.02.086",5,"C",null,null,null,null,"Tasa contributiva por concepto de contaminación ambiental",null,null,null,null,null,null,{"$f":"C154&B154","v":"C5"}]
["1.1.02.02.087",5,"C",null,null,null,null,"Tasas por el derecho de parqueo sobre las vías públicas",null,null,null,null,null,null,{"$f":"C155&B155","v":"C5"}]
["1.1.02.02.091",5,"C",null,null,null,null,"Tasas por la actividad pesquera",null,null,null,null,null,null,{"$f":"C156&B156","v":"C5"}]
["1.1.02.02.092",5,"C",null,null,null,null,"Tasa por ingreso a las salinas de Zipaquirá",null,null,null,null,null,null,{"$f":"C157&B157","v":"C5"}]
["1.1.02.02.093",5,"C",null,null,null,null,"Derechos de tránsito en áreas restringidas o de alta congestión",null,null,null,null,null,null,{"$f":"C158&B158","v":"C5"}]
["1.1.02.02.094",5,"C",null,null,null,null,"Cobros por estacionamiento en espacio público o en lotes de parqueo",null,null,null,null,null,null,{"$f":"C159&B159","v":"C5"}]
["1.1.02.02.095",5,"C",null,null,null,null,"Plaza de mercado",null,null,null,null,null,null,{"$f":"C160&B160","v":"C5"}]
["1.1.02.02.096",5,"C",null,null,null,null,"Contraprestación de las zonas de uso público - municipios portuarios marítimos",null,null,null,null,null,null,{"$f":"C161&B161","v":"C5"}]
["1.1.02.02.097",5,"C",null,null,null,null,"Peaje turístico",null,null,null,null,null,null,{"$f":"C162&B162","v":"C5"}]
["1.1.02.02.098",5,"C",null,null,null,null,"Tarjeta de turista",null,null,null,null,null,null,{"$f":"C163&B163","v":"C5"}]
["1.1.02.02.099",5,"C",null,null,null,null,"Tarjeta de residente",null,null,null,null,null,null,{"$f":"C164&B164","v":"C5"}]
["1.1.02.02.100",5,"C",null,null,null,null,"Expedición de licencias de funcionamiento de equipos de rayos X ",null,null,null,null,null,null,{"$f":"C165&B165","v":"C5"}]
["1.1.02.02.101",5,"C",null,null,null,null,"Autorización de manejo de medicamentos de control especial del Estado",null,null,null,null,null,null,{"$f":"C166&B166","v":"C5"}]
["1.1.02.02.102",5,"C",null,null,null,null,"Derechos de tránsito",null,null,null,null,null,null,{"$f":"C167&B167","v":"C5"}]
["1.1.02.03",4,"A",null,null,null,"Multas, sanciones e intereses de mora",null,null,null,null,null,null,null,{"$f":"C168&B168","v":"A4"}]
["1.1.02.03.001",5,"A",null,null,null,null,"Multas y sanciones",null,null,null,null,null,null,{"$f":"C169&B169","v":"A5"}]
["1.1.02.03.001.03",6,"C",null,null,null,null,null,"Sanciones disciplinarias",null,null,null,null,null,{"$f":"C170&B170","v":"C6"}]
["1.1.02.03.001.04",6,"C",null,null,null,null,null,"Sanciones contractuales",null,null,null,null,null,{"$f":"C171&B171","v":"C6"}]
["1.1.02.03.001.05",6,"C",null,null,null,null,null,"Sanciones administrativas",null,null,null,null,null,{"$f":"C172&B172","v":"C6"}]
["1.1.02.03.001.06",6,"C",null,null,null,null,null,"Sanciones fiscales",null,null,null,null,null,{"$f":"C173&B173","v":"C6"}]
["1.1.02.03.001.09",6,"C",null,null,null,null,null,"Multas de tránsito y transporte",null,null,null,null,null,{"$f":"C174&B174","v":"C6"}]
["1.1.02.03.001.11",6,"C",null,null,null,null,null,"Sanciones tributarias",null,null,null,null,null,{"$f":"C175&B175","v":"C6"}]
["1.1.02.03.001.13",6,"C",null,null,null,null,null,"Sanciones sanitarias",null,null,null,null,null,{"$f":"C176&B176","v":"C6"}]
["1.1.02.03.001.17",6,"C",null,null,null,null,null,"Multas y sanciones por infracciones al régimen del monopolio de juegos de suerte y azar",null,null,null,null,null,{"$f":"C177&B177","v":"C6"}]
["1.1.02.03.001.18",6,"C",null,null,null,null,null,"Multas y sanciones por violación al régimen de venta de medicamentos controlados",null,null,null,null,null,{"$f":"C178&B178","v":"C6"}]
["1.1.02.03.001.19",6,"C",null,null,null,null,null,"Multas de San Andrés (OCCRE)",null,null,null,null,null,{"$f":"C179&B179","v":"C6"}]
["1.1.02.03.001.20",6,"A",null,null,null,null,null,"Multas establecidas en el Código Nacional de Policía y Convivencia",null,null,null,null,null,{"$f":"C180&B180","v":"A6"}]
["1.1.02.03.001.20.01",7,"C",null,null,null,null,null,null,"Multas código nacional de policía y convivencia - Multas generales",null,null,null,null,{"$f":"C181&B181","v":"C7"}]
["1.1.02.03.001.20.02",7,"C",null,null,null,null,null,null,"Multas código nacional de policía y convivencia - Multas especiales",null,null,null,null,{"$f":"C182&B182","v":"C7"}]
["1.1.02.03.001.21",6,"C",null,null,null,null,null,"Multa por incumplimiento en el registro de marcas y herretes",null,null,null,null,null,{"$f":"C183&B183","v":"C6"}]
["1.1.02.03.001.22",6,"C",null,null,null,null,null,"Multas ambientales",null,null,null,null,null,{"$f":"C184&B184","v":"C6"}]
["1.1.02.03.002",5,"C",null,null,null,null,"Intereses de mora",null,null,null,null,null,null,{"$f":"C185&B185","v":"C5"}]
["1.1.02.04",4,"A",null,null,null,"Derechos económicos por uso de recursos naturales",null,null,null,null,null,null,null,{"$f":"C186&B186","v":"A4"}]
["1.1.02.05",4,"A",null,null,null,"Venta de bienes y servicios",null,null,null,null,null,null,null,{"$f":"C187&B187","v":"A4"}]
["1.1.02.05.001",5,"A",null,null,null,null,"Ventas de establecimientos de mercado",null,null,null,null,null,null,{"$f":"C188&B188","v":"A5"}]
["1.1.02.05.001.00",6,"C",null,null,null,null,null,"Agricultura, silvicultura y productos de la pesca",null,null,null,null,null,{"$f":"C189&B189","v":"C6"}]
["1.1.02.05.001.01",6,"C",null,null,null,null,null,"Minerales; electricidad, gas y agua",null,null,null,null,null,{"$f":"C190&B190","v":"C6"}]
["1.1.02.05.001.02",6,"C",null,null,null,null,null,"Productos alimenticios, bebidas y tabaco; textiles, prendas de vestir y productos de cuero",null,null,null,null,null,{"$f":"C191&B191","v":"C6"}]
["1.1.02.05.001.03",6,"C",null,null,null,null,null,"Otros bienes transportables (excepto productos metálicos, maquinaria y equipo)",null,null,null,null,null,{"$f":"C192&B192","v":"C6"}]
["1.1.02.05.001.04",6,"C",null,null,null,null,null,"Productos metálicos, maquinaria y equipo",null,null,null,null,null,{"$f":"C193&B193","v":"C6"}]
["1.1.02.05.001.05",6,"C",null,null,null,null,null,"Servicios de la construcción",null,null,null,null,null,{"$f":"C194&B194","v":"C6"}]
["1.1.02.05.001.06",6,"C",null,null,null,null,null,"Servicios de alojamiento; servicios de suministro de comidas y bebidas; servicios de transporte; y servicios de distribución de electricidad, gas y agua",null,null,null,null,null,{"$f":"C195&B195","v":"C6"}]
["1.1.02.05.001.07",6,"C",null,null,null,null,null,"Servicios financieros y servicios conexos, servicios inmobiliarios y servicios de leasing",null,null,null,null,null,{"$f":"C196&B196","v":"C6"}]
["1.1.02.05.001.08",6,"C",null,null,null,null,null,"Servicios prestados a las empresas y servicios de producción ",null,null,null,null,null,{"$f":"C197&B197","v":"C6"}]
["1.1.02.05.001.09",6,"C",null,null,null,null,null,"Servicios para la comunidad, sociales y personales",null,null,null,null,null,{"$f":"C198&B198","v":"C6"}]
["1.1.02.05.002",5,"A",null,null,null,null,"Ventas incidentales de establecimientos no de mercado",null,null,null,null,null,null,{"$f":"C199&B199","v":"A5"}]
["1.1.02.05.002.00",6,"C",null,null,null,null,null,"Agricultura, silvicultura y productos de la pesca",null,null,null,null,null,{"$f":"C200&B200","v":"C6"}]
["1.1.02.05.002.01",6,"C",null,null,null,null,null,"Minerales; electricidad, gas y agua",null,null,null,null,null,{"$f":"C201&B201","v":"C6"}]
["1.1.02.05.002.02",6,"C",null,null,null,null,null,"Productos alimenticios, bebidas y tabaco; textiles, prendas de vestir y productos de cuero",null,null,null,null,null,{"$f":"C202&B202","v":"C6"}]
["1.1.02.05.002.03",6,"C",null,null,null,null,null,"Otros bienes transportables (excepto productos metálicos, maquinaria y equipo)",null,null,null,null,null,{"$f":"C203&B203","v":"C6"}]
["1.1.02.05.002.04",6,"C",null,null,null,null,null,"Productos metálicos, maquinaria y equipo",null,null,null,null,null,{"$f":"C204&B204","v":"C6"}]
["1.1.02.05.002.05",6,"C",null,null,null,null,null,"Servicios de la construcción",null,null,null,null,null,{"$f":"C205&B205","v":"C6"}]
["1.1.02.05.002.06",6,"C",null,null,null,null,null,"Servicios de alojamiento; servicios de suministro de comidas y bebidas; servicios de transporte; y servicios de distribución de electricidad, gas y agua",null,null,null,null,null,{"$f":"C206&B206","v":"C6"}]
["1.1.02.05.002.07",6,"C",null,null,null,null,null,"Servicios financieros y servicios conexos, servicios inmobiliarios y servicios de leasing",null,null,null,null,null,{"$f":"C207&B207","v":"C6"}]
["1.1.02.05.002.08",6,"C",null,null,null,null,null,"Servicios prestados a las empresas y servicios de producción ",null,null,null,null,null,{"$f":"C208&B208","v":"C6"}]
["1.1.02.05.002.09",6,"C",null,null,null,null,null,"Servicios para la comunidad, sociales y personales",null,null,null,null,null,{"$f":"C209&B209","v":"C6"}]
["1.1.02.06",4,"A",null,null,null,"Transferencias corrientes",null,null,null,null,null,null,null,{"$f":"C210&B210","v":"A4"}]
["1.1.02.06.001",5,"A",null,null,null,null,"Sistema General de Participaciones",null,null,null,null,null,null,{"$f":"C211&B211","v":"A5"}]
["1.1.02.06.001.01",6,"A",null,null,null,null,null,"Participación para educación",null,null,null,null,null,{"$f":"C212&B212","v":"A6"}]
["1.1.02.06.001.01.01",7,"C",null,null,null,null,null,null,"Prestación de servicio educativo",null,null,null,null,{"$f":"C213&B213","v":"C7"}]
["1.1.02.06.001.01.02",7,"C",null,null,null,null,null,null,"Cancelación de prestaciones sociales del magisterio",null,null,null,null,{"$f":"C214&B214","v":"C7"}]
["1.1.02.06.001.01.03",7,"A",null,null,null,null,null,null,"Calidad",null,null,null,null,{"$f":"C215&B215","v":"A7"}]
["1.1.02.06.001.01.03.01",8,"C",null,null,null,null,null,null,null,"Calidad  por matrícula oficial",null,null,null,{"$f":"C216&B216","v":"C8"}]
["1.1.02.06.001.01.03.02",8,"C",null,null,null,null,null,null,null,"Calidad  por gratuidad",null,null,null,{"$f":"C217&B217","v":"C8"}]
["1.1.02.06.001.02",6,"A",null,null,null,null,null,"Participación para salud",null,null,null,null,null,{"$f":"C218&B218","v":"A6"}]
["1.1.02.06.001.02.01",7,"C",null,null,null,null,null,null,"Régimen subsidiado ",null,null,null,null,{"$f":"C219&B219","v":"C7"}]
["1.1.02.06.001.02.02",7,"C",null,null,null,null,null,null,"Salud pública",null,null,null,null,{"$f":"C220&B220","v":"C7"}]
["1.1.02.06.001.02.03",7,"C",null,null,null,null,null,null,"Prestación del servicio de salud",null,null,null,null,{"$f":"C221&B221","v":"C7"}]
["1.1.02.06.001.02.04",7,"C",null,null,null,null,null,null,"Subsidio a la oferta",null,null,null,null,{"$f":"C222&B222","v":"C7"}]
["1.1.02.06.001.03",6,"A",null,null,null,null,null,"Participación para propósito general",null,null,null,null,null,{"$f":"C223&B223","v":"A6"}]
["1.1.02.06.001.03.01",7,"C",null,null,null,null,null,null,"Deporte y recreación",null,null,null,null,{"$f":"C224&B224","v":"C7"}]
["1.1.02.06.001.03.02",7,"C",null,null,null,null,null,null,"Cultura",null,null,null,null,{"$f":"C225&B225","v":"C7"}]
["1.1.02.06.001.03.03",7,"C",null,null,null,null,null,null,"Propósito general Libre inversión",null,null,null,null,{"$f":"C226&B226","v":"C7"}]
["1.1.02.06.001.03.04",7,"C",null,null,null,null,null,null,"Propósito general libre destinación municipios categorías 4, 5 y 6",null,null,null,null,{"$f":"C227&B227","v":"C7"}]
["1.1.02.06.001.03.05",7,"C",null,null,null,null,null,null,"Propósito general ahorro en FONPET",null,null,null,null,{"$f":"C228&B228","v":"C7"}]
["1.1.02.06.001.04",6,"A",null,null,null,null,null,"Asignaciones especiales",null,null,null,null,null,{"$f":"C229&B229","v":"A6"}]
["1.1.02.06.001.04.01",7,"C",null,null,null,null,null,null,"Programas de alimentación escolar",null,null,null,null,{"$f":"C230&B230","v":"C7"}]
["1.1.02.06.001.04.02",7,"C",null,null,null,null,null,null,"Municipios de la ribera del río Magdalena",null,null,null,null,{"$f":"C231&B231","v":"C7"}]
["1.1.02.06.001.04.03",7,"C",null,null,null,null,null,null,"Resguardos indígenas",null,null,null,null,{"$f":"C232&B232","v":"C7"}]
["1.1.02.06.001.04.04",7,"C",null,null,null,null,null,null,"Asignación especial ahorro en FONPET",null,null,null,null,{"$f":"C233&B233","v":"C7"}]
["1.1.02.06.001.05",6,"C",null,null,null,null,null,"Agua potable y saneamiento básico",null,null,null,null,null,{"$f":"C234&B234","v":"C6"}]
["1.1.02.06.001.06",6,"C",null,null,null,null,null,"Atención integral de la primera infancia",null,null,null,null,null,{"$f":"C235&B235","v":"C6"}]
["1.1.02.06.002",5,"A",null,null,null,null,"Sistema General de Regalías",null,null,null,null,null,null,{"$f":"C236&B236","v":"A5"}]
["1.1.02.06.002.01",6,"C",null,null,null,null,null,"Asignaciones Directas",null,null,null,null,null,{"$f":"C237&B237","v":"C6"}]
["1.1.02.06.002.02",6,"C",null,null,null,null,null,"Asignación para la inversión local en Ambiente y Desarrollo Sostenible",null,null,null,null,null,{"$f":"C238&B238","v":"C6"}]
["1.1.02.06.002.03",6,"C",null,null,null,null,null,"Asignación para la Inversión Regional ",null,null,null,null,null,{"$f":"C239&B239","v":"C6"}]
["1.1.02.06.002.04",6,"C",null,null,null,null,null,"Asignación ambiental",null,null,null,null,null,{"$f":"C240&B240","v":"C6"}]
["1.1.02.06.002.05",6,"C",null,null,null,null,null,"Asignación para la Inversión en Ciencia, Tecnología e Innovación Ambiental",null,null,null,null,null,{"$f":"C241&B241","v":"C6"}]
["1.1.02.06.002.06",6,"C",null,null,null,null,null,"Asignación para la Paz ",null,null,null,null,null,{"$f":"C242&B242","v":"C6"}]
["1.1.02.06.002.07",6,"C",null,null,null,null,null,"Municipios ribereños del Río Grande de la Magdalena - CORMAGDALENA",null,null,null,null,null,{"$f":"C243&B243","v":"C6"}]
["1.1.02.06.002.08",6,"A",null,null,null,null,null,"Funcionamiento del SGR",null,null,null,null,null,{"$f":"C244&B244","v":"A6"}]
["1.1.02.06.002.08.01",7,"C",null,null,null,null,null,null,"Funcionamiento",null,null,null,null,{"$f":"C245&B245","v":"C7"}]
["1.1.02.06.002.08.02",7,"C",null,null,null,null,null,null,"Operatividad y administración del sistema",null,null,null,null,{"$f":"C246&B246","v":"C7"}]
["1.1.02.06.002.08.03",7,"C",null,null,null,null,null,null,"Fiscalización de la exploración y explotación de los yacimientos",null,null,null,null,{"$f":"C247&B247","v":"C7"}]
["1.1.02.06.002.09",6,"C",null,null,null,null,null,"Operatividad del Sistema de Seguimiento, Evaluación y Control del SGR - SMSC-SGR",null,null,null,null,null,{"$f":"C248&B248","v":"C6"}]
["1.1.02.06.003",5,"A",null,null,null,null,"Participaciones distintas del SGP",null,null,null,null,null,null,{"$f":"C249&B249","v":"A5"}]
["1.1.02.06.003.01",6,"A",null,null,null,null,null,"Participación en impuestos",null,null,null,null,null,{"$f":"C250&B250","v":"A6"}]
["1.1.02.06.003.01.01",7,"C",null,null,null,null,null,null,"Participación del impuesto nacional a la explotación de oro, plata y platino",null,null,null,null,{"$f":"C251&B251","v":"C7"}]
["1.1.02.06.003.01.02",7,"C",null,null,null,null,null,null,"Participación del impuesto sobre vehículos automotores",null,null,null,null,{"$f":"C252&B252","v":"C7"}]
["1.1.02.06.003.01.03",7,"C",null,null,null,null,null,null,"Participación Providencia",null,null,null,null,{"$f":"C253&B253","v":"C7"}]
["1.1.02.06.003.01.04",7,"C",null,null,null,null,null,null,"Participación de la sobretasa al consumo de cigarrillos y tabaco elaborado",null,null,null,null,{"$f":"C254&B254","v":"C7"}]
["1.1.02.06.003.01.05",7,"C",null,null,null,null,null,null,"Participación del impuesto de registro ",null,null,null,null,{"$f":"C255&B255","v":"C7"}]
["1.1.02.06.003.01.06",7,"C",null,null,null,null,null,null,"Participación del impuesto adicional del 10% a las cajetillas de cigarrillos nacionales",null,null,null,null,{"$f":"C256&B256","v":"C7"}]
["1.1.02.06.003.01.07",7,"C",null,null,null,null,null,null,"Participación del impuesto al consumo de cigarrillos y tabaco ",null,null,null,null,{"$f":"C257&B257","v":"C7"}]
["1.1.02.06.003.01.08",7,"C",null,null,null,null,null,null,"Participación del impuesto al degüello de ganado mayor (en los términos que lo defina la Ordenanza)",null,null,null,null,{"$f":"C258&B258","v":"C7"}]
["1.1.02.06.003.01.09",7,"C",null,null,null,null,null,null,"Participación del IVA antiguas intendencias y comisarías ",null,null,null,null,{"$f":"C259&B259","v":"C7"}]
["1.1.02.06.003.01.10",7,"C",null,null,null,null,null,null,"Participación de la sobretasa al ACPM",null,null,null,null,{"$f":"C260&B260","v":"C7"}]
["1.1.02.06.003.01.11",7,"C",null,null,null,null,null,null,"Participación del impuesto nacional al consumo del servicio de telefonía móvil ",null,null,null,null,{"$f":"C261&B261","v":"C7"}]
["1.1.02.06.003.01.12",7,"C",null,null,null,null,null,null,"Participación del IVA licores, vinos, aperitivos y similares",null,null,null,null,{"$f":"C262&B262","v":"C7"}]
["1.1.02.06.003.02",6,"A",null,null,null,null,null,"Participación en contribuciones",null,null,null,null,null,{"$f":"C263&B263","v":"A6"}]
["1.1.02.06.003.02.01",7,"C",null,null,null,null,null,null,"Participación superávit de las contribuciones de solidaridad de servicios públicos",null,null,null,null,{"$f":"C264&B264","v":"C7"}]
["1.1.02.06.003.02.02",7,"C",null,null,null,null,null,null,"Participación de la contribución parafiscal cultural",null,null,null,null,{"$f":"C265&B265","v":"C7"}]
["1.1.02.06.003.03",6,"A",null,null,null,null,null,"Participación en multas, sanciones e intereses de mora",null,null,null,null,null,{"$f":"C266&B266","v":"A6"}]
["1.1.02.06.003.03.01",7,"C",null,null,null,null,null,null,"Participación de sanciones del impuesto sobre vehículos automotores",null,null,null,null,{"$f":"C267&B267","v":"C7"}]
["1.1.02.06.003.03.02",7,"C",null,null,null,null,null,null,"Participación de intereses de mora sobre el impuesto sobre vehículos automotores",null,null,null,null,{"$f":"C268&B268","v":"C7"}]
["1.1.02.06.003.04",6,"A",null,null,null,null,null,"Participación en derechos económicos por el uso de recursos naturales",null,null,null,null,null,{"$f":"C269&B269","v":"A6"}]
["1.1.02.06.003.04.01",7,"A",null,null,null,null,null,null,"Participación en regalías del régimen anterior",null,null,null,null,{"$f":"C270&B270","v":"A7"}]
["1.1.02.06.003.04.01.01",8,"C",null,null,null,null,null,null,null,"Regalías por calizas, yesos, arcillas, gravas , minerales no metálicos y materiales de construcción",null,null,null,{"$f":"C271&B271","v":"C8"}]
["1.1.02.06.003.04.01.02",8,"C",null,null,null,null,null,null,null,"Regalías por carbón",null,null,null,{"$f":"C272&B272","v":"C8"}]
["1.1.02.06.003.04.01.03",8,"C",null,null,null,null,null,null,null,"Regalías por hidrocarburos, petróleo y gas",null,null,null,{"$f":"C273&B273","v":"C8"}]
["1.1.02.06.003.04.01.04",8,"C",null,null,null,null,null,null,null,"Regalías por Níquel, hierro, cobre y demás minerales metálicos",null,null,null,{"$f":"C274&B274","v":"C8"}]
["1.1.02.06.003.04.01.05",8,"C",null,null,null,null,null,null,null,"Regalías por oro, plata, platino y piedras preciosas",null,null,null,{"$f":"C275&B275","v":"C8"}]
["1.1.02.06.003.04.01.06",8,"C",null,null,null,null,null,null,null,"Regalías por sal",null,null,null,{"$f":"C276&B276","v":"C8"}]
["1.1.02.06.004",5,"A",null,null,null,null,"Compensaciones de ingresos tributarios y no tributarios",null,null,null,null,null,null,{"$f":"C277&B277","v":"A5"}]
["1.1.02.06.004.01",6,"C",null,null,null,null,null,"Compensación por menor recaudo de los derechos de explotación del juego de apuestas permanentes",null,null,null,null,null,{"$f":"C278&B278","v":"C6"}]
["1.1.02.06.004.02",6,"C",null,null,null,null,null,"Compensación Impuesto Predial Unificado territorios colectivos de comunidades negras",null,null,null,null,null,{"$f":"C279&B279","v":"C6"}]
["1.1.02.06.004.03",6,"C",null,null,null,null,null,"Compensación Impuesto Predial Unificado resguardos indígenas",null,null,null,null,null,{"$f":"C280&B280","v":"C6"}]
["1.1.02.06.006",5,"A",null,null,null,null,"Transferencias de otras entidades del gobierno general",null,null,null,null,null,null,{"$f":"C281&B281","v":"A5"}]
["1.1.02.06.006.01",6,"C",null,null,null,null,null,"Aportes Nación",null,null,null,null,null,{"$f":"C282&B282","v":"C6"}]
["1.1.02.06.006.02",6,"C",null,null,null,null,null,"Devolución IVA- instituciones de educación superior",null,null,null,null,null,{"$f":"C283&B283","v":"C6"}]
["1.1.02.06.006.06",6,"C",null,null,null,null,null,"Otras unidades de gobierno",null,null,null,null,null,{"$f":"C284&B284","v":"C6"}]
["1.1.02.06.007",5,"A",null,null,null,null,"Subvenciones",null,null,null,null,null,null,{"$f":"C285&B285","v":"A5"}]
["1.1.02.06.007.01",6,"A",null,null,null,null,null,"Empresas públicas financieras",null,null,null,null,null,{"$f":"C286&B286","v":"A6"}]
["1.1.02.06.007.02",6,"A",null,null,null,null,null,"Empresas públicas no financieras",null,null,null,null,null,{"$f":"C287&B287","v":"A6"}]
["1.1.02.06.008",5,"A",null,null,null,null,"Diferentes de subvenciones",null,null,null,null,null,null,{"$f":"C288&B288","v":"A5"}]
["1.1.02.06.008.01",6,"A",null,null,null,null,null,"Actividades de atención a la salud humana y de asistencia social",null,null,null,null,null,{"$f":"C289&B289","v":"A6"}]
["1.1.02.06.008.01.01",7,"C",null,null,null,null,null,null,"Campaña y control antituberculosis",null,null,null,null,{"$f":"C290&B290","v":"C7"}]
["1.1.02.06.008.01.02",7,"C",null,null,null,null,null,null,"Plan nacional de salud rural",null,null,null,null,{"$f":"C291&B291","v":"C7"}]
["1.1.02.06.008.01.03",7,"C",null,null,null,null,null,null,"Programa emergencia sanitaria",null,null,null,null,{"$f":"C292&B292","v":"C7"}]
["1.1.02.06.008.05.02",7,"C",null,null,null,null,null,null,"Transferencia a los operadores públicos del servicio de televisión del FUTIC-artículo 22 Ley 1978 de 2019",null,null,null,null,{"$f":"C293&B293","v":"C7"}]
["1.1.02.06.009.01.01",7,"C",null,null,null,null,null,null,"Compensación UPC",null,null,null,null,{"$f":"C294&B294","v":"C7"}]
["1.1.02.06.009.01.03",7,"C",null,null,null,null,null,null,"Compensación prestaciones económicas (licencias e incapacidades)",null,null,null,null,{"$f":"C295&B295","v":"C7"}]
["1.1.02.06.009.01.04",7,"C",null,null,null,null,null,null,"Cuenta de alto costo",null,null,null,null,{"$f":"C296&B296","v":"C7"}]
["1.1.02.06.009.01.05",7,"C",null,null,null,null,null,null,"Recursos ADRES - Pago de deudas reconocidas del régimen subsidiado en salud",null,null,null,null,{"$f":"C297&B297","v":"C7"}]
["1.1.02.06.009.01.06",7,"C",null,null,null,null,null,null,"Recursos ADRES - Cofinanciación UPC régimen subsidiado",null,null,null,null,{"$f":"C298&B298","v":"C7"}]
["1.1.02.06.009.01.07",7,"C",null,null,null,null,null,null,"Transferencia Nacional - Financiación del Régimen Subsidiado en Salud - Ley 1530 de 2012",null,null,null,null,{"$f":"C299&B299","v":"C7"}]
["1.1.02.06.009.01.08",7,"C",null,null,null,null,null,null,"Saldos de liquidación de los contratos para el aseguramiento en el régimen subsidiado",null,null,null,null,{"$f":"C300&B300","v":"C7"}]
["1.1.02.06.009.01.09",7,"C",null,null,null,null,null,null,"Transferencia Cajas de Compensación Familiar - Financiación del Régimen Subsidiado en Salud - Ley 100 de 1993",null,null,null,null,{"$f":"C301&B301","v":"C7"}]
["1.1.02.06.009.02",6,"A",null,null,null,null,null,"Sistema General de Pensiones",null,null,null,null,null,{"$f":"C302&B302","v":"A6"}]
["1.1.02.06.009.02.02",7,"C",null,null,null,null,null,null,"Cuotas partes pensionales",null,null,null,null,{"$f":"C303&B303","v":"C7"}]
["1.1.02.06.010",5,"A",null,null,null,null,"Sentencias y conciliaciones",null,null,null,null,null,null,{"$f":"C304&B304","v":"A5"}]
["1.1.02.06.010.01",6,"A",null,null,null,null,null,"Fallos nacionales",null,null,null,null,null,{"$f":"C305&B305","v":"A6"}]
["1.1.02.06.010.01.01",7,"C",null,null,null,null,null,null,"Sentencias",null,null,null,null,{"$f":"C306&B306","v":"C7"}]
["1.1.02.06.010.01.02",7,"C",null,null,null,null,null,null,"Conciliaciones",null,null,null,null,{"$f":"C307&B307","v":"C7"}]
["1.1.02.06.010.01.03",7,"C",null,null,null,null,null,null,"Laudos arbitrales",null,null,null,null,{"$f":"C308&B308","v":"C7"}]
["1.1.02.06.010.02",6,"C",null,null,null,null,null,"Fallos internacionales",null,null,null,null,null,{"$f":"C309&B309","v":"C6"}]
["1.1.02.06.011",5,"C",null,null,null,null,"Indemnizaciones relacionadas con seguros no de vida",null,null,null,null,null,null,{"$f":"C310&B310","v":"C5"}]
["1.1.02.07",4,"A",null,null,null,"Participación y derechos por monopolio",null,null,null,null,null,null,null,{"$f":"C311&B311","v":"A4"}]
["1.1.02.07.001",5,"A",null,null,null,null,"Derechos por la explotación juegos de suerte y azar",null,null,null,null,null,null,{"$f":"C312&B312","v":"A5"}]
["1.1.02.07.001.01",6,"C",null,null,null,null,null,"Derechos por la explotación juegos de suerte y azar de eventos hípicos",null,null,null,null,null,{"$f":"C313&B313","v":"C6"}]
["1.1.02.07.001.02",6,"C",null,null,null,null,null,"Derechos por la explotación juegos de suerte y azar de lotería instantánea y lotto impreso",null,null,null,null,null,{"$f":"C314&B314","v":"C6"}]
["1.1.02.07.001.03",6,"C",null,null,null,null,null,"Derechos por la explotación juegos de suerte y azar de lotería tradicional",null,null,null,null,null,{"$f":"C315&B315","v":"C6"}]
["1.1.02.07.001.04",6,"C",null,null,null,null,null,"Derechos por la explotación juegos de suerte y azar de apuestas permanentes o chance",null,null,null,null,null,{"$f":"C316&B316","v":"C6"}]
["1.1.02.07.001.05",6,"C",null,null,null,null,null,"Derechos por la explotación juegos de suerte y azar de rifas",null,null,null,null,null,{"$f":"C317&B317","v":"C6"}]
["1.1.02.07.001.06",6,"C",null,null,null,null,null,"Derechos por la explotación juegos de suerte y azar de juegos promocionales",null,null,null,null,null,{"$f":"C318&B318","v":"C6"}]
["1.1.02.07.001.07",6,"C",null,null,null,null,null,"Derechos por la explotación juegos de suerte y azar de juegos localizados",null,null,null,null,null,{"$f":"C319&B319","v":"C6"}]
["1.1.02.07.001.08",6,"C",null,null,null,null,null,"Derechos por la explotación juegos de suerte y azar de eventos deportivos, gallísticos, caninos y similares",null,null,null,null,null,{"$f":"C320&B320","v":"C6"}]
["1.1.02.07.001.09",6,"C",null,null,null,null,null,"Derechos por la explotación juegos de suerte y azar de juegos novedosos",null,null,null,null,null,{"$f":"C321&B321","v":"C6"}]
["1.1.02.07.002",5,"A",null,null,null,null,"Participación y derechos de explotación del ejercicio del monopolio de licores destilados y alcoholes potables",null,null,null,null,null,null,{"$f":"C322&B322","v":"A5"}]
["1.1.02.07.002.01",6,"A",null,null,null,null,null,"Participación y derechos de explotación del ejercicio del monopolio de licores destilados",null,null,null,null,null,{"$f":"C323&B323","v":"A6"}]
["1.1.02.07.002.01.01",7,"C",null,null,null,null,null,null,"Derechos de monopolio por la producción de licores destilados",null,null,null,null,{"$f":"C324&B324","v":"C7"}]
["1.1.02.07.002.01.02",7,"A",null,null,null,null,null,null,"Derechos de monopolio por la introducción de licores destilados",null,null,null,null,{"$f":"C325&B325","v":"A7"}]
["1.1.02.07.002.01.02.01",8,"C",null,null,null,null,null,null,null,"Derechos de monopolio por la introducción de licores destilados de producción nacional",null,null,null,{"$f":"C326&B326","v":"C8"}]
["1.1.02.07.002.01.02.02",8,"C",null,null,null,null,null,null,null,"Derechos de monopolio por la introducción de licores destilados de producción extranjera",null,null,null,{"$f":"C327&B327","v":"C8"}]
["1.1.02.07.002.01.03",7,"A",null,null,null,null,null,null,"Participación por el consumo de licores destilados",null,null,null,null,{"$f":"C328&B328","v":"A7"}]
["1.1.02.07.002.01.03.01",8,"C",null,null,null,null,null,null,null,"Participación por el consumo de licores destilados producidos",null,null,null,{"$f":"C329&B329","v":"C8"}]
["1.1.02.07.002.01.03.02",8,"A",null,null,null,null,null,null,null,"Participación por el consumo de licores destilados introducidos",null,null,null,{"$f":"C330&B330","v":"A8"}]
["1.1.02.07.002.01.03.02.01",9,"C",null,null,null,null,null,null,null,null,"Participación por el consumo de licores destilados introducidos de producción nacional",null,null,{"$f":"C331&B331","v":"C9"}]
["1.1.02.07.002.01.03.02.02",9,"A",null,null,null,null,null,null,null,null,"Participación por el consumo de licores destilados introducidos de producción extranjera",null,null,{"$f":"C332&B332","v":"A9"}]
["1.1.02.07.002.01.03.02.02.01",10,"C",null,null,null,null,null,null,null,null,null,"Participación por el consumo de licores destilados introducidos de producción extranjera recaudado por fondo cuenta de la FND",null,{"$f":"C333&B333","v":"C10"}]
["1.1.02.07.002.01.03.02.02.02",10,"C",null,null,null,null,null,null,null,null,null,"Participación por el consumo de licores destilados introducidos de producción extranjera recaudado por el departamento",null,{"$f":"C334&B334","v":"C10"}]
["1.1.02.07.002.02",6,"A",null,null,null,null,null,"Participación sobre el alcohol potable con destino a la fabricación de licores ",null,null,null,null,null,{"$f":"C335&B335","v":"A6"}]
["1.1.02.07.002.02.01",7,"C",null,null,null,null,null,null,"Participación por la utilización de alcohol potable producido",null,null,null,null,{"$f":"C336&B336","v":"C7"}]
["1.1.02.07.002.02.02",7,"A",null,null,null,null,null,null,"Derechos por la explotación de alcohol potable introducido",null,null,null,null,{"$f":"C337&B337","v":"A7"}]
["1.1.02.07.002.02.02.01",8,"C",null,null,null,null,null,null,null,"Derechos por la explotación de alcohol potable introducido de producción nacional",null,null,null,{"$f":"C338&B338","v":"C8"}]
["1.1.02.07.002.02.02.02",8,"C",null,null,null,null,null,null,null,"Derechos por la explotación de alcohol potable introducido de producción extranjera",null,null,null,{"$f":"C339&B339","v":"C8"}]
["1.2",2,"A",null,"Recursos de capital",null,null,null,null,null,null,null,null,null,{"$f":"C340&B340","v":"A2"}]
["1.2.01",3,"A",null,null,"Disposición de activos",null,null,null,null,null,null,null,null,{"$f":"C341&B341","v":"A3"}]
["1.2.01.01",4,"A",null,null,null,"Disposición de activos financieros",null,null,null,null,null,null,null,{"$f":"C342&B342","v":"A4"}]
["1.2.01.01.001",5,"C",null,null,null,null,"Acciones",null,null,null,null,null,null,{"$f":"C343&B343","v":"C5"}]
["1.2.01.01.002",5,"C",null,null,null,null,"Reducciones de capital",null,null,null,null,null,null,{"$f":"C344&B344","v":"C5"}]
["1.2.01.01.003",5,"C",null,null,null,null,"Reembolso de participaciones en fondos de inversión",null,null,null,null,null,null,{"$f":"C345&B345","v":"C5"}]
["1.2.01.02",4,"A",null,null,null,"Disposición de activos no financieros",null,null,null,null,null,null,null,{"$f":"C346&B346","v":"A4"}]
["1.2.01.02.001",5,"A",null,null,null,null,"Disposición de activos fijos",null,null,null,null,null,null,{"$f":"C347&B347","v":"A5"}]
["1.2.01.02.001.01",6,"C",null,null,null,null,null,"Disposición de edificaciones y estructuras",null,null,null,null,null,{"$f":"C348&B348","v":"C6"}]
["1.2.01.02.001.02",6,"C",null,null,null,null,null,"Disposición de maquinaria y equipo",null,null,null,null,null,{"$f":"C349&B349","v":"C6"}]
["1.2.01.02.001.03",6,"A",null,null,null,null,null,"Disposición de otros activos fijos",null,null,null,null,null,{"$f":"C350&B350","v":"A6"}]
["1.2.01.02.001.03.01",7,"C",null,null,null,null,null,null,"Disposición de recursos biológicos cultivados",null,null,null,null,{"$f":"C351&B351","v":"C7"}]
["1.2.01.02.001.03.02",7,"C",null,null,null,null,null,null,"Disposición de productos de la propiedad intelectual",null,null,null,null,{"$f":"C352&B352","v":"C7"}]
["1.2.01.02.002",5,"A",null,null,null,null,"Disposición de objetos de valor",null,null,null,null,null,null,{"$f":"C353&B353","v":"A5"}]
["1.2.01.02.002.01",6,"C",null,null,null,null,null,"Disposición de joyas y artículos conexos",null,null,null,null,null,{"$f":"C354&B354","v":"C6"}]
["1.2.01.02.002.02",6,"C",null,null,null,null,null,"Disposición de antigüedades u otros objetos de arte",null,null,null,null,null,{"$f":"C355&B355","v":"C6"}]
["1.2.01.02.002.03",6,"C",null,null,null,null,null,"Disposición de otros objetos valiosos",null,null,null,null,null,{"$f":"C356&B356","v":"C6"}]
["1.2.01.02.003",5,"A",null,null,null,null,"Disposición de activos no producidos",null,null,null,null,null,null,{"$f":"C357&B357","v":"A5"}]
["1.2.01.02.003.01",6,"C",null,null,null,null,null,"Disposición de  tierras y terrenos",null,null,null,null,null,{"$f":"C358&B358","v":"C6"}]
["1.2.01.02.003.02",6,"C",null,null,null,null,null,"Disposición de recursos biológicos no cultivados",null,null,null,null,null,{"$f":"C359&B359","v":"C6"}]
["1.2.02",3,"A",null,null,"Excedentes financieros",null,null,null,null,null,null,null,null,{"$f":"C360&B360","v":"A3"}]
["1.2.02.01",4,"C",null,null,null,"Establecimientos públicos",null,null,null,null,null,null,null,{"$f":"C361&B361","v":"C4"}]
["1.2.02.02",4,"C",null,null,null,"Empresas industriales y comerciales del Estado no societarias",null,null,null,null,null,null,null,{"$f":"C362&B362","v":"C4"}]
["1.2.03",3,"A",null,null,"Dividendos y utilidades por otras inversiones de capital",null,null,null,null,null,null,null,null,{"$f":"C363&B363","v":"A3"}]
["1.2.03.02",4,"C",null,null,null,"Empresas industriales y comerciales del Estado societarias",null,null,null,null,null,null,null,{"$f":"C364&B364","v":"C4"}]
["1.2.03.03",4,"C",null,null,null,"Sociedades de economía mixta",null,null,null,null,null,null,null,{"$f":"C365&B365","v":"C4"}]
["1.2.03.04",4,"C",null,null,null,"Inversiones patrimoniales no controladas",null,null,null,null,null,null,null,{"$f":"C366&B366","v":"C4"}]
["1.2.03.05",4,"C",null,null,null,"Inversiones en entidades controladas - entidades en el exterior",null,null,null,null,null,null,null,{"$f":"C367&B367","v":"C4"}]
["1.2.03.06",4,"C",null,null,null,"Inversiones en entidades controladas - sociedades públicas",null,null,null,null,null,null,null,{"$f":"C368&B368","v":"C4"}]
["1.2.05",3,"A",null,null,"Rendimientos financieros",null,null,null,null,null,null,null,null,{"$f":"C369&B369","v":"A3"}]
["1.2.05.01",4,"C",null,null,null,"Títulos participativos",null,null,null,null,null,null,null,{"$f":"C370&B370","v":"C4"}]
["1.2.05.02",4,"C",null,null,null,"Depósitos",null,null,null,null,null,null,null,{"$f":"C371&B371","v":"C4"}]
["1.2.05.03",4,"C",null,null,null,"Valores distintos de acciones",null,null,null,null,null,null,null,{"$f":"C372&B372","v":"C4"}]
["1.2.05.04",4,"C",null,null,null,"Cuenta única nacional",null,null,null,null,null,null,null,{"$f":"C373&B373","v":"C4"}]
["1.2.05.05",4,"C",null,null,null,"Intereses por préstamos",null,null,null,null,null,null,null,{"$f":"C374&B374","v":"C4"}]
["1.2.06",3,"A",null,null,"Recursos de crédito externo",null,null,null,null,null,null,null,null,{"$f":"C375&B375","v":"A3"}]
["1.2.06.01",4,"A",null,null,null,"Recursos de contratos de empréstitos externos",null,null,null,null,null,null,null,{"$f":"C376&B376","v":"A4"}]
["1.2.06.01.001",5,"C",null,null,null,null,"Bancos comerciales",null,null,null,null,null,null,{"$f":"C377&B377","v":"C5"}]
["1.2.06.01.002",5,"C",null,null,null,null,"Entidades de fomento",null,null,null,null,null,null,{"$f":"C378&B378","v":"C5"}]
["1.2.06.01.003",5,"A",null,null,null,null,"Gobiernos",null,null,null,null,null,null,{"$f":"C379&B379","v":"A5"}]
["1.2.06.01.003.01",6,"C",null,null,null,null,null,"Bancos centrales y agencias de gobiernos",null,null,null,null,null,{"$f":"C380&B380","v":"C6"}]
["1.2.06.01.003.02",6,"C",null,null,null,null,null,"Gobiernos",null,null,null,null,null,{"$f":"C381&B381","v":"C6"}]
["1.2.06.01.004",5,"A",null,null,null,null,"Organismos multilaterales",null,null,null,null,null,null,{"$f":"C382&B382","v":"A5"}]
["1.2.06.01.004.01",6,"C",null,null,null,null,null,"BID",null,null,null,null,null,{"$f":"C383&B383","v":"C6"}]
["1.2.06.01.004.02",6,"C",null,null,null,null,null,"BIRF",null,null,null,null,null,{"$f":"C384&B384","v":"C6"}]
["1.2.06.01.004.03",6,"C",null,null,null,null,null,"CAF",null,null,null,null,null,{"$f":"C385&B385","v":"C6"}]
["1.2.06.01.005",5,"A",null,null,null,null,"Otras instituciones financieras",null,null,null,null,null,null,{"$f":"C386&B386","v":"A5"}]
["1.2.06.01.005.01",6,"C",null,null,null,null,null,"FIDA",null,null,null,null,null,{"$f":"C387&B387","v":"C6"}]
["1.2.06.01.005.02",6,"C",null,null,null,null,null,"FODI",null,null,null,null,null,{"$f":"C388&B388","v":"C6"}]
["1.2.06.01.005.03",6,"C",null,null,null,null,null,"Recursos de crédito externo de otras instituciones financieras",null,null,null,null,null,{"$f":"C389&B389","v":"C6"}]
["1.2.06.02",4,"A",null,null,null,"Títulos de deuda",null,null,null,null,null,null,null,{"$f":"C390&B390","v":"A4"}]
["1.2.06.02.001",5,"C",null,null,null,null,"Bonos",null,null,null,null,null,null,{"$f":"C391&B391","v":"C5"}]
["1.2.07",3,"A",null,null,"Recursos de crédito interno",null,null,null,null,null,null,null,null,{"$f":"C392&B392","v":"A3"}]
["1.2.07.01",4,"A",null,null,null,"Recursos de contratos de empréstitos internos",null,null,null,null,null,null,null,{"$f":"C393&B393","v":"A4"}]
["1.2.07.01.001",5,"C",null,null,null,null,"Banca comercial",null,null,null,null,null,null,{"$f":"C394&B394","v":"C5"}]
["1.2.07.01.002",5,"C",null,null,null,null,"Nación",null,null,null,null,null,null,{"$f":"C395&B395","v":"C5"}]
["1.2.07.01.003",5,"C",null,null,null,null,"Banca de fomento",null,null,null,null,null,null,{"$f":"C396&B396","v":"C5"}]
["1.2.07.01.004",5,"C",null,null,null,null,"Institutos de Desarrollo Departamental y/o Municipal",null,null,null,null,null,null,{"$f":"C397&B397","v":"C5"}]
["1.2.07.01.006",5,"C",null,null,null,null,"Otras instituciones financieras",null,null,null,null,null,null,{"$f":"C398&B398","v":"C5"}]
["1.2.07.02",4,"A",null,null,null,"Títulos de deuda",null,null,null,null,null,null,null,{"$f":"C399&B399","v":"A4"}]
["1.2.07.02.002",5,"C",null,null,null,null,"Bonos y otros títulos emitidos",null,null,null,null,null,null,{"$f":"C400&B400","v":"C5"}]
["1.2.08",3,"A",null,null,"Transferencias de capital",null,null,null,null,null,null,null,null,{"$f":"C401&B401","v":"A3"}]
["1.2.08.01",4,"A",null,null,null,"Donaciones",null,null,null,null,null,null,null,{"$f":"C402&B402","v":"A4"}]
["1.2.08.01.001",5,"A",null,null,null,null,"De gobiernos extranjeros",null,null,null,null,null,null,{"$f":"C403&B403","v":"A5"}]
["1.2.08.01.001.01",6,"C",null,null,null,null,null,"No condicionadas a la adquisición de un activo ",null,null,null,null,null,{"$f":"C404&B404","v":"C6"}]
["1.2.08.01.001.02",6,"C",null,null,null,null,null,"Condicionadas a la adquisición de un activo ",null,null,null,null,null,{"$f":"C405&B405","v":"C6"}]
["1.2.08.01.002",5,"A",null,null,null,null,"De organizaciones internacionales",null,null,null,null,null,null,{"$f":"C406&B406","v":"A5"}]
["1.2.08.01.002.01",6,"C",null,null,null,null,null,"No condicionadas a la adquisición de un activo ",null,null,null,null,null,{"$f":"C407&B407","v":"C6"}]
["1.2.08.01.002.02",6,"C",null,null,null,null,null,"Condicionadas a la adquisición de un activo ",null,null,null,null,null,{"$f":"C408&B408","v":"C6"}]
["1.2.08.01.003",5,"A",null,null,null,null,"Del sector privado",null,null,null,null,null,null,{"$f":"C409&B409","v":"A5"}]
["1.2.08.01.003.01",6,"C",null,null,null,null,null,"No condicionadas a la adquisición de un activo ",null,null,null,null,null,{"$f":"C410&B410","v":"C6"}]
["1.2.08.01.003.02",6,"C",null,null,null,null,null,"Condicionadas a la adquisición de un activo ",null,null,null,null,null,{"$f":"C411&B411","v":"C6"}]
["1.2.08.02",4,"C",null,null,null,"Indemnizaciones relacionadas con seguros no de vida",null,null,null,null,null,null,null,{"$f":"C412&B412","v":"C4"}]
["1.2.08.03",4,"A",null,null,null,"Compensaciones de capital",null,null,null,null,null,null,null,{"$f":"C413&B413","v":"A4"}]
["1.2.08.03.001",5,"C",null,null,null,null,"Resarcimiento por procesos de gestión fiscal",null,null,null,null,null,null,{"$f":"C414&B414","v":"C5"}]
["1.2.08.04",4,"A",null,null,null,"Premios no reclamados",null,null,null,null,null,null,null,{"$f":"C415&B415","v":"A4"}]
["1.2.08.04.001",5,"C",null,null,null,null,"Premios de juegos de suerte y azar",null,null,null,null,null,null,{"$f":"C416&B416","v":"C5"}]
["1.2.08.04.002",5,"C",null,null,null,null,"Premios de loterías",null,null,null,null,null,null,{"$f":"C417&B417","v":"C5"}]
["1.2.08.04.003",5,"C",null,null,null,null,"Premios de apuestas permanentes o chance",null,null,null,null,null,null,{"$f":"C418&B418","v":"C5"}]
["1.2.08.04.004",5,"C",null,null,null,null,"Premios de juegos novedosos",null,null,null,null,null,null,{"$f":"C419&B419","v":"C5"}]
["1.2.08.05",4,"C",null,null,null,"Reembolso fondo de contingencias",null,null,null,null,null,null,null,{"$f":"C420&B420","v":"C4"}]
["1.2.08.06",4,"A",null,null,null,"De otras entidades del gobierno general",null,null,null,null,null,null,null,{"$f":"C421&B421","v":"A4"}]
["1.2.08.06.001",5,"C",null,null,null,null,"Fondo de Subsidio de la Sobretasa a la Gasolina",null,null,null,null,null,null,{"$f":"C422&B422","v":"C5"}]
["1.2.08.06.002",5,"C",null,null,null,null,"Condicionadas a la adquisición de un activo",null,null,null,null,null,null,{"$f":"C423&B423","v":"C5"}]
["1.2.08.06.003",5,"C",null,null,null,null,"Condicionadas a la disminución de un pasivo",null,null,null,null,null,null,{"$f":"C424&B424","v":"C5"}]
["1.2.09",3,"A",null,null,"Recuperación de cartera - préstamos",null,null,null,null,null,null,null,null,{"$f":"C425&B425","v":"A3"}]
["1.2.09.02",4,"C",null,null,null,"De otras entidades de gobierno",null,null,null,null,null,null,null,{"$f":"C426&B426","v":"C4"}]
["1.2.09.03",4,"C",null,null,null,"De personas naturales",null,null,null,null,null,null,null,{"$f":"C427&B427","v":"C4"}]
["1.2.09.04",4,"C",null,null,null,"De otras empresas",null,null,null,null,null,null,null,{"$f":"C428&B428","v":"C4"}]
["1.2.10",3,"A",null,null,"Recursos del balance",null,null,null,null,null,null,null,null,{"$f":"C429&B429","v":"A3"}]
["1.2.10.01",4,"C",null,null,null,"Cancelación Reservas",null,null,null,null,null,null,null,{"$f":"C430&B430","v":"C4"}]
["1.2.10.02",4,"C",null,null,null,"Superávit fiscal",null,null,null,null,null,null,null,{"$f":"C431&B431","v":"C4"}]
["1.2.12",3,"A",null,null,"Retiros FONPET",null,null,null,null,null,null,null,null,{"$f":"C432&B432","v":"A3"}]
["1.2.12.01",4,"A",null,null,null,"Para el pago de bonos pensionales o cuotas partes de bonos pensionales",null,null,null,null,null,null,null,{"$f":"C433&B433","v":"A4"}]
["1.2.12.01.001",5,"C",null,null,null,null,"Para el pago de bonos y cuotas partes de bonos pensionales A y B",null,null,null,null,null,null,{"$f":"C434&B434","v":"C5"}]
["1.2.12.01.002",5,"C",null,null,null,null,"Para el pago de bonos y cuotas partes de bonos pensionales C y E",null,null,null,null,null,null,{"$f":"C435&B435","v":"C5"}]
["1.2.12.02",4,"C",null,null,null,"Para el cruce y pago de cuotas partes pensionales",null,null,null,null,null,null,null,{"$f":"C436&B436","v":"C4"}]
["1.2.12.03",4,"A",null,null,null,"Para el pago de la deuda por docentes al Fondo de Prestaciones Sociales del Magisterio (FPSM)",null,null,null,null,null,null,null,{"$f":"C437&B437","v":"A4"}]
["1.2.12.03.001",5,"C",null,null,null,null,"Para el pago del pasivo pensional corriente",null,null,null,null,null,null,{"$f":"C438&B438","v":"C5"}]
["1.2.12.03.002",5,"C",null,null,null,null,"Para el pago del monto consolidado de la deuda",null,null,null,null,null,null,{"$f":"C439&B439","v":"C5"}]
["1.2.12.04",4,"A",null,null,null,"Recursos de Lotto en línea",null,null,null,null,null,null,null,{"$f":"C440&B440","v":"A4"}]
["1.2.12.04.001",5,"C",null,null,null,null,"Para pagar el pasivo pensional con el sector salud",null,null,null,null,null,null,{"$f":"C441&B441","v":"C5"}]
["1.2.12.04.002",5,"C",null,null,null,null,"Para invertir en la atención de los servicios de salud",null,null,null,null,null,null,{"$f":"C442&B442","v":"C5"}]
["1.2.12.05",4,"C",null,null,null,"Por el reembolso de pago de bonos pensionales",null,null,null,null,null,null,null,{"$f":"C443&B443","v":"C4"}]
["1.2.12.06",4,"C",null,null,null,"Por la devolución de consignación errónea",null,null,null,null,null,null,null,{"$f":"C444&B444","v":"C4"}]
["1.2.12.07",4,"C",null,null,null,"Por el retiro de recursos hasta por el 30% del saldo en cuenta",null,null,null,null,null,null,null,{"$f":"C445&B445","v":"C4"}]
["1.2.12.08",4,"C",null,null,null,"Del excedente del cubrimiento del pasivo pensional",null,null,null,null,null,null,null,{"$f":"C446&B446","v":"C4"}]
["1.2.12.09",4,"C",null,null,null,"Para el pago de obligaciones pensionales corrientes",null,null,null,null,null,null,null,{"$f":"C447&B447","v":"C4"}]
["1.2.12.10",4,"C",null,null,null,"Por la devolución de recursos SGP Propósito General ",null,null,null,null,null,null,null,{"$f":"C448&B448","v":"C4"}]
["1.2.12.11",4,"C",null,null,null,"Por la devolución de recursos SGR",null,null,null,null,null,null,null,{"$f":"C449&B449","v":"C4"}]
["1.2.13",3,"A",null,null,"Reintegros y otros recursos no apropiados",null,null,null,null,null,null,null,null,{"$f":"C450&B450","v":"A3"}]
["1.2.13.01",4,"C",null,null,null,"Reintegros",null,null,null,null,null,null,null,{"$f":"C451&B451","v":"C4"}]
["1.2.13.02",4,"C",null,null,null,"Recursos no apropiados",null,null,null,null,null,null,null,{"$f":"C452&B452","v":"C4"}]
["1.2.15",3,"A",null,null,"Capitalizaciones",null,null,null,null,null,null,null,null,{"$f":"C453&B453","v":"A3"}]
["1.2.15.01",4,"A",null,null,null,"Aportes de Capital",null,null,null,null,null,null,null,{"$f":"C454&B454","v":"A4"}]
["1.2.15.01.001",5,"C",null,null,null,null,"De la nación",null,null,null,null,null,null,{"$f":"C455&B455","v":"C5"}]
["1.2.15.01.002",5,"C",null,null,null,null,"De establecimientos públicos",null,null,null,null,null,null,{"$f":"C456&B456","v":"C5"}]
["1.2.15.01.003",5,"C",null,null,null,null,"De otras empresas",null,null,null,null,null,null,{"$f":"C457&B457","v":"C5"}]
["1.2.15.01.004",5,"C",null,null,null,null,"De municipios",null,null,null,null,null,null,{"$f":"C458&B458","v":"C5"}]
["1.2.15.01.005",5,"C",null,null,null,null,"De departamentos",null,null,null,null,null,null,{"$f":"C459&B459","v":"C5"}]
["1.2.15.02",4,"C",null,null,null,"Emisión de acciones",null,null,null,null,null,null,null,{"$f":"C460&B460","v":"C4"}]
["1.2.15.03",4,"C",null,null,null,"Reinversión de utilidades de socios",null,null,null,null,null,null,null,{"$f":"C461&B461","v":"C4"}]
["1.2.15.04",4,"C",null,null,null,"Reservas capitalizables",null,null,null,null,null,null,null,{"$f":"C462&B462","v":"C4"}]
["X","X","X","X","X","X","X","X","X","X","X","X","X","X",null,"X","X","X","X","X","X","X"]

{"sheet":"ANEXO No. 2 CCPET-GASTOS","index":1,"n_rows":764,"n_cols":25,"rows_kept":764,"cut":false,"hidden":false,"merged":[[3,0,4,0],[3,1,4,1],[3,2,4,2],[1,3,4,16],[1,18,4,24]]}
["ANEXO No. 2 RESOLUCIÓN No. 1355 DE 2020 - CATALOGO DE CLASIFICACION PRESUPUESTAL PARA ENTIDADES TERRITORIALES Y SUS DESCENTRALIZADAS  - DE GASTOS - CCPET (JULIO_01_2020)"]
[null,null,null,"Nombre Cuenta",null,null,null,null,null,null,null,null,null,null,null,null,null,null,"OBSERVACIONES"]
[]
["Código","Nivel","Tipo"]
[]
["2",1,"A","Gastos",null,null,null,null,null,null,null,null,null,null,null,null,null,{"$f":"C6&B6","v":"A1"}," "]
["2.1",2,"A",null,"Funcionamiento",null,null,null,null,null,null,null,null,null,null,null,null,{"$f":"C7&B7","v":"A2"}]
["2.1.1",3,"A",null,null,"Gastos de personal",null,null,null,null,null,null,null,null,null,null,null,{"$f":"C8&B8","v":"A3"}]
["2.1.1.01",4,"A",null,null,null,"Planta de personal permanente",null,null,null,null,null,null,null,null,null,null,{"$f":"C9&B9","v":"A4"}]
["2.1.1.01.01",5,"A",null,null,null,null,"Factores constitutivos de salario",null,null,null,null,null,null,null,null,null,{"$f":"C10&B10","v":"A5"}]
["2.1.1.01.01.001",6,"A",null,null,null,null,null,"Factores salariales comunes",null,null,null,null,null,null,null,null,{"$f":"C11&B11","v":"A6"}]
["2.1.1.01.01.001.01",7,"C",null,null,null,null,null,null,"Sueldo básico",null,null,null,null,null,null,null,{"$f":"C12&B12","v":"C7"}]
["2.1.1.01.01.001.02",7,"C",null,null,null,null,null,null,"Horas extras, dominicales, festivos y recargos",null,null,null,null,null,null,null,{"$f":"C13&B13","v":"C7"}]
["2.1.1.01.01.001.03",7,"C",null,null,null,null,null,null,"Gastos de representación",null,null,null,null,null,null,null,{"$f":"C14&B14","v":"C7"}]
["2.1.1.01.01.001.04",7,"C",null,null,null,null,null,null,"Subsidio de alimentación",null,null,null,null,null,null,null,{"$f":"C15&B15","v":"C7"}]
["2.1.1.01.01.001.05",7,"C",null,null,null,null,null,null,"Auxilio de transporte",null,null,null,null,null,null,null,{"$f":"C16&B16","v":"C7"}]
["2.1.1.01.01.001.06",7,"C",null,null,null,null,null,null,"Prima de servicio",null,null,null,null,null,null,null,{"$f":"C17&B17","v":"C7"}]
["2.1.1.01.01.001.07",7,"C",null,null,null,null,null,null,"Bonificación por servicios prestados",null,null,null,null,null,null,null,{"$f":"C18&B18","v":"C7"}]
["2.1.1.01.01.001.08",7,"A",null,null,null,null,null,null,"Prestaciones sociales",null,null,null,null,null,null,null,{"$f":"C19&B19","v":"A7"}]
["2.1.1.01.01.001.08.01",8,"C",null,null,null,null,null,null,null,"Prima de navidad",null,null,null,null,null,null,{"$f":"C20&B20","v":"C8"}]
["2.1.1.01.01.001.08.02",8,"C",null,null,null,null,null,null,null,"Prima de vacaciones",null,null,null,null,null,null,{"$f":"C21&B21","v":"C8"}]
["2.1.1.01.01.001.09",7,"C",null,null,null,null,null,null,"Prima técnica salarial",null,null,null,null,null,null,null,{"$f":"C22&B22","v":"C7"}]
["2.1.1.01.01.001.10",7,"C",null,null,null,null,null,null,"Viáticos de los funcionarios en comisión",null,null,null,null,null,null,null,{"$f":"C23&B23","v":"C7"}]
["2.1.1.01.01.001.11",7,"C",null,null,null,null,null,null,"Remuneración diputados",null,null,null,null,null,null,null,{"$f":"C24&B24","v":"C7"}]
["2.1.1.01.01.002",6,"A",null,null,null,null,null,"Factores salariales especiales",null,null,null,null,null,null,null,null,{"$f":"C25&B25","v":"A6"}]
["2.1.1.01.02",5,"A",null,null,null,null,"Contribuciones inherentes a la nómina",null,null,null,null,null,null,null,null,null,{"$f":"C26&B26","v":"A5"}]
["2.1.1.01.02.001",6,"C",null,null,null,null,null,"Aportes a la seguridad social en pensiones",null,null,null,null,null,null,null,null,{"$f":"C27&B27","v":"C6"}]
["2.1.1.01.02.002",6,"C",null,null,null,null,null,"Aportes a la seguridad social en salud",null,null,null,null,null,null,null,null,{"$f":"C28&B28","v":"C6"}]
["2.1.1.01.02.003",6,"C",null,null,null,null,null,"Aportes de cesantías ",null,null,null,null,null,null,null,null,{"$f":"C29&B29","v":"C6"}]
["2.1.1.01.02.004",6,"C",null,null,null,null,null,"Aportes a cajas de compensación familiar",null,null,null,null,null,null,null,null,{"$f":"C30&B30","v":"C6"}]
["2.1.1.01.02.005",6,"C",null,null,null,null,null,"Aportes generales al sistema de riesgos laborales",null,null,null,null,null,null,null,null,{"$f":"C31&B31","v":"C6"}]
["2.1.1.01.02.006",6,"C",null,null,null,null,null,"Aportes al ICBF",null,null,null,null,null,null,null,null,{"$f":"C32&B32","v":"C6"}]
["2.1.1.01.02.007",6,"C",null,null,null,null,null,"Aportes al SENA",null,null,null,null,null,null,null,null,{"$f":"C33&B33","v":"C6"}]
["2.1.1.01.02.008",6,"C",null,null,null,null,null,"Aportes a la ESAP",null,null,null,null,null,null,null,null,{"$f":"C34&B34","v":"C6"}]
["2.1.1.01.02.009",6,"C",null,null,null,null,null,"Aportes a escuelas industriales e institutos técnicos",null,null,null,null,null,null,null,null,{"$f":"C35&B35","v":"C6"}]
["2.1.1.01.03",5,"A",null,null,null,null,"Remuneraciones no constitutivas de factor salarial",null,null,null,null,null,null,null,null,null,{"$f":"C36&B36","v":"A5"}]
["2.1.1.01.03.001",6,"A",null,null,null,null,null,"Prestaciones sociales",null,null,null,null,null,null,null,null,{"$f":"C37&B37","v":"A6"}]
["2.1.1.01.03.001.01",7,"C",null,null,null,null,null,null,"Vacaciones",null,null,null,null,null,null,null,{"$f":"C38&B38","v":"C7"}]
["2.1.1.01.03.001.02",7,"C",null,null,null,null,null,null,"Indemnización por vacaciones",null,null,null,null,null,null,null,{"$f":"C39&B39","v":"C7"}]
["2.1.1.01.03.001.03",7,"C",null,null,null,null,null,null,"Bonificación especial de recreación",null,null,null,null,null,null,null,{"$f":"C40&B40","v":"C7"}]
["2.1.1.01.03.003",6,"C",null,null,null,null,null,"Bonificación de dirección para gobernadores y alcaldes",null,null,null,null,null,null,null,null,{"$f":"C41&B41","v":"C6"}]
["2.1.1.01.03.004",6,"C",null,null,null,null,null,"Bonificación de gestión territorial para alcaldes",null,null,null,null,null,null,null,null,{"$f":"C42&B42","v":"C6"}]
["2.1.1.01.03.006",6,"C",null,null,null,null,null,"Honorarios concejales",null,null,null,null,null,null,null,null,{"$f":"C43&B43","v":"C6"}]
["2.1.1.01.03.007",6,"C",null,null,null,null,null,"Honorarios ediles  ",null,null,null,null,null,null,null,null,{"$f":"C44&B44","v":"C6"}]
["2.1.1.01.03.008",6,"C",null,null,null,null,null,"Subsidio de transporte a personeros",null,null,null,null,null,null,null,null,{"$f":"C45&B45","v":"C6"}]
["2.1.1.02",4,"A",null,null,null,"Personal supernumerario y planta temporal",null,null,null,null,null,null,null,null,null,null,{"$f":"C46&B46","v":"A4"}]
["2.1.1.02.01",5,"A",null,null,null,null,"Factores constitutivos de salario",null,null,null,null,null,null,null,null,null,{"$f":"C47&B47","v":"A5"}]
["2.1.1.02.01.001",6,"A",null,null,null,null,null,"Factores salariales comunes",null,null,null,null,null,null,null,null,{"$f":"C48&B48","v":"A6"}]
["2.1.1.02.01.001.01",7,"C",null,null,null,null,null,null,"Sueldo básico",null,null,null,null,null,null,null,{"$f":"C49&B49","v":"C7"}]
["2.1.1.02.01.001.02",7,"C",null,null,null,null,null,null,"Horas extras, dominicales, festivos y recargos",null,null,null,null,null,null,null,{"$f":"C50&B50","v":"C7"}]
["2.1.1.02.01.001.03",7,"C",null,null,null,null,null,null,"Gastos de representación",null,null,null,null,null,null,null,{"$f":"C51&B51","v":"C7"}]
["2.1.1.02.01.001.04",7,"C",null,null,null,null,null,null,"Subsidio de alimentación",null,null,null,null,null,null,null,{"$f":"C52&B52","v":"C7"}]
["2.1.1.02.01.001.05",7,"C",null,null,null,null,null,null,"Auxilio de transporte",null,null,null,null,null,null,null,{"$f":"C53&B53","v":"C7"}]
["2.1.1.02.01.001.06",7,"C",null,null,null,null,null,null,"Prima de servicio",null,null,null,null,null,null,null,{"$f":"C54&B54","v":"C7"}]
["2.1.1.02.01.001.07",7,"C",null,null,null,null,null,null,"Bonificación por servicios prestados",null,null,null,null,null,null,null,{"$f":"C55&B55","v":"C7"}]
["2.1.1.02.01.001.08",7,"A",null,null,null,null,null,null,"Prestaciones sociales",null,null,null,null,null,null,null,{"$f":"C56&B56","v":"A7"}]
["2.1.1.02.01.001.08.01",8,"C",null,null,null,null,null,null,null,"Prima de navidad",null,null,null,null,null,null,{"$f":"C57&B57","v":"C8"}]
["2.1.1.02.01.001.08.02",8,"C",null,null,null,null,null,null,null,"Prima de vacaciones",null,null,null,null,null,null,{"$f":"C58&B58","v":"C8"}]
["2.1.1.02.01.001.09",7,"C",null,null,null,null,null,null,"Prima técnica salarial",null,null,null,null,null,null,null,{"$f":"C59&B59","v":"C7"}]
["2.1.1.02.01.001.10",7,"C",null,null,null,null,null,null,"Viáticos de los funcionarios en comisión",null,null,null,null,null,null,null,{"$f":"C60&B60","v":"C7"}]
["2.1.1.02.01.002",6,"A",null,null,null,null,null,"Factores salariales especiales",null,null,null,null,null,null,null,null,{"$f":"C61&B61","v":"A6"}]
["2.1.1.02.02",5,"A",null,null,null,null,"Contribuciones inherentes a la nómina",null,null,null,null,null,null,null,null,null,{"$f":"C62&B62","v":"A5"}]
["2.1.1.02.02.001",6,"C",null,null,null,null,null,"Aportes a la seguridad social en pensiones",null,null,null,null,null,null,null,null,{"$f":"C63&B63","v":"C6"}]
["2.1.1.02.02.002",6,"C",null,null,null,null,null,"Aportes a la seguridad social en salud",null,null,null,null,null,null,null,null,{"$f":"C64&B64","v":"C6"}]
["2.1.1.02.02.003",6,"C",null,null,null,null,null,"Aportes de cesantías ",null,null,null,null,null,null,null,null,{"$f":"C65&B65","v":"C6"}]
["2.1.1.02.02.004",6,"C",null,null,null,null,null,"Aportes a cajas de compensación familiar",null,null,null,null,null,null,null,null,{"$f":"C66&B66","v":"C6"}]
["2.1.1.02.02.005",6,"C",null,null,null,null,null,"Aportes generales al sistema de riesgos laborales",null,null,null,null,null,null,null,null,{"$f":"C67&B67","v":"C6"}]
["2.1.1.02.02.006",6,"C",null,null,null,null,null,"Aportes al ICBF",null,null,null,null,null,null,null,null,{"$f":"C68&B68","v":"C6"}]
["2.1.1.02.02.007",6,"C",null,null,null,null,null,"Aportes al SENA",null,null,null,null,null,null,null,null,{"$f":"C69&B69","v":"C6"}]
["2.1.1.02.02.008",6,"C",null,null,null,null,null,"Aportes a la ESAP",null,null,null,null,null,null,null,null,{"$f":"C70&B70","v":"C6"}]
["2.1.1.02.02.009",6,"C",null,null,null,null,null,"Aportes a escuelas industriales e institutos técnicos",null,null,null,null,null,null,null,null,{"$f":"C71&B71","v":"C6"}]
["2.1.1.02.03",5,"A",null,null,null,null,"Remuneraciones no constitutivas de factor salarial",null,null,null,null,null,null,null,null,null,{"$f":"C72&B72","v":"A5"}]
["2.1.1.02.03.001",6,"A",null,null,null,null,null,"Prestaciones sociales",null,null,null,null,null,null,null,null,{"$f":"C73&B73","v":"A6"}]
["2.1.1.02.03.001.01",7,"C",null,null,null,null,null,null,"Vacaciones",null,null,null,null,null,null,null,{"$f":"C74&B74","v":"C7"}]
["2.1.1.02.03.001.02",7,"C",null,null,null,null,null,null,"Indemnización por vacaciones",null,null,null,null,null,null,null,{"$f":"C75&B75","v":"C7"}]
["2.1.1.02.03.001.03",7,"C",null,null,null,null,null,null,"Bonificación especial de recreación",null,null,null,null,null,null,null,{"$f":"C76&B76","v":"C7"}]
["2.1.2",3,"A",null,null,"Adquisición de bienes y servicios",null,null,null,null,null,null,null,null,null,null,null,{"$f":"C77&B77","v":"A3"}]
["2.1.2.01",4,"A",null,null,null,"Adquisición de activos no financieros",null,null,null,null,null,null,null,null,null,null,{"$f":"C78&B78","v":"A4"}]
["2.1.2.01.01",5,"A",null,null,null,null,"Activos fijos",null,null,null,null,null,null,null,null,null,{"$f":"C79&B79","v":"A5"}]
["2.1.2.01.01.001",6,"A",null,null,null,null,null,"Edificaciones y estructuras",null,null,null,null,null,null,null,null,{"$f":"C80&B80","v":"A6"}]
["2.1.2.01.01.001.01",7,"A",null,null,null,null,null,null,"Viviendas",null,null,null,null,null,null,null,{"$f":"C81&B81","v":"A7"}]
["2.1.2.01.01.001.01.01",8,"C",null,null,null,null,null,null,null,"Edificios utilizados para residencia",null,null,null,null,null,null,{"$f":"C82&B82","v":"C8"}]
["2.1.2.01.01.001.01.02",8,"C",null,null,null,null,null,null,null,"Casas flotantes ",null,null,null,null,null,null,{"$f":"C83&B83","v":"C8"}]
["2.1.2.01.01.001.01.03",8,"C",null,null,null,null,null,null,null,"Barcazas ",null,null,null,null,null,null,{"$f":"C84&B84","v":"C8"}]
["2.1.2.01.01.001.01.04",8,"C",null,null,null,null,null,null,null,"Viviendas móviles",null,null,null,null,null,null,{"$f":"C85&B85","v":"C8"}]
["2.1.2.01.01.001.01.05",8,"C",null,null,null,null,null,null,null,"Coches habitación",null,null,null,null,null,null,{"$f":"C86&B86","v":"C8"}]
["2.1.2.01.01.001.01.06",8,"C",null,null,null,null,null,null,null,"Monumentos públicos considerados principalmente como viviendas",null,null,null,null,null,null,{"$f":"C87&B87","v":"C8"}]
["2.1.2.01.01.001.01.08",8,"C",null,null,null,null,null,null,null,"Construcciones prefabricadas ",null,null,null,null,null,null,{"$f":"C88&B88","v":"C8"}]
["2.1.2.01.01.001.01.09",8,"C",null,null,null,null,null,null,null,"Otros edificios utilizados como residencia",null,null,null,null,null,null,{"$f":"C89&B89","v":"C8"}]
["2.1.2.01.01.001.02",7,"A",null,null,null,null,null,null,"Edificaciones distintas a viviendas",null,null,null,null,null,null,null,{"$f":"C90&B90","v":"A7"}]
["2.1.2.01.01.001.02.01",8,"C",null,null,null,null,null,null,null,"Monumentos públicos no residenciales",null,null,null,null,null,null,{"$f":"C91&B91","v":"C8"}]
["2.1.2.01.01.001.02.02",8,"C",null,null,null,null,null,null,null,"Edificios industriales",null,null,null,null,null,null,{"$f":"C92&B92","v":"C8"}]
["2.1.2.01.01.001.02.03",8,"C",null,null,null,null,null,null,null,"Edificios comerciales",null,null,null,null,null,null,{"$f":"C93&B93","v":"C8"}]
["2.1.2.01.01.001.02.04",8,"C",null,null,null,null,null,null,null,"Edificios públicos de entretenimiento",null,null,null,null,null,null,{"$f":"C94&B94","v":"C8"}]
["2.1.2.01.01.001.02.05",8,"C",null,null,null,null,null,null,null,"Edificios de hoteles",null,null,null,null,null,null,{"$f":"C95&B95","v":"C8"}]
["2.1.2.01.01.001.02.06",8,"C",null,null,null,null,null,null,null,"Restaurantes",null,null,null,null,null,null,{"$f":"C96&B96","v":"C8"}]
["2.1.2.01.01.001.02.07",8,"C",null,null,null,null,null,null,null,"Edificios educativos",null,null,null,null,null,null,{"$f":"C97&B97","v":"C8"}]
["2.1.2.01.01.001.02.08",8,"C",null,null,null,null,null,null,null,"Edificios relacionados con salud",null,null,null,null,null,null,{"$f":"C98&B98","v":"C8"}]
["2.1.2.01.01.001.02.11",8,"C",null,null,null,null,null,null,null,"Instalaciones recreativas",null,null,null,null,null,null,{"$f":"C99&B99","v":"C8"}]
["2.1.2.01.01.001.02.12",8,"C",null,null,null,null,null,null,null,"Centros de convenciones y congresos",null,null,null,null,null,null,{"$f":"C100&B100","v":"C8"}]
["2.1.2.01.01.001.02.13",8,"C",null,null,null,null,null,null,null,"Edificios agrícolas no residenciales",null,null,null,null,null,null,{"$f":"C101&B101","v":"C8"}]
["2.1.2.01.01.001.02.14",8,"C",null,null,null,null,null,null,null,"Otros edificios no residenciales",null,null,null,null,null,null,{"$f":"C102&B102","v":"C8"}]
["2.1.2.01.01.001.03",7,"A",null,null,null,null,null,null,"Otras estructuras",null,null,null,null,null,null,null,{"$f":"C103&B103","v":"A7"}]
["2.1.2.01.01.001.03.01",8,"C",null,null,null,null,null,null,null,"Monumentos públicos ",null,null,null,null,null,null,{"$f":"C104&B104","v":"C8"}]
["2.1.2.01.01.001.03.02",8,"C",null,null,null,null,null,null,null,"Autopistas, carreteras, calles",null,null,null,null,null,null,{"$f":"C105&B105","v":"C8"}]
["2.1.2.01.01.001.03.03",8,"C",null,null,null,null,null,null,null,"Ferrocarriles",null,null,null,null,null,null,{"$f":"C106&B106","v":"C8"}]
["2.1.2.01.01.001.03.04",8,"C",null,null,null,null,null,null,null,"Pistas de aterrizaje",null,null,null,null,null,null,{"$f":"C107&B107","v":"C8"}]
["2.1.2.01.01.001.03.05",8,"C",null,null,null,null,null,null,null,"Puentes",null,null,null,null,null,null,{"$f":"C108&B108","v":"C8"}]
["2.1.2.01.01.001.03.06",8,"C",null,null,null,null,null,null,null,"Carreteras elevadas",null,null,null,null,null,null,{"$f":"C109&B109","v":"C8"}]
["2.1.2.01.01.001.03.07",8,"C",null,null,null,null,null,null,null,"Túneles",null,null,null,null,null,null,{"$f":"C110&B110","v":"C8"}]
["2.1.2.01.01.001.03.08",8,"C",null,null,null,null,null,null,null,"Acueductos y otros conductos de suministros de aguas, excepto gasoductos",null,null,null,null,null,null,{"$f":"C111&B111","v":"C8"}]
["2.1.2.01.01.001.03.09",8,"C",null,null,null,null,null,null,null,"Puertos, vías navegables e instalaciones conexas",null,null,null,null,null,null,{"$f":"C112&B112","v":"C8"}]
["2.1.2.01.01.001.03.10",8,"C",null,null,null,null,null,null,null,"Represas",null,null,null,null,null,null,{"$f":"C113&B113","v":"C8"}]
["2.1.2.01.01.001.03.11",8,"C",null,null,null,null,null,null,null,"Sistemas de riego y obras hidráulicas",null,null,null,null,null,null,{"$f":"C114&B114","v":"C8"}]
["2.1.2.01.01.001.03.12",8,"C",null,null,null,null,null,null,null,"Tuberías de larga distancia",null,null,null,null,null,null,{"$f":"C115&B115","v":"C8"}]
["2.1.2.01.01.001.03.13",8,"C",null,null,null,null,null,null,null,"Obras para la comunicación de larga distancia y las líneas eléctricas (cables)",null,null,null,null,null,null,{"$f":"C116&B116","v":"C8"}]
["2.1.2.01.01.001.03.14",8,"C",null,null,null,null,null,null,null,"Gasoductos y oleoductos",null,null,null,null,null,null,{"$f":"C117&B117","v":"C8"}]
["2.1.2.01.01.001.03.15",8,"C",null,null,null,null,null,null,null,"Cables locales y obras conexas",null,null,null,null,null,null,{"$f":"C118&B118","v":"C8"}]
["2.1.2.01.01.001.03.16",8,"C",null,null,null,null,null,null,null,"Alcantarillas y plantas de tratamiento de agua",null,null,null,null,null,null,{"$f":"C119&B119","v":"C8"}]
["2.1.2.01.01.001.03.17",8,"C",null,null,null,null,null,null,null,"Construcciones en minas y plantas industriales",null,null,null,null,null,null,{"$f":"C120&B120","v":"C8"}]
["2.1.2.01.01.001.03.18",8,"C",null,null,null,null,null,null,null,"Construcciones deportivas al aire libre",null,null,null,null,null,null,{"$f":"C121&B121","v":"C8"}]
["2.1.2.01.01.001.03.19",8,"C",null,null,null,null,null,null,null,"Otras obras de ingeniería civil",null,null,null,null,null,null,{"$f":"C122&B122","v":"C8"}]
["2.1.2.01.01.001.04",7,"C",null,null,null,null,null,null,"Mejoras de tierras y terrenos",null,null,null,null,null,null,null,{"$f":"C123&B123","v":"C7"}]
["2.1.2.01.01.003",6,"A",null,null,null,null,null,"Maquinaria y equipo",null,null,null,null,null,null,null,null,{"$f":"C124&B124","v":"A6"}]
["2.1.2.01.01.003.01",7,"A",null,null,null,null,null,null,"Maquinaria para uso general",null,null,null,null,null,null,null,{"$f":"C125&B125","v":"A7"}]
["2.1.2.01.01.003.01.01",8,"C",null,null,null,null,null,null,null,"Motores y turbinas y sus partes",null,null,null,null,null,null,{"$f":"C126&B126","v":"C8"}]
["2.1.2.01.01.003.01.02",8,"C",null,null,null,null,null,null,null,"Bombas, compresores, motores de fuerza hidráulica y motores de potencia neumática y válvulas y sus partes y piezas",null,null,null,null,null,null,{"$f":"C127&B127","v":"C8"}]
["2.1.2.01.01.003.01.03",8,"C",null,null,null,null,null,null,null,"Cojines, engranajes, ruedas de ficción y elementos de transmisión y sus partes y piezas",null,null,null,null,null,null,{"$f":"C128&B128","v":"C8"}]
["2.1.2.01.01.003.01.04",8,"C",null,null,null,null,null,null,null,"Hornos y quemadores para alimentación de hogares y sus partes y piezas",null,null,null,null,null,null,{"$f":"C129&B129","v":"C8"}]
["2.1.2.01.01.003.01.05",8,"C",null,null,null,null,null,null,null,"Equipos de elevación y manipulación y sus partes y piezas",null,null,null,null,null,null,{"$f":"C130&B130","v":"C8"}]
["2.1.2.01.01.003.01.06",8,"C",null,null,null,null,null,null,null,"Otras máquinas para usos generales y sus partes y piezas",null,null,null,null,null,null,{"$f":"C131&B131","v":"C8"}]
["2.1.2.01.01.003.02",7,"A",null,null,null,null,null,null,"Maquinaria para usos especiales",null,null,null,null,null,null,null,{"$f":"C132&B132","v":"A7"}]
["2.1.2.01.01.003.02.01",8,"C",null,null,null,null,null,null,null,"Maquinaria agropecuaria o silvícola y sus partes y piezas",null,null,null,null,null,null,{"$f":"C133&B133","v":"C8"}]
["2.1.2.01.01.003.02.02",8,"C",null,null,null,null,null,null,null,"Máquinas herramientas y sus partes, piezas y accesorios",null,null,null,null,null,null,{"$f":"C134&B134","v":"C8"}]
["2.1.2.01.01.003.02.03",8,"C",null,null,null,null,null,null,null,"Maquinaria para la industria metalúrgica y sus partes y piezas",null,null,null,null,null,null,{"$f":"C135&B135","v":"C8"}]
["2.1.2.01.01.003.02.04",8,"C",null,null,null,null,null,null,null,"Maquinaria para la minería, la explotación de canteras y la construcción y sus partes y piezas",null,null,null,null,null,null,{"$f":"C136&B136","v":"C8"}]
["2.1.2.01.01.003.02.05",8,"C",null,null,null,null,null,null,null,"Maquinaria para la elaboración de alimentos, bebidas y tabaco, y sus partes y piezas",null,null,null,null,null,null,{"$f":"C137&B137","v":"C8"}]
["2.1.2.01.01.003.02.06",8,"C",null,null,null,null,null,null,null,"Maquinaria para la fabricación de textiles, prendas de vestir y artículos de cuero, y sus partes y piezas",null,null,null,null,null,null,{"$f":"C138&B138","v":"C8"}]
["2.1.2.01.01.003.02.07",8,"C",null,null,null,null,null,null,null,"Aparatos de uso doméstico y sus partes y piezas",null,null,null,null,null,null,{"$f":"C139&B139","v":"C8"}]
["2.1.2.01.01.003.02.08",8,"C",null,null,null,null,null,null,null,"Otra maquinaria para usos especiales y sus partes y piezas",null,null,null,null,null,null,{"$f":"C140&B140","v":"C8"}]
["2.1.2.01.01.003.03",7,"A",null,null,null,null,null,null,"Maquinaria de oficina, contabilidad e informática",null,null,null,null,null,null,null,{"$f":"C141&B141","v":"A7"}]
["2.1.2.01.01.003.03.01",8,"C",null,null,null,null,null,null,null,"Máquinas para oficina y contabilidad, y sus partes y accesorios",null,null,null,null,null,null,{"$f":"C142&B142","v":"C8"}]
["2.1.2.01.01.003.03.02",8,"C",null,null,null,null,null,null,null,"Maquinaria de informática y sus partes, piezas y accesorios",null,null,null,null,null,null,{"$f":"C143&B143","v":"C8"}]
["2.1.2.01.01.003.04",7,"A",null,null,null,null,null,null,"Maquinaria y aparatos eléctricos",null,null,null,null,null,null,null,{"$f":"C144&B144","v":"A7"}]
["2.1.2.01.01.003.04.01",8,"C",null,null,null,null,null,null,null,"Motores, generadores y transformadores eléctricos y sus partes y piezas",null,null,null,null,null,null,{"$f":"C145&B145","v":"C8"}]
["2.1.2.01.01.003.04.02",8,"C",null,null,null,null,null,null,null,"Aparatos de control eléctrico y distribución de electricidad y sus partes y piezas",null,null,null,null,null,null,{"$f":"C146&B146","v":"C8"}]
["2.1.2.01.01.003.04.03",8,"C",null,null,null,null,null,null,null,"Hilos y cables aislados; cable de fibra óptica",null,null,null,null,null,null,{"$f":"C147&B147","v":"C8"}]
["2.1.2.01.01.003.04.04",8,"C",null,null,null,null,null,null,null,"Acumuladores, pilas y baterías primarias y sus partes y piezas",null,null,null,null,null,null,{"$f":"C148&B148","v":"C8"}]
["2.1.2.01.01.003.04.05",8,"C",null,null,null,null,null,null,null,"Lámparas eléctricas de incandescencia o descarga; lámparas de arco, equipo para alumbrado eléctrico; sus partes y piezas",null,null,null,null,null,null,{"$f":"C149&B149","v":"C8"}]
["2.1.2.01.01.003.04.06",8,"C",null,null,null,null,null,null,null,"Otro equipo eléctrico y sus partes y piezas",null,null,null,null,null,null,{"$f":"C150&B150","v":"C8"}]
["2.1.2.01.01.003.05",7,"A",null,null,null,null,null,null,"Equipo y aparatos de radio, televisión y comunicaciones",null,null,null,null,null,null,null,{"$f":"C151&B151","v":"A7"}]
["2.1.2.01.01.003.05.01",8,"C",null,null,null,null,null,null,null,"Válvulas y tubos electrónicos; componentes electrónicos; sus partes y piezas",null,null,null,null,null,null,{"$f":"C152&B152","v":"C8"}]
["2.1.2.01.01.003.05.02",8,"C",null,null,null,null,null,null,null,"Aparatos transmisores de televisión y radio; televisión, video y cámaras digitales; teléfonos",null,null,null,null,null,null,{"$f":"C153&B153","v":"C8"}]
["2.1.2.01.01.003.05.03",8,"C",null,null,null,null,null,null,null,"Radiorreceptores y receptores de televisión; aparatos para la grabación y reproducción de sonido y video; micrófonos, altavoces, amplificadores, etc.",null,null,null,null,null,null,{"$f":"C154&B154","v":"C8"}]
["2.1.2.01.01.003.05.04",8,"C",null,null,null,null,null,null,null,"Partes y piezas de los productos de las clases 4721 a 4733 y 4822",null,null,null,null,null,null,{"$f":"C155&B155","v":"C8"}]
["2.1.2.01.01.003.05.05",8,"C",null,null,null,null,null,null,null,"Discos, cintas, dispositivos de almacenamiento en estado sólido no volátiles y otros medios, no grabados",null,null,null,null,null,null,{"$f":"C156&B156","v":"C8"}]
["2.1.2.01.01.003.05.06",8,"C",null,null,null,null,null,null,null,"Grabaciones de audio, video y otros discos, cintas y otros medios físicos",null,null,null,null,null,null,{"$f":"C157&B157","v":"C8"}]
["2.1.2.01.01.003.05.07",8,"C",null,null,null,null,null,null,null,"Tarjetas con bandas magnéticas o plaquetas (chip)",null,null,null,null,null,null,{"$f":"C158&B158","v":"C8"}]
["2.1.2.01.01.003.06",7,"A",null,null,null,null,null,null,"Aparatos médicos, instrumentos ópticos y de precisión, relojes",null,null,null,null,null,null,null,{"$f":"C159&B159","v":"A7"}]
["2.1.2.01.01.003.06.01",8,"C",null,null,null,null,null,null,null,"Aparatos médicos y quirúrgicos y aparatos ortésicos y protésicos",null,null,null,null,null,null,{"$f":"C160&B160","v":"C8"}]
["2.1.2.01.01.003.06.02",8,"C",null,null,null,null,null,null,null,"Instrumentos y aparatos de medición, verificación, análisis, de navegación y para otros fines (excepto instrumentos ópticos); instrumentos de control de procesos industriales, sus partes, piezas y accesorios",null,null,null,null,null,null,{"$f":"C161&B161","v":"C8"}]
["2.1.2.01.01.003.06.03",8,"C",null,null,null,null,null,null,null,"Instrumentos ópticos y equipo fotográfico; partes, piezas y accesorios",null,null,null,null,null,null,{"$f":"C162&B162","v":"C8"}]
["2.1.2.01.01.003.06.04",8,"C",null,null,null,null,null,null,null,"Relojes y sus partes y piezas",null,null,null,null,null,null,{"$f":"C163&B163","v":"C8"}]
["2.1.2.01.01.003.07",7,"A",null,null,null,null,null,null,"Equipo de transporte",null,null,null,null,null,null,null,{"$f":"C164&B164","v":"A7"}]
["2.1.2.01.01.003.07.01",8,"C",null,null,null,null,null,null,null,"Vehículos automotores, remolques y semirremolques; y sus partes, piezas y accesorios",null,null,null,null,null,null,{"$f":"C165&B165","v":"C8"}]
["2.1.2.01.01.003.07.02",8,"C",null,null,null,null,null,null,null,"Carrocerías (incluso cabinas) para vehículos automotores; remolques y semirremolques; y sus partes, piezas y accesorios",null,null,null,null,null,null,{"$f":"C166&B166","v":"C8"}]
["2.1.2.01.01.003.07.03",8,"C",null,null,null,null,null,null,null,"Buques",null,null,null,null,null,null,{"$f":"C167&B167","v":"C8"}]
["2.1.2.01.01.003.07.04",8,"C",null,null,null,null,null,null,null,"Embarcaciones para deportes y recreo",null,null,null,null,null,null,{"$f":"C168&B168","v":"C8"}]
["2.1.2.01.01.003.07.05",8,"C",null,null,null,null,null,null,null,"Locomotoras y material rodante de ferrocarril y tranvía, y sus partes y piezas",null,null,null,null,null,null,{"$f":"C169&B169","v":"C8"}]
["2.1.2.01.01.003.07.06",8,"C",null,null,null,null,null,null,null,"Aeronaves y naves espaciales, y sus partes y piezas",null,null,null,null,null,null,{"$f":"C170&B170","v":"C8"}]
["2.1.2.01.01.003.07.07",8,"A",null,null,null,null,null,null,null,"Otro equipo de transporte, y sus partes y piezas",null,null,null,null,null,null,{"$f":"C171&B171","v":"A8"}]
["2.1.2.01.01.003.07.07.01",9,"C",null,null,null,null,null,null,null,null,"Motocicletas y sidecares (vehículos laterales a las motocicletas)",null,null,null,null,null,{"$f":"C172&B172","v":"C9"}]
["2.1.2.01.01.003.07.07.02",9,"C",null,null,null,null,null,null,null,null,"Bicicletas y sillones de ruedas para discapacitados",null,null,null,null,null,{"$f":"C173&B173","v":"C9"}]
["2.1.2.01.01.003.07.07.03",9,"C",null,null,null,null,null,null,null,null,"Vehículos n.c.p. sin propulsión mecánica",null,null,null,null,null,{"$f":"C174&B174","v":"C9"}]
["2.1.2.01.01.003.07.07.04",9,"C",null,null,null,null,null,null,null,null,"Partes y piezas para los productos de las clases 4991 y 4992",null,null,null,null,null,{"$f":"C175&B175","v":"C9"}]
["2.1.2.01.01.004",6,"A",null,null,null,null,null,"Activos fijos no clasificados como maquinaria y equipo",null,null,null,null,null,null,null,null,{"$f":"C176&B176","v":"A6"}]
["2.1.2.01.01.004.01",7,"A",null,null,null,null,null,null,"Muebles, instrumentos musicales, artículos de deporte y antigüedades",null,null,null,null,null,null,null,{"$f":"C177&B177","v":"A7"}]
["2.1.2.01.01.004.01.01",8,"A",null,null,null,null,null,null,null,"Muebles",null,null,null,null,null,null,{"$f":"C178&B178","v":"A8"}]
["2.1.2.01.01.004.01.01.01",9,"C",null,null,null,null,null,null,null,null,"Asientos",null,null,null,null,null,{"$f":"C179&B179","v":"C9"}]
["2.1.2.01.01.004.01.01.02",9,"C",null,null,null,null,null,null,null,null,"Muebles del tipo utilizado en la oficina",null,null,null,null,null,{"$f":"C180&B180","v":"C9"}]
["2.1.2.01.01.004.01.01.03",9,"C",null,null,null,null,null,null,null,null,"Muebles de madera, del tipo usado en la cocina",null,null,null,null,null,{"$f":"C181&B181","v":"C9"}]
["2.1.2.01.01.004.01.01.04",9,"C",null,null,null,null,null,null,null,null,"Otros muebles N.C.P.",null,null,null,null,null,{"$f":"C182&B182","v":"C9"}]
["2.1.2.01.01.004.01.01.05",9,"C",null,null,null,null,null,null,null,null,"Somieres, colchones con muebles, rellenos o guarnecidos interiormente con cualquier material, de caucho o plásticos celulares, recubiertos o no",null,null,null,null,null,{"$f":"C183&B183","v":"C9"}]
["2.1.2.01.01.004.01.01.06",9,"C",null,null,null,null,null,null,null,null,"Partes y piezas de muebles",null,null,null,null,null,{"$f":"C184&B184","v":"C9"}]
["2.1.2.01.01.004.01.02",8,"C",null,null,null,null,null,null,null,"Instrumentos musicales",null,null,null,null,null,null,{"$f":"C185&B185","v":"C8"}]
["2.1.2.01.01.004.01.03",8,"C",null,null,null,null,null,null,null,"Artículos de deporte",null,null,null,null,null,null,{"$f":"C186&B186","v":"C8"}]
["2.1.2.01.01.004.01.04",8,"C",null,null,null,null,null,null,null,"Antigüedades u otros objetos de arte",null,null,null,null,null,null,{"$f":"C187&B187","v":"C8"}]
["2.1.2.01.01.005",6,"A",null,null,null,null,null,"Otros activos fijos",null,null,null,null,null,null,null,null,{"$f":"C188&B188","v":"A6"}]
["2.1.2.01.01.005.01",7,"A",null,null,null,null,null,null,"Recursos biológicos cultivados",null,null,null,null,null,null,null,{"$f":"C189&B189","v":"A7"}]
["2.1.2.01.01.005.01.01",8,"A",null,null,null,null,null,null,null,"Recursos animales que generan productos en forma repetida  ",null,null,null,null,null,null,{"$f":"C190&B190","v":"A8"}]
["2.1.2.01.01.005.01.01.01",9,"C",null,null,null,null,null,null,null,null,"Animales de cría",null,null,null,null,null,{"$f":"C191&B191","v":"C9"}]
["2.1.2.01.01.005.01.01.02",9,"C",null,null,null,null,null,null,null,null,"Ganado lechero",null,null,null,null,null,{"$f":"C192&B192","v":"C9"}]
["2.1.2.01.01.005.01.01.03",9,"C",null,null,null,null,null,null,null,null,"Animales de tiro",null,null,null,null,null,{"$f":"C193&B193","v":"C9"}]
["2.1.2.01.01.005.01.01.04",9,"C",null,null,null,null,null,null,null,null,"Animales utilizados para la producción de lana",null,null,null,null,null,{"$f":"C194&B194","v":"C9"}]
["2.1.2.01.01.005.01.01.05",9,"C",null,null,null,null,null,null,null,null,"Animales empleados para el transporte",null,null,null,null,null,{"$f":"C195&B195","v":"C9"}]
["2.1.2.01.01.005.01.01.06",9,"C",null,null,null,null,null,null,null,null,"Animales empleados para las carreras",null,null,null,null,null,{"$f":"C196&B196","v":"C9"}]
["2.1.2.01.01.005.01.01.07",9,"C",null,null,null,null,null,null,null,null,"Animales empleados para el esparcimiento",null,null,null,null,null,{"$f":"C197&B197","v":"C9"}]
["2.1.2.01.01.005.01.01.08",9,"C",null,null,null,null,null,null,null,null,"Otros animales que generan productos en forma repetida",null,null,null,null,null,{"$f":"C198&B198","v":"C9"}]
["2.1.2.01.01.005.01.02",8,"A",null,null,null,null,null,null,null,"Árboles, cultivos y plantas que generan productos en forma repetida ",null,null,null,null,null,null,{"$f":"C199&B199","v":"A8"}]
["2.1.2.01.01.005.01.02.01",9,"C",null,null,null,null,null,null,null,null,"Árboles frutales",null,null,null,null,null,{"$f":"C200&B200","v":"C9"}]
["2.1.2.01.01.005.01.02.02",9,"C",null,null,null,null,null,null,null,null,"Árboles cultivados por sus nueces",null,null,null,null,null,{"$f":"C201&B201","v":"C9"}]
["2.1.2.01.01.005.01.02.03",9,"C",null,null,null,null,null,null,null,null,"Árboles cultivados por su savia",null,null,null,null,null,{"$f":"C202&B202","v":"C9"}]
["2.1.2.01.01.005.01.02.04",9,"C",null,null,null,null,null,null,null,null,"Árboles cultivados por su resina",null,null,null,null,null,{"$f":"C203&B203","v":"C9"}]
["2.1.2.01.01.005.01.02.05",9,"C",null,null,null,null,null,null,null,null,"Árboles cultivados por su corteza u hojas",null,null,null,null,null,{"$f":"C204&B204","v":"C9"}]
["2.1.2.01.01.005.01.02.06",9,"C",null,null,null,null,null,null,null,null,"Otros árboles, cultivos y plantas que generan productos en forma repetida",null,null,null,null,null,{"$f":"C205&B205","v":"C9"}]
["2.1.2.01.01.005.02",7,"A",null,null,null,null,null,null,"Productos de la propiedad intelectual",null,null,null,null,null,null,null,{"$f":"C206&B206","v":"A7"}]
["2.1.2.01.01.005.02.01",8,"C",null,null,null,null,null,null,null,"Investigación y desarrollo",null,null,null,null,null,null,{"$f":"C207&B207","v":"C8"}]
["2.1.2.01.01.005.02.03",8,"A",null,null,null,null,null,null,null,"Programas de informática y bases de datos",null,null,null,null,null,null,{"$f":"C208&B208","v":"A8"}]
["2.1.2.01.01.005.02.03.01",9,"A",null,null,null,null,null,null,null,null,"Programas de informática",null,null,null,null,null,{"$f":"C209&B209","v":"A9"}]
["2.1.2.01.01.005.02.03.01.01",10,"C",null,null,null,null,null,null,null,null,null,"Paquetes de software",null,null,null,null,{"$f":"C210&B210","v":"C10"}]
["2.1.2.01.01.005.02.03.01.02",10,"C",null,null,null,null,null,null,null,null,null,"Gastos de desarrollo",null,null,null,null,{"$f":"C211&B211","v":"C10"}]
["2.1.2.01.01.005.02.03.02",9,"C",null,null,null,null,null,null,null,null,"Bases de datos",null,null,null,null,null,{"$f":"C212&B212","v":"C9"}]
["2.1.2.01.01.005.02.04",8,"C",null,null,null,null,null,null,null,"Originales de entretenimiento, literatura y arte",null,null,null,null,null,null,{"$f":"C213&B213","v":"C8"}]
["2.1.2.01.01.005.02.05",8,"C",null,null,null,null,null,null,null,"Otros productos de propiedad intelectual",null,null,null,null,null,null,{"$f":"C214&B214","v":"C8"}]
["2.1.2.01.02",5,"A",null,null,null,null,"Objetos de valor",null,null,null,null,null,null,null,null,null,{"$f":"C215&B215","v":"A5"}]
["2.1.2.01.02.001",6,"C",null,null,null,null,null,"Joyas y artículos conexos",null,null,null,null,null,null,null,null,{"$f":"C216&B216","v":"C6"}]
["2.1.2.01.02.002",6,"C",null,null,null,null,null,"Antigüedades u otros objetos de arte",null,null,null,null,null,null,null,null,{"$f":"C217&B217","v":"C6"}]
["2.1.2.01.02.003",6,"C",null,null,null,null,null,"Otros objetos valiosos",null,null,null,null,null,null,null,null,{"$f":"C218&B218","v":"C6"}]
["2.1.2.01.03",5,"A",null,null,null,null,"Activos no producidos",null,null,null,null,null,null,null,null,null,{"$f":"C219&B219","v":"A5"}]
["2.1.2.01.03.001",6,"C",null,null,null,null,null,"Tierras y terrenos",null,null,null,null,null,null,null,null,{"$f":"C220&B220","v":"C6"}]
["2.1.2.01.03.002",6,"C",null,null,null,null,null,"Recursos biológicos no cultivados",null,null,null,null,null,null,null,null,{"$f":"C221&B221","v":"C6"}]
["2.1.2.02",4,"A",null,null,null,"Adquisiciones diferentes de activos",null,null,null,null,null,null,null,null,null,null,{"$f":"C222&B222","v":"A4"}]
["2.1.2.02.01",5,"A",null,null,null,null,"Materiales y suministros",null,null,null,null,null,null,null,null,null,{"$f":"C223&B223","v":"A5"}]
["2.1.2.02.01.000",6,"C",null,null,null,null,null,"Agricultura, silvicultura y productos de la pesca",null,null,null,null,null,null,null,null,{"$f":"C224&B224","v":"C6"}]
["2.1.2.02.01.001",6,"C",null,null,null,null,null,"Minerales; electricidad, gas y agua",null,null,null,null,null,null,null,null,{"$f":"C225&B225","v":"C6"}]
["2.1.2.02.01.002",6,"C",null,null,null,null,null,"Productos alimenticios, bebidas y tabaco; textiles, prendas de vestir y productos de cuero",null,null,null,null,null,null,null,null,{"$f":"C226&B226","v":"C6"}]
["2.1.2.02.01.003",6,"C",null,null,null,null,null,"Otros bienes transportables (excepto productos metálicos, maquinaria y equipo)",null,null,null,null,null,null,null,null,{"$f":"C227&B227","v":"C6"}]
["2.1.2.02.01.004",6,"C",null,null,null,null,null,"Productos metálicos y paquetes de software",null,null,null,null,null,null,null,null,{"$f":"C228&B228","v":"C6"}]
["2.1.2.02.02",5,"A",null,null,null,null,"Adquisición de servicios",null,null,null,null,null,null,null,null,null,{"$f":"C229&B229","v":"A5"}]
["2.1.2.02.02.005",6,"C",null,null,null,null,null,"Servicios de la construcción",null,null,null,null,null,null,null,null,{"$f":"C230&B230","v":"C6"}]
["2.1.2.02.02.006",6,"C",null,null,null,null,null,"Servicios de alojamiento; servicios de suministro de comidas y bebidas; servicios de transporte; y servicios de distribución de electricidad, gas y agua",null,null,null,null,null,null,null,null,{"$f":"C231&B231","v":"C6"}]
["2.1.2.02.02.007",6,"C",null,null,null,null,null,"Servicios financieros y servicios conexos, servicios inmobiliarios y servicios de leasing",null,null,null,null,null,null,null,null,{"$f":"C232&B232","v":"C6"}]
["2.1.2.02.02.008",6,"C",null,null,null,null,null,"Servicios prestados a las empresas y servicios de producción ",null,null,null,null,null,null,null,null,{"$f":"C233&B233","v":"C6"}]
["2.1.2.02.02.009",6,"C",null,null,null,null,null,"Servicios para la comunidad, sociales y personales",null,null,null,null,null,null,null,null,{"$f":"C234&B234","v":"C6"}]
["2.1.2.02.02.010",6,"C",null,null,null,null,null,"Viáticos de los funcionarios en comisión",null,null,null,null,null,null,null,null,{"$f":"C235&B235","v":"C6"}]
["2.1.3",3,"A",null,null,"Transferencias corrientes",null,null,null,null,null,null,null,null,null,null,null,{"$f":"C236&B236","v":"A3"}]
["2.1.3.04",4,"A",null,null,null,"A organizaciones nacionales",null,null,null,null,null,null,null,null,null,null,{"$f":"C237&B237","v":"A4"}]
["2.1.3.04.01",5,"A",null,null,null,null,"Federación Nacional de Departamentos",null,null,null,null,null,null,null,null,null,{"$f":"C238&B238","v":"A5"}]
["2.1.3.04.01.001",6,"C",null,null,null,null,null,"Membresías",null,null,null,null,null,null,null,null,{"$f":"C239&B239","v":"C6"}]
["2.1.3.04.01.002",6,"C",null,null,null,null,null,"Distintas a membresías",null,null,null,null,null,null,null,null,{"$f":"C240&B240","v":"C6"}]
["2.1.3.04.02",5,"A",null,null,null,null,"Federación Nacional de Municipios",null,null,null,null,null,null,null,null,null,{"$f":"C241&B241","v":"A5"}]
["2.1.3.04.02.001",6,"C",null,null,null,null,null,"Membresías",null,null,null,null,null,null,null,null,{"$f":"C242&B242","v":"C6"}]
["2.1.3.04.02.002",6,"C",null,null,null,null,null,"Distintas a membresías",null,null,null,null,null,null,null,null,{"$f":"C243&B243","v":"C6"}]
["2.1.3.04.04",5,"A",null,null,null,null,"Asociación Colombiana de Ciudades Capitales",null,null,null,null,null,null,null,null,null,{"$f":"C244&B244","v":"A5"}]
["2.1.3.04.04.001",6,"C",null,null,null,null,null,"Membresías",null,null,null,null,null,null,null,null,{"$f":"C245&B245","v":"C6"}]
["2.1.3.04.04.002",6,"C",null,null,null,null,null,"Distintas a membresías",null,null,null,null,null,null,null,null,{"$f":"C246&B246","v":"C6"}]
["2.1.3.04.05",5,"A",null,null,null,null,"A otras organizaciones nacionales",null,null,null,null,null,null,null,null,null,{"$f":"C247&B247","v":"A5"}]
["2.1.3.04.05.001",6,"C",null,null,null,null,null,"Membresías",null,null,null,null,null,null,null,null,{"$f":"C248&B248","v":"C6"}]
["2.1.3.04.05.002",6,"C",null,null,null,null,null,"Distintas a membresías",null,null,null,null,null,null,null,null,{"$f":"C249&B249","v":"C6"}]
["2.1.3.05",4,"A",null,null,null,"A entidades del gobierno",null,null,null,null,null,null,null,null,null,null,{"$f":"C250&B250","v":"A4"}]
["2.1.3.05.04",5,"A",null,null,null,null,"Participaciones distintas del SGP",null,null,null,null,null,null,null,null,null,{"$f":"C251&B251","v":"A5"}]
["2.1.3.05.04.001",6,"A",null,null,null,null,null,"Participaciones de impuestos",null,null,null,null,null,null,null,null,{"$f":"C252&B252","v":"A6"}]
["2.1.3.05.04.001.02",7,"C",null,null,null,null,null,null,"Participación del Impuesto sobre vehículos automotores",null,null,null,null,null,null,null,{"$f":"C253&B253","v":"C7"}]
["2.1.3.05.04.001.03",7,"C",null,null,null,null,null,null,"Participación Providencia",null,null,null,null,null,null,null,{"$f":"C254&B254","v":"C7"}]
["2.1.3.05.04.001.04",7,"C",null,null,null,null,null,null,"Participación de la Sobretasa al consumo de cigarrillos y tabaco elaborado",null,null,null,null,null,null,null,{"$f":"C255&B255","v":"C7"}]
["2.1.3.05.04.001.05",7,"C",null,null,null,null,null,null,"Participación del Impuesto de registro ",null,null,null,null,null,null,null,{"$f":"C256&B256","v":"C7"}]
["2.1.3.05.04.001.06",7,"C",null,null,null,null,null,null,"Participación del Impuesto adicional del 10% a las cajetillas de cigarrillos nacionales",null,null,null,null,null,null,null,{"$f":"C257&B257","v":"C7"}]
["2.1.3.05.04.001.07",7,"C",null,null,null,null,null,null,"Participación del Impuesto al consumo de cigarrillos y tabaco ",null,null,null,null,null,null,null,{"$f":"C258&B258","v":"C7"}]
["2.1.3.05.04.001.08",7,"C",null,null,null,null,null,null,"Participación del Impuesto al degüello de ganado mayor (en los términos que lo defina la Ordenanza)",null,null,null,null,null,null,null,{"$f":"C259&B259","v":"C7"}]
["2.1.3.05.04.001.13",7,"A",null,null,null,null,null,null,"Participación de la sobretasa ambiental",null,null,null,null,null,null,null,{"$f":"C260&B260","v":"A7"}]
["2.1.3.05.04.001.13.01",8,"C",null,null,null,null,null,null,null,"Transferencia de la sobretasa ambiental a las Corporaciones Autónomas Regionales",null,null,null,null,null,null,{"$f":"C261&B261","v":"C8"}]
["2.1.3.05.04.001.13.02",8,"C",null,null,null,null,null,null,null,"Transferencia de la sobretasa ambiental a las Áreas Metropolitanas",null,null,null,null,null,null,{"$f":"C262&B262","v":"C8"}]
["2.1.3.05.04.001.14",7,"C",null,null,null,null,null,null,"Participación sobretasa a la gasolina - Fondo Subsidio Sobretasa a la Gasolina",null,null,null,null,null,null,null,{"$f":"C263&B263","v":"C7"}]
["2.1.3.05.04.001.15",7,"C",null,null,null,null,null,null,"Participación ambiental del recaudo del impuesto predial",null,null,null,null,null,null,null,{"$f":"C264&B264","v":"C7"}]
["2.1.3.05.04.001.16",7,"C",null,null,null,null,null,null,"Participación en Estampillas",null,null,null,null,null,null,null,{"$f":"C265&B265","v":"C7"}]
["2.1.3.05.04.002",6,"A",null,null,null,null,null,"Participaciones de Contribuciones",null,null,null,null,null,null,null,null,{"$f":"C266&B266","v":"A6"}]
["2.1.3.05.04.002.01",7,"C",null,null,null,null,null,null,"Participación de aportes solidarios o contribuciones de solidaridad de servicios públicos",null,null,null,null,null,null,null,{"$f":"C267&B267","v":"C7"}]
["2.1.3.05.04.003",6,"A",null,null,null,null,null,"Participaciones de multas, sanciones e intereses moratorios",null,null,null,null,null,null,null,null,{"$f":"C268&B268","v":"A6"}]
["2.1.3.05.04.003.01",7,"C",null,null,null,null,null,null,"Participación de sanciones del impuesto sobre vehículos automotores",null,null,null,null,null,null,null,{"$f":"C269&B269","v":"C7"}]
["2.1.3.05.04.003.02",7,"C",null,null,null,null,null,null,"Participación de intereses de mora sobre el impuesto sobre vehículos automotores",null,null,null,null,null,null,null,{"$f":"C270&B270","v":"C7"}]
["2.1.3.05.04.003.03",7,"C",null,null,null,null,null,null,"Participación de intereses de mora sobre la sobretasa ambiental",null,null,null,null,null,null,null,{"$f":"C271&B271","v":"C7"}]
["2.1.3.05.08",5,"C",null,null,null,null,"A esquemas asociativos",null,null,null,null,null,null,null,null,null,{"$f":"C272&B272","v":"C5"}]
["2.1.3.05.09",5,"A",null,null,null,null,"A otras entidades del gobierno general",null,null,null,null,null,null,null,null,null,{"$f":"C273&B273","v":"A5"}]
["2.1.3.05.09.015",6,"C",null,null,null,null,null,"A universidades para funcionamiento Ley 30 de 1992 artículo 86",null,null,null,null,null,null,null,null,{"$f":"C274&B274","v":"C6"}]
["2.1.3.07.02",5,"A",null,null,null,null,"Prestaciones sociales relacionadas con el empleo",null,null,null,null,null,null,null,null,null,{"$f":"C275&B275","v":"A5"}]
["2.1.3.07.02.001",6,"A",null,null,null,null,null,"Mesadas pensionales (de pensiones)",null,null,null,null,null,null,null,null,{"$f":"C276&B276","v":"A6"}]
["2.1.3.07.02.001.01",7,"C",null,null,null,null,null,null,"Mesadas pensionales con cargo a reservas (de pensiones)",null,null,null,null,null,null,null,{"$f":"C277&B277","v":"C7"}]
["2.1.3.07.02.001.02",7,"C",null,null,null,null,null,null,"Mesadas pensionales a cargo de la entidad (de pensiones)",null,null,null,null,null,null,null,{"$f":"C278&B278","v":"C7"}]
["2.1.3.07.02.002",6,"A",null,null,null,null,null,"Cuotas partes pensionales (de pensiones)",null,null,null,null,null,null,null,null,{"$f":"C279&B279","v":"A6"}]
["2.1.3.07.02.002.01",7,"C",null,null,null,null,null,null,"Cuotas partes pensionales con cargo a reservas (de pensiones)",null,null,null,null,null,null,null,{"$f":"C280&B280","v":"C7"}]
["2.1.3.07.02.002.02",7,"C",null,null,null,null,null,null,"Cuotas partes pensionales a cargo de la entidad (de pensiones)",null,null,null,null,null,null,null,{"$f":"C281&B281","v":"C7"}]
["2.1.3.07.02.005",6,"C",null,null,null,null,null,"Fondo Nacional de Prestaciones Sociales del Magisterio (de pensiones)",null,null,null,null,null,null,null,null,{"$f":"C282&B282","v":"C6"}]
["2.1.3.07.02.013",6,"C",null,null,null,null,null,"Aporte previsión social servicios médicos (no de pensiones)",null,null,null,null,null,null,null,null,{"$f":"C283&B283","v":"C6"}]
["2.1.3.07.02.019",6,"C",null,null,null,null,null,"Servicios médicos convencionales (no de pensiones)",null,null,null,null,null,null,null,null,{"$f":"C284&B284","v":"C6"}]
["2.1.3.07.02.023",6,"C",null,null,null,null,null,"Indemnizaciones (no de pensiones)",null,null,null,null,null,null,null,null,{"$f":"C285&B285","v":"C6"}]
["2.1.3.07.02.030",6,"C",null,null,null,null,null,"Auxilio sindical (no de pensiones)",null,null,null,null,null,null,null,null,{"$f":"C286&B286","v":"C6"}]
["2.1.3.07.02.031",6,"C",null,null,null,null,null,"Programa de salud ocupacional (no de pensiones)",null,null,null,null,null,null,null,null,{"$f":"C287&B287","v":"C6"}]
["2.1.3.11.02",5,"A",null,null,null,null,"Sistema general de pensiones ",null,null,null,null,null,null,null,null,null,{"$f":"C288&B288","v":"A5"}]
["2.1.3.11.02.001",6,"A",null,null,null,null,null,"Capitalización de patrimonios autónomos pensionales ",null,null,null,null,null,null,null,null,{"$f":"C289&B289","v":"A6"}]
["2.1.3.11.02.001.01",7,"C",null,null,null,null,null,null,"Capitalización del Fondo Nacional de Prestaciones Sociales del Magisterio (FOMAG)",null,null,null,null,null,null,null,{"$f":"C290&B290","v":"C7"}]
["2.1.3.11.02.001.02",7,"C",null,null,null,null,null,null,"Capitalización de otros patrimonios autónomos pensionales",null,null,null,null,null,null,null,{"$f":"C291&B291","v":"C7"}]
["2.1.3.13",4,"A",null,null,null,"Sentencias y conciliaciones",null,null,null,null,null,null,null,null,null,null,{"$f":"C292&B292","v":"A4"}]
["2.1.3.13.01",5,"A",null,null,null,null,"Fallos nacionales",null,null,null,null,null,null,null,null,null,{"$f":"C293&B293","v":"A5"}]
["2.1.3.13.01.001",6,"C",null,null,null,null,null,"Sentencias",null,null,null,null,null,null,null,null,{"$f":"C294&B294","v":"C6"}]
["2.1.3.13.01.002",6,"C",null,null,null,null,null,"Conciliaciones",null,null,null,null,null,null,null,null,{"$f":"C295&B295","v":"C6"}]
["2.1.3.13.01.003",6,"C",null,null,null,null,null,"Laudos arbitrales",null,null,null,null,null,null,null,null,{"$f":"C296&B296","v":"C6"}]
["2.1.3.14",4,"A",null,null,null,"Aportes al FONPET",null,null,null,null,null,null,null,null,null,null,{"$f":"C297&B297","v":"A4"}]
["2.1.3.14.01",5,"C",null,null,null,null,"Del impuesto de registro",null,null,null,null,null,null,null,null,null,{"$f":"C298&B298","v":"C5"}]
["2.1.3.14.02",5,"C",null,null,null,null,"De los ingresos corrientes de los departamentos",null,null,null,null,null,null,null,null,null,{"$f":"C299&B299","v":"C5"}]
["2.1.3.14.03",5,"C",null,null,null,null,"Por la venta de activos",null,null,null,null,null,null,null,null,null,{"$f":"C300&B300","v":"C5"}]
["2.1.3.14.04",5,"C",null,null,null,null,"Por acuerdos de pago",null,null,null,null,null,null,null,null,null,{"$f":"C301&B301","v":"C5"}]
["2.1.3.14.05",5,"C",null,null,null,null,"Aportes voluntarios",null,null,null,null,null,null,null,null,null,{"$f":"C302&B302","v":"C5"}]
["2.1.4",3,"A",null,null,"Transferencias de capital",null,null,null,null,null,null,null,null,null,null,null,{"$f":"C303&B303","v":"A3"}]
["2.1.4.01",4,"A",null,null,null,"Gobiernos y organizaciones internacionales",null,null,null,null,null,null,null,null,null,null,{"$f":"C304&B304","v":"A4"}]
["2.1.4.02",4,"A",null,null,null,"Entidades del gobierno general",null,null,null,null,null,null,null,null,null,null,{"$f":"C305&B305","v":"A4"}]
["2.1.4.02.01",5,"C",null,null,null,null,"Órganos del PGN",null,null,null,null,null,null,null,null,null,{"$f":"C306&B306","v":"C5"}]
["2.1.4.02.02",5,"C",null,null,null,null,"Entidades territoriales distintas de participaciones y compensaciones",null,null,null,null,null,null,null,null,null,{"$f":"C307&B307","v":"C5"}]
["2.1.4.02.03",5,"C",null,null,null,null,"Esquemas asociativos",null,null,null,null,null,null,null,null,null,{"$f":"C308&B308","v":"C5"}]
["2.1.4.02.04",5,"C",null,null,null,null,"Entidades del gobierno general",null,null,null,null,null,null,null,null,null,{"$f":"C309&B309","v":"C5"}]
["2.1.4.03",4,"C",null,null,null,"Compensaciones de capital ",null,null,null,null,null,null,null,null,null,null,{"$f":"C310&B310","v":"C4"}]
["2.1.4.04",4,"C",null,null,null,"Para la adquisición de activos no financieros ",null,null,null,null,null,null,null,null,null,null,{"$f":"C311&B311","v":"C4"}]
["2.1.4.05",4,"C",null,null,null,"Financiamiento de grandes déficit de los últimos años",null,null,null,null,null,null,null,null,null,null,{"$f":"C312&B312","v":"C4"}]
["2.1.5",3,"A",null,null,"Gastos de comercialización y producción",null,null,null,null,null,null,null,null,null,null,null,{"$f":"C313&B313","v":"A3"}]
["2.1.5.01",4,"A",null,null,null,"Materiales y suministros",null,null,null,null,null,null,null,null,null,null,{"$f":"C314&B314","v":"A4"}]
["2.1.5.01.00",5,"C",null,null,null,null,"Agricultura, silvicultura y productos de la pesca",null,null,null,null,null,null,null,null,null,{"$f":"C315&B315","v":"C5"}]
["2.1.5.01.01",5,"C",null,null,null,null,"Minerales; electricidad, gas y agua",null,null,null,null,null,null,null,null,null,{"$f":"C316&B316","v":"C5"}]
["2.1.5.01.02",5,"C",null,null,null,null,"Productos alimenticios, bebidas y tabaco; textiles, prendas de vestir y productos de cuero",null,null,null,null,null,null,null,null,null,{"$f":"C317&B317","v":"C5"}]
["2.1.5.01.03",5,"C",null,null,null,null,"Otros bienes transportables (excepto productos metálicos, maquinaria y equipo)",null,null,null,null,null,null,null,null,null,{"$f":"C318&B318","v":"C5"}]
["2.1.5.01.04",5,"C",null,null,null,null,"Productos metálicos, maquinaria y equipo",null,null,null,null,null,null,null,null,null,{"$f":"C319&B319","v":"C5"}]
["2.1.5.02",4,"A",null,null,null,"Adquisición de servicios",null,null,null,null,null,null,null,null,null,null,{"$f":"C320&B320","v":"A4"}]
["2.1.5.02.05",5,"C",null,null,null,null,"Servicios de la construcción",null,null,null,null,null,null,null,null,null,{"$f":"C321&B321","v":"C5"}]
["2.1.5.02.06",5,"C",null,null,null,null,"Servicios de alojamiento; servicios de suministro de comidas y bebidas; servicios de transporte; y servicios de distribución de electricidad, gas y agua",null,null,null,null,null,null,null,null,null,{"$f":"C322&B322","v":"C5"}]
["2.1.5.02.07",5,"C",null,null,null,null,"Servicios financieros y servicios conexos, servicios inmobiliarios y servicios de leasing",null,null,null,null,null,null,null,null,null,{"$f":"C323&B323","v":"C5"}]
["2.1.5.02.08",5,"C",null,null,null,null,"Servicios prestados a las empresas y servicios de producción ",null,null,null,null,null,null,null,null,null,{"$f":"C324&B324","v":"C5"}]
["2.1.5.02.09",5,"C",null,null,null,null,"Servicios para la comunidad, sociales y personales",null,null,null,null,null,null,null,null,null,{"$f":"C325&B325","v":"C5"}]
["2.1.6",3,"A",null,null,"Adquisición de activos financieros",null,null,null,null,null,null,null,null,null,null,null,{"$f":"C326&B326","v":"A3"}]
["2.1.6.01",4,"A",null,null,null,"Concesión de préstamos",null,null,null,null,null,null,null,null,null,null,{"$f":"C327&B327","v":"A4"}]
["2.1.6.01.02",5,"C",null,null,null,null,"A establecimientos públicos",null,null,null,null,null,null,null,null,null,{"$f":"C328&B328","v":"C5"}]
["2.1.6.01.03",5,"C",null,null,null,null,"A otras entidades del gobierno general",null,null,null,null,null,null,null,null,null,{"$f":"C329&B329","v":"C5"}]
["2.1.6.01.04",5,"A",null,null,null,null,"A personas naturales",null,null,null,null,null,null,null,null,null,{"$f":"C330&B330","v":"A5"}]
["2.1.6.01.04.003",6,"C",null,null,null,null,null,"Fondo de préstamos",null,null,null,null,null,null,null,null,{"$f":"C331&B331","v":"C6"}]
["2.1.6.01.04.004",6,"C",null,null,null,null,null,"Préstamos por calamidad doméstica ",null,null,null,null,null,null,null,null,{"$f":"C332&B332","v":"C6"}]
["2.1.6.01.04.009",6,"C",null,null,null,null,null,"Préstamos educativos",null,null,null,null,null,null,null,null,{"$f":"C333&B333","v":"C6"}]
["2.1.6.02",4,"A",null,null,null,"Adquisición de acciones",null,null,null,null,null,null,null,null,null,null,{"$f":"C334&B334","v":"A4"}]
["2.1.6.03",4,"A",null,null,null,"Adquisición de otras participaciones de capital",null,null,null,null,null,null,null,null,null,null,{"$f":"C335&B335","v":"A4"}]
["2.1.6.03.03",5,"A",null,null,null,null,"En empresas públicas no financieras",null,null,null,null,null,null,null,null,null,{"$f":"C336&B336","v":"A5"}]
["2.1.6.03.03.001",6,"C",null,null,null,null,null,"Capitalización para el fortalecimiento de los canales públicos de televisión",null,null,null,null,null,null,null,null,{"$f":"C337&B337","v":"C6"}]
["2.1.7",3,"A",null,null,"Disminución de pasivos",null,null,null,null,null,null,null,null,null,null,null,{"$f":"C338&B338","v":"A3"}]
["2.1.7.01",4,"A",null,null,null,"Cesantías",null,null,null,null,null,null,null,null,null,null,{"$f":"C339&B339","v":"A4"}]
["2.1.7.01.01",5,"C",null,null,null,null,"Cesantías definitivas",null,null,null,null,null,null,null,null,null,{"$f":"C340&B340","v":"C5"}]
["2.1.7.01.02",5,"C",null,null,null,null,"Cesantías parciales",null,null,null,null,null,null,null,null,null,{"$f":"C341&B341","v":"C5"}]
["2.1.7.04",4,"C",null,null,null,"Devoluciones tributarias",null,null,null,null,null,null,null,null,null,null,{"$f":"C342&B342","v":"C4"}]
["2.1.7.05",4,"A",null,null,null,"Programas de saneamiento fiscal y financiero",null,null,null,null,null,null,null,null,null,null,{"$f":"C343&B343","v":"A4"}]
["2.1.7.05.01",5,"C",null,null,null,null,"Programas de saneamiento fiscal y financiero Empresas Sociales del Estado (ESE)",null,null,null,null,null,null,null,null,null,{"$f":"C344&B344","v":"C5"}]
["2.1.7.05.02",5,"C",null,null,null,null,"Pago de indemnizaciones originadas en programas de saneamiento fiscal y financiero",null,null,null,null,null,null,null,null,null,{"$f":"C345&B345","v":"C5"}]
["2.1.7.05.03",5,"C",null,null,null,null,"Pago de déficit fiscal, de pasivo laboral y prestacional en programas de saneamiento fiscal y financiero",null,null,null,null,null,null,null,null,null,{"$f":"C346&B346","v":"C5"}]
["2.1.7.05.04",5,"C",null,null,null,null,"Causado con anterioridad al 31 de diciembre de 2000",null,null,null,null,null,null,null,null,null,{"$f":"C347&B347","v":"C5"}]
["2.1.7.05.05",5,"C",null,null,null,null,"Causado después del 31 de diciembre de 2000",null,null,null,null,null,null,null,null,null,{"$f":"C348&B348","v":"C5"}]
["2.1.8",3,"A",null,null,"Gastos por tributos, multas, sanciones e intereses de mora",null,null,null,null,null,null,null,null,null,null,null,{"$f":"C349&B349","v":"A3"}]
["2.1.8.01",4,"A",null,null,null,"Impuestos",null,null,null,null,null,null,null,null,null,null,{"$f":"C350&B350","v":"A4"}]
["2.1.8.01.01",5,"C",null,null,null,null,"Impuesto sobre la renta y complementarios",null,null,null,null,null,null,null,null,null,{"$f":"C351&B351","v":"C5"}]
["2.1.8.01.02",5,"C",null,null,null,null,"Impuesto sobre la renta para la equidad CREE",null,null,null,null,null,null,null,null,null,{"$f":"C352&B352","v":"C5"}]
["2.1.8.01.03",5,"C",null,null,null,null,"Sobretasa CREE",null,null,null,null,null,null,null,null,null,{"$f":"C353&B353","v":"C5"}]
["2.1.8.01.04",5,"C",null,null,null,null,"Impuesto para preservar la seguridad democrática",null,null,null,null,null,null,null,null,null,{"$f":"C354&B354","v":"C5"}]
["2.1.8.01.05",5,"C",null,null,null,null,"Impuesto al patrimonio",null,null,null,null,null,null,null,null,null,{"$f":"C355&B355","v":"C5"}]
["2.1.8.01.06",5,"C",null,null,null,null,"Impuesto al patrimonio (Decreto legislativo 4825/2010)",null,null,null,null,null,null,null,null,null,{"$f":"C356&B356","v":"C5"}]
["2.1.8.01.07",5,"C",null,null,null,null,"Sobretasa impuesto al patrimonio (Decreto legislativo 4825/2010)",null,null,null,null,null,null,null,null,null,{"$f":"C357&B357","v":"C5"}]
["2.1.8.01.08",5,"C",null,null,null,null,"Impuesto a la riqueza",null,null,null,null,null,null,null,null,null,{"$f":"C358&B358","v":"C5"}]
["2.1.8.01.09",5,"C",null,null,null,null,"Impuesto nacional al consumo",null,null,null,null,null,null,null,null,null,{"$f":"C359&B359","v":"C5"}]
["2.1.8.01.10",5,"C",null,null,null,null,"Impuesto de remate y adjudicaciones",null,null,null,null,null,null,null,null,null,{"$f":"C360&B360","v":"C5"}]
["2.1.8.01.51",5,"C",null,null,null,null,"Impuesto sobre vehículos automotores",null,null,null,null,null,null,null,null,null,{"$f":"C361&B361","v":"C5"}]
["2.1.8.01.52",5,"C",null,null,null,null,"Impuesto predial unificado",null,null,null,null,null,null,null,null,null,{"$f":"C362&B362","v":"C5"}]
["2.1.8.01.53",5,"C",null,null,null,null,"Impuesto de registro",null,null,null,null,null,null,null,null,null,{"$f":"C363&B363","v":"C5"}]
["2.1.8.01.54",5,"C",null,null,null,null,"Impuesto de industria y comercio",null,null,null,null,null,null,null,null,null,{"$f":"C364&B364","v":"C5"}]
["2.1.8.01.55",5,"C",null,null,null,null,"Impuesto sobre delineación urbana",null,null,null,null,null,null,null,null,null,{"$f":"C365&B365","v":"C5"}]
["2.1.8.01.56",5,"C",null,null,null,null,"Impuesto de alumbrado público",null,null,null,null,null,null,null,null,null,{"$f":"C366&B366","v":"C5"}]
["2.1.8.03",4,"A",null,null,null,"Tasas y derechos administrativos",null,null,null,null,null,null,null,null,null,null,{"$f":"C367&B367","v":"A4"}]
["2.1.8.03.01",5,"C",null,null,null,null,"Contribución de vigilancia - Superintendencia Nacional de Salud",null,null,null,null,null,null,null,null,null,{"$f":"C368&B368","v":"C5"}]
["2.1.8.03.03",5,"C",null,null,null,null,"Certificados catastrales",null,null,null,null,null,null,null,null,null,{"$f":"C369&B369","v":"C5"}]
["2.1.8.04",4,"A",null,null,null,"Contribuciones",null,null,null,null,null,null,null,null,null,null,{"$f":"C370&B370","v":"A4"}]
["2.1.8.04.01",5,"C",null,null,null,null,"Cuota de fiscalización y auditaje",null,null,null,null,null,null,null,null,null,{"$f":"C371&B371","v":"C5"}]
["2.1.8.04.02",5,"C",null,null,null,null,"Contribución - Superintendencia Financiera de Colombia",null,null,null,null,null,null,null,null,null,{"$f":"C372&B372","v":"C5"}]
["2.1.8.04.03",5,"C",null,null,null,null,"Contribución de valorización",null,null,null,null,null,null,null,null,null,{"$f":"C373&B373","v":"C5"}]
["2.1.8.04.04",5,"C",null,null,null,null,"Contribución sector eléctrico",null,null,null,null,null,null,null,null,null,{"$f":"C374&B374","v":"C5"}]
["2.1.8.05",4,"A",null,null,null,"Multas, sanciones e intereses de mora",null,null,null,null,null,null,null,null,null,null,{"$f":"C375&B375","v":"A4"}]
["2.1.8.05.01",5,"A",null,null,null,null,"Multas y sanciones",null,null,null,null,null,null,null,null,null,{"$f":"C376&B376","v":"A5"}]
["2.1.8.05.01.001",6,"C",null,null,null,null,null,"Multas Superintendencias",null,null,null,null,null,null,null,null,{"$f":"C377&B377","v":"C6"}]
["2.1.8.05.02",5,"C",null,null,null,null,"Intereses de mora",null,null,null,null,null,null,null,null,null,{"$f":"C378&B378","v":"C5"}]
["2.2",2,"A",null,"Servicio de la deuda pública",null,null,null,null,null,null,null,null,null,null,null,null,{"$f":"C379&B379","v":"A2"}]
["2.2.1",3,"A",null,null,"Servicio de la deuda pública externa",null,null,null,null,null,null,null,null,null,null,null,{"$f":"C380&B380","v":"A3"}]
["2.2.1.01",4,"A",null,null,null,"Principal",null,null,null,null,null,null,null,null,null,null,{"$f":"C381&B381","v":"A4"}]
["2.2.1.01.01",5,"A",null,null,null,null,"Títulos de deuda",null,null,null,null,null,null,null,null,null,{"$f":"C382&B382","v":"A5"}]
["2.2.1.01.01.001",6,"C",null,null,null,null,null,"Títulos valores",null,null,null,null,null,null,null,null,{"$f":"C383&B383","v":"C6"}]
["2.2.1.01.02",5,"A",null,null,null,null,"Préstamos",null,null,null,null,null,null,null,null,null,{"$f":"C384&B384","v":"A5"}]
["2.2.1.01.02.001",6,"C",null,null,null,null,null,"Banca comercial",null,null,null,null,null,null,null,null,{"$f":"C385&B385","v":"C6"}]
["2.2.1.01.02.002",6,"C",null,null,null,null,null,"Banca de fomento ",null,null,null,null,null,null,null,null,{"$f":"C386&B386","v":"C6"}]
["2.2.1.01.02.003",6,"C",null,null,null,null,null,"Gobiernos",null,null,null,null,null,null,null,null,{"$f":"C387&B387","v":"C6"}]
["2.2.1.01.02.004",6,"C",null,null,null,null,null,"Organismos multilaterales",null,null,null,null,null,null,null,null,{"$f":"C388&B388","v":"C6"}]
["2.2.1.02",4,"A",null,null,null,"Intereses",null,null,null,null,null,null,null,null,null,null,{"$f":"C389&B389","v":"A4"}]
["2.2.1.02.01",5,"A",null,null,null,null,"Títulos de deuda",null,null,null,null,null,null,null,null,null,{"$f":"C390&B390","v":"A5"}]
["2.2.1.02.01.001",6,"C",null,null,null,null,null,"Títulos valores",null,null,null,null,null,null,null,null,{"$f":"C391&B391","v":"C6"}]
["2.2.1.02.02",5,"A",null,null,null,null,"Préstamos",null,null,null,null,null,null,null,null,null,{"$f":"C392&B392","v":"A5"}]
["2.2.1.02.02.001",6,"C",null,null,null,null,null,"Banca comercial",null,null,null,null,null,null,null,null,{"$f":"C393&B393","v":"C6"}]
["2.2.1.02.02.002",6,"C",null,null,null,null,null,"Banca de fomento ",null,null,null,null,null,null,null,null,{"$f":"C394&B394","v":"C6"}]
["2.2.1.02.02.003",6,"C",null,null,null,null,null,"Gobiernos",null,null,null,null,null,null,null,null,{"$f":"C395&B395","v":"C6"}]
["2.2.1.02.02.004",6,"C",null,null,null,null,null,"Organismos multilaterales",null,null,null,null,null,null,null,null,{"$f":"C396&B396","v":"C6"}]
["2.2.1.03",4,"A",null,null,null,"Comisiones y otros gastos",null,null,null,null,null,null,null,null,null,null,{"$f":"C397&B397","v":"A4"}]
["2.2.1.03.01",5,"A",null,null,null,null,"Títulos de deuda",null,null,null,null,null,null,null,null,null,{"$f":"C398&B398","v":"A5"}]
["2.2.1.03.01.001",6,"C",null,null,null,null,null,"Títulos valores",null,null,null,null,null,null,null,null,{"$f":"C399&B399","v":"C6"}]
["2.2.1.03.02",5,"A",null,null,null,null,"Préstamos",null,null,null,null,null,null,null,null,null,{"$f":"C400&B400","v":"A5"}]
["2.2.1.03.02.001",6,"C",null,null,null,null,null,"Banca comercial",null,null,null,null,null,null,null,null,{"$f":"C401&B401","v":"C6"}]
["2.2.1.03.02.002",6,"C",null,null,null,null,null,"Banca de fomento ",null,null,null,null,null,null,null,null,{"$f":"C402&B402","v":"C6"}]
["2.2.1.03.02.003",6,"C",null,null,null,null,null,"Gobiernos",null,null,null,null,null,null,null,null,{"$f":"C403&B403","v":"C6"}]
["2.2.1.03.02.004",6,"C",null,null,null,null,null,"Organismos multilaterales",null,null,null,null,null,null,null,null,{"$f":"C404&B404","v":"C6"}]
["2.2.2",3,"A",null,null,"Servicio de la deuda pública interna",null,null,null,null,null,null,null,null,null,null,null,{"$f":"C405&B405","v":"A3"}]
["2.2.2.01",4,"A",null,null,null,"Principal",null,null,null,null,null,null,null,null,null,null,{"$f":"C406&B406","v":"A4"}]
["2.2.2.01.01",5,"A",null,null,null,null,"Títulos de deuda",null,null,null,null,null,null,null,null,null,{"$f":"C407&B407","v":"A5"}]
["2.2.2.01.01.001",6,"A",null,null,null,null,null,"Títulos valores",null,null,null,null,null,null,null,null,{"$f":"C408&B408","v":"A6"}]
["2.2.2.01.01.001.06",7,"C",null,null,null,null,null,null,"Otros bonos y títulos emitidos",null,null,null,null,null,null,null,{"$f":"C409&B409","v":"C7"}]
["2.2.2.01.02",5,"A",null,null,null,null,"Préstamos",null,null,null,null,null,null,null,null,null,{"$f":"C410&B410","v":"A5"}]
["2.2.2.01.02.001",6,"C",null,null,null,null,null,"Nación",null,null,null,null,null,null,null,null,{"$f":"C411&B411","v":"C6"}]
["2.2.2.01.02.002",6,"A",null,null,null,null,null,"Entidades financieras",null,null,null,null,null,null,null,null,{"$f":"C412&B412","v":"A6"}]
["2.2.2.01.02.002.02",7,"A",null,null,null,null,null,null,"Banca Comercial",null,null,null,null,null,null,null,{"$f":"C413&B413","v":"A7"}]
["2.2.2.01.02.002.02.03",8,"C",null,null,null,null,null,null,null,"Banca comercial",null,null,null,null,null,null,{"$f":"C414&B414","v":"C8"}]
["2.2.2.01.02.002.03",7,"C",null,null,null,null,null,null,"Banca de fomento ",null,null,null,null,null,null,null,{"$f":"C415&B415","v":"C7"}]
["2.2.2.01.02.002.04",7,"C",null,null,null,null,null,null,"Institutos de Desarrollo Departamental y/o Municipal",null,null,null,null,null,null,null,{"$f":"C416&B416","v":"C7"}]
["2.2.2.02",4,"A",null,null,null,"Intereses",null,null,null,null,null,null,null,null,null,null,{"$f":"C417&B417","v":"A4"}]
["2.2.2.02.01",5,"A",null,null,null,null,"Títulos de deuda",null,null,null,null,null,null,null,null,null,{"$f":"C418&B418","v":"A5"}]
["2.2.2.02.01.001",6,"A",null,null,null,null,null,"Títulos valores",null,null,null,null,null,null,null,null,{"$f":"C419&B419","v":"A6"}]
["2.2.2.02.01.001.06",7,"C",null,null,null,null,null,null,"Otros bonos y títulos emitidos",null,null,null,null,null,null,null,{"$f":"C420&B420","v":"C7"}]
["2.2.2.02.02",5,"A",null,null,null,null,"Préstamos",null,null,null,null,null,null,null,null,null,{"$f":"C421&B421","v":"A5"}]
["2.2.2.02.02.001",6,"C",null,null,null,null,null,"Nación",null,null,null,null,null,null,null,null,{"$f":"C422&B422","v":"C6"}]
["2.2.2.02.02.002",6,"A",null,null,null,null,null,"Entidades financieras",null,null,null,null,null,null,null,null,{"$f":"C423&B423","v":"A6"}]
["2.2.2.02.02.002.02",7,"A",null,null,null,null,null,null,"Banca comercial",null,null,null,null,null,null,null,{"$f":"C424&B424","v":"A7"}]
["2.2.2.02.02.002.02.03",8,"C",null,null,null,null,null,null,null,"Banca comercial",null,null,null,null,null,null,{"$f":"C425&B425","v":"C8"}]
["2.2.2.02.02.002.03",7,"C",null,null,null,null,null,null,"Banca de fomento",null,null,null,null,null,null,null,{"$f":"C426&B426","v":"C7"}]
["2.2.2.02.02.002.04",7,"C",null,null,null,null,null,null,"Institutos de Desarrollo Departamental y/o Municipal",null,null,null,null,null,null,null,{"$f":"C427&B427","v":"C7"}]
["2.2.2.03",4,"A",null,null,null,"Comisiones y otros gastos",null,null,null,null,null,null,null,null,null,null,{"$f":"C428&B428","v":"A4"}]
["2.2.2.03.01",5,"A",null,null,null,null,"Títulos de deuda",null,null,null,null,null,null,null,null,null,{"$f":"C429&B429","v":"A5"}]
["2.2.2.03.01.001",6,"A",null,null,null,null,null,"Títulos valores",null,null,null,null,null,null,null,null,{"$f":"C430&B430","v":"A6"}]
["2.2.2.03.01.001.04",7,"C",null,null,null,null,null,null,"Otros bonos y títulos emitidos",null,null,null,null,null,null,null,{"$f":"C431&B431","v":"C7"}]
["2.2.2.03.02",5,"A",null,null,null,null,"Préstamos",null,null,null,null,null,null,null,null,null,{"$f":"C432&B432","v":"A5"}]
["2.2.2.03.02.001",6,"C",null,null,null,null,null,"Nación",null,null,null,null,null,null,null,null,{"$f":"C433&B433","v":"C6"}]
["2.2.2.03.02.002",6,"A",null,null,null,null,null,"Entidades financieras",null,null,null,null,null,null,null,null,{"$f":"C434&B434","v":"A6"}]
["2.2.2.03.02.002.02",7,"C",null,null,null,null,null,null,"Banca comercial",null,null,null,null,null,null,null,{"$f":"C435&B435","v":"C7"}]
["2.2.2.03.02.002.03",7,"C",null,null,null,null,null,null,"Banca de fomento",null,null,null,null,null,null,null,{"$f":"C436&B436","v":"C7"}]
["2.2.2.03.02.002.04",7,"C",null,null,null,null,null,null,"Institutos de Desarrollo Departamental y/o Municipal",null,null,null,null,null,null,null,{"$f":"C437&B437","v":"C7"}]
["2.2.2.04",4,"C",null,null,null,"Aportes al fondo de contingencias",null,null,null,null,null,null,null,null,null,null,{"$f":"C438&B438","v":"C4"}]
["2.2.2.05",4,"A",null,null,null,"Bonos pensionales",null,null,null,null,null,null,null,null,null,null,{"$f":"C439&B439","v":"A4"}]
["2.2.2.05.01",5,"C",null,null,null,null,"Tipo A",null,null,null,null,null,null,null,null,null,{"$f":"C440&B440","v":"C5"}]
["2.2.2.05.02",5,"C",null,null,null,null,"Tipo B",null,null,null,null,null,null,null,null,null,{"$f":"C441&B441","v":"C5"}]
["2.3",2,"A",null,"Inversión",null,null,null,null,null,null,null,null,null,null,null,null,{"$f":"C442&B442","v":"A2"}]
["2.3.1",3,"A",null,null,"Gastos de personal",null,null,null,null,null,null,null,null,null,null,null,{"$f":"C443&B443","v":"A3"}]
["2.3.1.01",4,"A",null,null,null,"Planta de personal permanente",null,null,null,null,null,null,null,null,null,null,{"$f":"C444&B444","v":"A4"}]
["2.3.1.01.01",5,"A",null,null,null,null,"Factores constitutivos de salario",null,null,null,null,null,null,null,null,null,{"$f":"C445&B445","v":"A5"}]
["2.3.1.01.01.001",6,"A",null,null,null,null,null,"Factores salariales comunes",null,null,null,null,null,null,null,null,{"$f":"C446&B446","v":"A6"}]
["2.3.1.01.01.001.01",7,"C",null,null,null,null,null,null,"Sueldo básico",null,null,null,null,null,null,null,{"$f":"C447&B447","v":"C7"}]
["2.3.1.01.01.001.02",7,"C",null,null,null,null,null,null,"Horas extras, dominicales, festivos y recargos",null,null,null,null,null,null,null,{"$f":"C448&B448","v":"C7"}]
["2.3.1.01.01.001.03",7,"C",null,null,null,null,null,null,"Gastos de representación",null,null,null,null,null,null,null,{"$f":"C449&B449","v":"C7"}]
["2.3.1.01.01.001.04",7,"C",null,null,null,null,null,null,"Subsidio de alimentación",null,null,null,null,null,null,null,{"$f":"C450&B450","v":"C7"}]
["2.3.1.01.01.001.05",7,"C",null,null,null,null,null,null,"Auxilio de transporte",null,null,null,null,null,null,null,{"$f":"C451&B451","v":"C7"}]
["2.3.1.01.01.001.06",7,"C",null,null,null,null,null,null,"Prima de servicio",null,null,null,null,null,null,null,{"$f":"C452&B452","v":"C7"}]
["2.3.1.01.01.001.07",7,"C",null,null,null,null,null,null,"Bonificación por servicios prestados",null,null,null,null,null,null,null,{"$f":"C453&B453","v":"C7"}]
["2.3.1.01.01.001.08",7,"A",null,null,null,null,null,null,"Prestaciones sociales",null,null,null,null,null,null,null,{"$f":"C454&B454","v":"A7"}]
["2.3.1.01.01.001.08.01",8,"C",null,null,null,null,null,null,null,"Prima de navidad",null,null,null,null,null,null,{"$f":"C455&B455","v":"C8"}]
["2.3.1.01.01.001.08.02",8,"C",null,null,null,null,null,null,null,"Prima de vacaciones",null,null,null,null,null,null,{"$f":"C456&B456","v":"C8"}]
["2.3.1.01.01.001.09",7,"C",null,null,null,null,null,null,"Prima técnica salarial",null,null,null,null,null,null,null,{"$f":"C457&B457","v":"C7"}]
["2.3.1.01.01.001.10",7,"C",null,null,null,null,null,null,"Viáticos de los funcionarios en comisión",null,null,null,null,null,null,null,{"$f":"C458&B458","v":"C7"}]
["2.3.1.01.02",5,"A",null,null,null,null,"Contribuciones inherentes a la nómina",null,null,null,null,null,null,null,null,null,{"$f":"C459&B459","v":"A5"}]
["2.3.1.01.02.001",6,"C",null,null,null,null,null,"Aportes a la seguridad social en pensiones",null,null,null,null,null,null,null,null,{"$f":"C460&B460","v":"C6"}]
["2.3.1.01.02.002",6,"C",null,null,null,null,null,"Aportes a la seguridad social en salud",null,null,null,null,null,null,null,null,{"$f":"C461&B461","v":"C6"}]
["2.3.1.01.02.003",6,"C",null,null,null,null,null,"Aportes de cesantías ",null,null,null,null,null,null,null,null,{"$f":"C462&B462","v":"C6"}]
["2.3.1.01.02.004",6,"C",null,null,null,null,null,"Aportes a cajas de compensación familiar",null,null,null,null,null,null,null,null,{"$f":"C463&B463","v":"C6"}]
["2.3.1.01.02.005",6,"C",null,null,null,null,null,"Aportes generales al sistema de riesgos laborales",null,null,null,null,null,null,null,null,{"$f":"C464&B464","v":"C6"}]
["2.3.1.01.02.006",6,"C",null,null,null,null,null,"Aportes al ICBF",null,null,null,null,null,null,null,null,{"$f":"C465&B465","v":"C6"}]
["2.3.1.01.02.007",6,"C",null,null,null,null,null,"Aportes al SENA",null,null,null,null,null,null,null,null,{"$f":"C466&B466","v":"C6"}]
["2.3.1.01.02.008",6,"C",null,null,null,null,null,"Aportes a la ESAP",null,null,null,null,null,null,null,null,{"$f":"C467&B467","v":"C6"}]
["2.3.1.01.02.009",6,"C",null,null,null,null,null,"Aportes a escuelas industriales e institutos técnicos",null,null,null,null,null,null,null,null,{"$f":"C468&B468","v":"C6"}]
["2.3.1.01.03",5,"A",null,null,null,null,"Remuneraciones no constitutivas de factor salarial",null,null,null,null,null,null,null,null,null,{"$f":"C469&B469","v":"A5"}]
["2.3.1.01.03.001",6,"A",null,null,null,null,null,"Prestaciones sociales",null,null,null,null,null,null,null,null,{"$f":"C470&B470","v":"A6"}]
["2.3.1.01.03.001.01",7,"C",null,null,null,null,null,null,"Vacaciones",null,null,null,null,null,null,null,{"$f":"C471&B471","v":"C7"}]
["2.3.1.01.03.001.02",7,"C",null,null,null,null,null,null,"Indemnización por vacaciones",null,null,null,null,null,null,null,{"$f":"C472&B472","v":"C7"}]
["2.3.1.01.03.001.03",7,"C",null,null,null,null,null,null,"Bonificación especial de recreación",null,null,null,null,null,null,null,{"$f":"C473&B473","v":"C7"}]
["2.3.1.02",4,"A",null,null,null,"Personal supernumerario y planta temporal",null,null,null,null,null,null,null,null,null,null,{"$f":"C474&B474","v":"A4"}]
["2.3.1.02.01",5,"A",null,null,null,null,"Factores constitutivos de salario",null,null,null,null,null,null,null,null,null,{"$f":"C475&B475","v":"A5"}]
["2.3.1.02.01.001",6,"A",null,null,null,null,null,"Factores salariales comunes",null,null,null,null,null,null,null,null,{"$f":"C476&B476","v":"A6"}]
["2.3.1.02.01.001.01",7,"C",null,null,null,null,null,null,"Sueldo básico",null,null,null,null,null,null,null,{"$f":"C477&B477","v":"C7"}]
["2.3.1.02.01.001.02",7,"C",null,null,null,null,null,null,"Horas extras, dominicales, festivos y recargos",null,null,null,null,null,null,null,{"$f":"C478&B478","v":"C7"}]
["2.3.1.02.01.001.03",7,"C",null,null,null,null,null,null,"Gastos de representación",null,null,null,null,null,null,null,{"$f":"C479&B479","v":"C7"}]
["2.3.1.02.01.001.04",7,"C",null,null,null,null,null,null,"Subsidio de alimentación",null,null,null,null,null,null,null,{"$f":"C480&B480","v":"C7"}]
["2.3.1.02.01.001.05",7,"C",null,null,null,null,null,null,"Auxilio de transporte",null,null,null,null,null,null,null,{"$f":"C481&B481","v":"C7"}]
["2.3.1.02.01.001.06",7,"C",null,null,null,null,null,null,"Prima de servicio",null,null,null,null,null,null,null,{"$f":"C482&B482","v":"C7"}]
["2.3.1.02.01.001.07",7,"C",null,null,null,null,null,null,"Bonificación por servicios prestados",null,null,null,null,null,null,null,{"$f":"C483&B483","v":"C7"}]
["2.3.1.02.01.001.08",7,"A",null,null,null,null,null,null,"Prestaciones sociales",null,null,null,null,null,null,null,{"$f":"C484&B484","v":"A7"}]
["2.3.1.02.01.001.08.01",8,"C",null,null,null,null,null,null,null,"Prima de navidad",null,null,null,null,null,null,{"$f":"C485&B485","v":"C8"}]
["2.3.1.02.01.001.08.02",8,"C",null,null,null,null,null,null,null,"Prima de vacaciones",null,null,null,null,null,null,{"$f":"C486&B486","v":"C8"}]
["2.3.1.02.01.001.09",7,"C",null,null,null,null,null,null,"Prima técnica salarial",null,null,null,null,null,null,null,{"$f":"C487&B487","v":"C7"}]
["2.3.1.02.01.001.10",7,"C",null,null,null,null,null,null,"Viáticos de los funcionarios en comisión",null,null,null,null,null,null,null,{"$f":"C488&B488","v":"C7"}]
["2.3.1.02.02",5,"A",null,null,null,null,"Contribuciones inherentes a la nómina",null,null,null,null,null,null,null,null,null,{"$f":"C489&B489","v":"A5"}]
["2.3.1.02.02.001",6,"C",null,null,null,null,null,"Aportes a la seguridad social en pensiones",null,null,null,null,null,null,null,null,{"$f":"C490&B490","v":"C6"}]
["2.3.1.02.02.002",6,"C",null,null,null,null,null,"Aportes a la seguridad social en salud",null,null,null,null,null,null,null,null,{"$f":"C491&B491","v":"C6"}]
["2.3.1.02.02.003",6,"C",null,null,null,null,null,"Aportes de cesantías ",null,null,null,null,null,null,null,null,{"$f":"C492&B492","v":"C6"}]
["2.3.1.02.02.004",6,"C",null,null,null,null,null,"Aportes a cajas de compensación familiar",null,null,null,null,null,null,null,null,{"$f":"C493&B493","v":"C6"}]
["2.3.1.02.02.005",6,"C",null,null,null,null,null,"Aportes generales al sistema de riesgos laborales",null,null,null,null,null,null,null,null,{"$f":"C494&B494","v":"C6"}]
["2.3.1.02.02.006",6,"C",null,null,null,null,null,"Aportes al ICBF",null,null,null,null,null,null,null,null,{"$f":"C495&B495","v":"C6"}]
["2.3.1.02.02.007",6,"C",null,null,null,null,null,"Aportes al SENA",null,null,null,null,null,null,null,null,{"$f":"C496&B496","v":"C6"}]
["2.3.1.02.02.008",6,"C",null,null,null,null,null,"Aportes a la ESAP",null,null,null,null,null,null,null,null,{"$f":"C497&B497","v":"C6"}]
["2.3.1.02.02.009",6,"C",null,null,null,null,null,"Aportes a escuelas industriales e institutos técnicos",null,null,null,null,null,null,null,null,{"$f":"C498&B498","v":"C6"}]
["2.3.1.02.03",5,"A",null,null,null,null,"Remuneraciones no constitutivas de factor salarial",null,null,null,null,null,null,null,null,null,{"$f":"C499&B499","v":"A5"}]
["2.3.1.02.03.001",6,"A",null,null,null,null,null,"Prestaciones sociales",null,null,null,null,null,null,null,null,{"$f":"C500&B500","v":"A6"}]
["2.3.1.02.03.001.01",7,"C",null,null,null,null,null,null,"Vacaciones",null,null,null,null,null,null,null,{"$f":"C501&B501","v":"C7"}]
["2.3.1.02.03.001.02",7,"C",null,null,null,null,null,null,"Indemnización por vacaciones",null,null,null,null,null,null,null,{"$f":"C502&B502","v":"C7"}]
["2.3.1.02.03.001.03",7,"C",null,null,null,null,null,null,"Bonificación especial de recreación",null,null,null,null,null,null,null,{"$f":"C503&B503","v":"C7"}]
["2.3.2",3,"A",null,null,"Adquisición de bienes y servicios",null,null,null,null,null,null,null,null,null,null,null,{"$f":"C504&B504","v":"A3"}]
["2.3.2.01",4,"A",null,null,null,"Adquisición de activos no financieros",null,null,null,null,null,null,null,null,null,null,{"$f":"C505&B505","v":"A4"}]
["2.3.2.01.01",5,"A",null,null,null,null,"Activos fijos",null,null,null,null,null,null,null,null,null,{"$f":"C506&B506","v":"A5"}]
["2.3.2.01.01.001",6,"A",null,null,null,null,null,"Edificaciones y estructuras",null,null,null,null,null,null,null,null,{"$f":"C507&B507","v":"A6"}]
["2.3.2.01.01.001.01",7,"A",null,null,null,null,null,null,"Viviendas",null,null,null,null,null,null,null,{"$f":"C508&B508","v":"A7"}]
["2.3.2.01.01.001.01.01",8,"C",null,null,null,null,null,null,null,"Edificios utilizados para residencia",null,null,null,null,null,null,{"$f":"C509&B509","v":"C8"}]
["2.3.2.01.01.001.01.02",8,"C",null,null,null,null,null,null,null,"Casas flotantes ",null,null,null,null,null,null,{"$f":"C510&B510","v":"C8"}]
["2.3.2.01.01.001.01.03",8,"C",null,null,null,null,null,null,null,"Barcazas ",null,null,null,null,null,null,{"$f":"C511&B511","v":"C8"}]
["2.3.2.01.01.001.01.04",8,"C",null,null,null,null,null,null,null,"Viviendas móviles",null,null,null,null,null,null,{"$f":"C512&B512","v":"C8"}]
["2.3.2.01.01.001.01.05",8,"C",null,null,null,null,null,null,null,"Coches habitación",null,null,null,null,null,null,{"$f":"C513&B513","v":"C8"}]
["2.3.2.01.01.001.01.06",8,"C",null,null,null,null,null,null,null,"Monumentos públicos considerados principalmente como viviendas",null,null,null,null,null,null,{"$f":"C514&B514","v":"C8"}]
["2.3.2.01.01.001.01.08",8,"C",null,null,null,null,null,null,null,"Construcciones prefabricadas ",null,null,null,null,null,null,{"$f":"C515&B515","v":"C8"}]
["2.3.2.01.01.001.01.09",8,"C",null,null,null,null,null,null,null,"Otros edificios utilizados como residencia",null,null,null,null,null,null,{"$f":"C516&B516","v":"C8"}]
["2.3.2.01.01.001.02",7,"A",null,null,null,null,null,null,"Edificaciones distintas a viviendas",null,null,null,null,null,null,null,{"$f":"C517&B517","v":"A7"}]
["2.3.2.01.01.001.02.01",8,"C",null,null,null,null,null,null,null,"Monumentos públicos no residenciales",null,null,null,null,null,null,{"$f":"C518&B518","v":"C8"}]
["2.3.2.01.01.001.02.02",8,"C",null,null,null,null,null,null,null,"Edificios industriales",null,null,null,null,null,null,{"$f":"C519&B519","v":"C8"}]
["2.3.2.01.01.001.02.03",8,"C",null,null,null,null,null,null,null,"Edificios comerciales",null,null,null,null,null,null,{"$f":"C520&B520","v":"C8"}]
["2.3.2.01.01.001.02.04",8,"C",null,null,null,null,null,null,null,"Edificios públicos de entretenimiento",null,null,null,null,null,null,{"$f":"C521&B521","v":"C8"}]
["2.3.2.01.01.001.02.05",8,"C",null,null,null,null,null,null,null,"Edificios de hoteles",null,null,null,null,null,null,{"$f":"C522&B522","v":"C8"}]
["2.3.2.01.01.001.02.06",8,"C",null,null,null,null,null,null,null,"Restaurantes",null,null,null,null,null,null,{"$f":"C523&B523","v":"C8"}]
["2.3.2.01.01.001.02.07",8,"C",null,null,null,null,null,null,null,"Edificios educativos",null,null,null,null,null,null,{"$f":"C524&B524","v":"C8"}]
["2.3.2.01.01.001.02.08",8,"C",null,null,null,null,null,null,null,"Edificios relacionados con salud",null,null,null,null,null,null,{"$f":"C525&B525","v":"C8"}]
["2.3.2.01.01.001.02.11",8,"C",null,null,null,null,null,null,null,"Instalaciones recreativas",null,null,null,null,null,null,{"$f":"C526&B526","v":"C8"}]
["2.3.2.01.01.001.02.12",8,"C",null,null,null,null,null,null,null,"Centros de convenciones y congresos",null,null,null,null,null,null,{"$f":"C527&B527","v":"C8"}]
["2.3.2.01.01.001.02.13",8,"C",null,null,null,null,null,null,null,"Edificios agrícolas no residenciales",null,null,null,null,null,null,{"$f":"C528&B528","v":"C8"}]
["2.3.2.01.01.001.02.14",8,"C",null,null,null,null,null,null,null,"Otros edificios no residenciales",null,null,null,null,null,null,{"$f":"C529&B529","v":"C8"}]
["2.3.2.01.01.001.03",7,"A",null,null,null,null,null,null,"Otras estructuras",null,null,null,null,null,null,null,{"$f":"C530&B530","v":"A7"}]
["2.3.2.01.01.001.03.01",8,"C",null,null,null,null,null,null,null,"Monumentos públicos ",null,null,null,null,null,null,{"$f":"C531&B531","v":"C8"}]
["2.3.2.01.01.001.03.02",8,"C",null,null,null,null,null,null,null,"Autopistas, carreteras, calles",null,null,null,null,null,null,{"$f":"C532&B532","v":"C8"}]
["2.3.2.01.01.001.03.03",8,"C",null,null,null,null,null,null,null,"Ferrocarriles",null,null,null,null,null,null,{"$f":"C533&B533","v":"C8"}]
["2.3.2.01.01.001.03.04",8,"C",null,null,null,null,null,null,null,"Pistas de aterrizaje",null,null,null,null,null,null,{"$f":"C534&B534","v":"C8"}]
["2.3.2.01.01.001.03.05",8,"C",null,null,null,null,null,null,null,"Puentes",null,null,null,null,null,null,{"$f":"C535&B535","v":"C8"}]
["2.3.2.01.01.001.03.06",8,"C",null,null,null,null,null,null,null,"Carreteras elevadas",null,null,null,null,null,null,{"$f":"C536&B536","v":"C8"}]
["2.3.2.01.01.001.03.07",8,"C",null,null,null,null,null,null,null,"Túneles",null,null,null,null,null,null,{"$f":"C537&B537","v":"C8"}]
["2.3.2.01.01.001.03.08",8,"C",null,null,null,null,null,null,null,"Acueductos y otros conductos de suministros de aguas, excepto gasoductos",null,null,null,null,null,null,{"$f":"C538&B538","v":"C8"}]
["2.3.2.01.01.001.03.09",8,"C",null,null,null,null,null,null,null,"Puertos, vías navegables e instalaciones conexas",null,null,null,null,null,null,{"$f":"C539&B539","v":"C8"}]
["2.3.2.01.01.001.03.10",8,"C",null,null,null,null,null,null,null,"Represas",null,null,null,null,null,null,{"$f":"C540&B540","v":"C8"}]
["2.3.2.01.01.001.03.11",8,"C",null,null,null,null,null,null,null,"Sistemas de riego y obras hidráulicas",null,null,null,null,null,null,{"$f":"C541&B541","v":"C8"}]
["2.3.2.01.01.001.03.12",8,"C",null,null,null,null,null,null,null,"Tuberías de larga distancia",null,null,null,null,null,null,{"$f":"C542&B542","v":"C8"}]
["2.3.2.01.01.001.03.13",8,"C",null,null,null,null,null,null,null,"Obras para la comunicación de larga distancia y las líneas eléctricas (cables)",null,null,null,null,null,null,{"$f":"C543&B543","v":"C8"}]
["2.3.2.01.01.001.03.14",8,"C",null,null,null,null,null,null,null,"Gasoductos y oleoductos",null,null,null,null,null,null,{"$f":"C544&B544","v":"C8"}]
["2.3.2.01.01.001.03.15",8,"C",null,null,null,null,null,null,null,"Cables locales y obras conexas",null,null,null,null,null,null,{"$f":"C545&B545","v":"C8"}]
["2.3.2.01.01.001.03.16",8,"C",null,null,null,null,null,null,null,"Alcantarillas y plantas de tratamiento de agua",null,null,null,null,null,null,{"$f":"C546&B546","v":"C8"}]
["2.3.2.01.01.001.03.17",8,"C",null,null,null,null,null,null,null,"Construcciones en minas y plantas industriales",null,null,null,null,null,null,{"$f":"C547&B547","v":"C8"}]
["2.3.2.01.01.001.03.18",8,"C",null,null,null,null,null,null,null,"Construcciones deportivas al aire libre",null,null,null,null,null,null,{"$f":"C548&B548","v":"C8"}]
["2.3.2.01.01.001.03.19",8,"C",null,null,null,null,null,null,null,"Otras obras de ingeniería civil",null,null,null,null,null,null,{"$f":"C549&B549","v":"C8"}]
["2.3.2.01.01.001.04",7,"C",null,null,null,null,null,null,"Mejoras de tierras y terrenos",null,null,null,null,null,null,null,{"$f":"C550&B550","v":"C7"}]
["2.3.2.01.01.003",6,"A",null,null,null,null,null,"Maquinaria y equipo",null,null,null,null,null,null,null,null,{"$f":"C551&B551","v":"A6"}]
["2.3.2.01.01.003.01",7,"A",null,null,null,null,null,null,"Maquinaria para uso general",null,null,null,null,null,null,null,{"$f":"C552&B552","v":"A7"}]
["2.3.2.01.01.003.01.01",8,"C",null,null,null,null,null,null,null,"Motores y turbinas y sus partes",null,null,null,null,null,null,{"$f":"C553&B553","v":"C8"}]
["2.3.2.01.01.003.01.02",8,"C",null,null,null,null,null,null,null,"Bombas, compresores, motores de fuerza hidráulica y motores de potencia neumática y válvulas y sus partes y piezas",null,null,null,null,null,null,{"$f":"C554&B554","v":"C8"}]
["2.3.2.01.01.003.01.03",8,"C",null,null,null,null,null,null,null,"Cojines, engranajes, ruedas de ficción y elementos de transmisión y sus partes y piezas",null,null,null,null,null,null,{"$f":"C555&B555","v":"C8"}]
["2.3.2.01.01.003.01.04",8,"C",null,null,null,null,null,null,null,"Hornos y quemadores para alimentación de hogares y sus partes y piezas",null,null,null,null,null,null,{"$f":"C556&B556","v":"C8"}]
["2.3.2.01.01.003.01.05",8,"C",null,null,null,null,null,null,null,"Equipos de elevación y manipulación y sus partes y piezas",null,null,null,null,null,null,{"$f":"C557&B557","v":"C8"}]
["2.3.2.01.01.003.01.06",8,"C",null,null,null,null,null,null,null,"Otras máquinas para usos generales y sus partes y piezas",null,null,null,null,null,null,{"$f":"C558&B558","v":"C8"}]
["2.3.2.01.01.003.02",7,"A",null,null,null,null,null,null,"Maquinaria para usos especiales",null,null,null,null,null,null,null,{"$f":"C559&B559","v":"A7"}]
["2.3.2.01.01.003.02.01",8,"C",null,null,null,null,null,null,null,"Maquinaria agropecuaria o silvícola y sus partes y piezas",null,null,null,null,null,null,{"$f":"C560&B560","v":"C8"}]
["2.3.2.01.01.003.02.02",8,"C",null,null,null,null,null,null,null,"Máquinas herramientas y sus partes, piezas y accesorios",null,null,null,null,null,null,{"$f":"C561&B561","v":"C8"}]
["2.3.2.01.01.003.02.03",8,"C",null,null,null,null,null,null,null,"Maquinaria para la industria metalúrgica y sus partes y piezas",null,null,null,null,null,null,{"$f":"C562&B562","v":"C8"}]
["2.3.2.01.01.003.02.04",8,"C",null,null,null,null,null,null,null,"Maquinaria para la minería, la explotación de canteras y la construcción y sus partes y piezas",null,null,null,null,null,null,{"$f":"C563&B563","v":"C8"}]
["2.3.2.01.01.003.02.05",8,"C",null,null,null,null,null,null,null,"Maquinaria para la elaboración de alimentos, bebidas y tabaco, y sus partes y piezas",null,null,null,null,null,null,{"$f":"C564&B564","v":"C8"}]
["2.3.2.01.01.003.02.06",8,"C",null,null,null,null,null,null,null,"Maquinaria para la fabricación de textiles, prendas de vestir y artículos de cuero, y sus partes y piezas",null,null,null,null,null,null,{"$f":"C565&B565","v":"C8"}]
["2.3.2.01.01.003.02.07",8,"C",null,null,null,null,null,null,null,"Aparatos de uso doméstico y sus partes y piezas",null,null,null,null,null,null,{"$f":"C566&B566","v":"C8"}]
["2.3.2.01.01.003.02.08",8,"C",null,null,null,null,null,null,null,"Otra maquinaria para usos especiales y sus partes y piezas",null,null,null,null,null,null,{"$f":"C567&B567","v":"C8"}]
["2.3.2.01.01.003.03",7,"A",null,null,null,null,null,null,"Maquinaria de oficina, contabilidad e informática",null,null,null,null,null,null,null,{"$f":"C568&B568","v":"A7"}]
["2.3.2.01.01.003.03.01",8,"C",null,null,null,null,null,null,null,"Máquinas para oficina y contabilidad, y sus partes y accesorios",null,null,null,null,null,null,{"$f":"C569&B569","v":"C8"}]
["2.3.2.01.01.003.03.02",8,"C",null,null,null,null,null,null,null,"Maquinaria de informática y sus partes, piezas y accesorios",null,null,null,null,null,null,{"$f":"C570&B570","v":"C8"}]
["2.3.2.01.01.003.04",7,"A",null,null,null,null,null,null,"Maquinaria y aparatos eléctricos",null,null,null,null,null,null,null,{"$f":"C571&B571","v":"A7"}]
["2.3.2.01.01.003.04.01",8,"C",null,null,null,null,null,null,null,"Motores, generadores y transformadores eléctricos y sus partes y piezas",null,null,null,null,null,null,{"$f":"C572&B572","v":"C8"}]
["2.3.2.01.01.003.04.02",8,"C",null,null,null,null,null,null,null,"Aparatos de control eléctrico y distribución de electricidad y sus partes y piezas",null,null,null,null,null,null,{"$f":"C573&B573","v":"C8"}]
["2.3.2.01.01.003.04.03",8,"C",null,null,null,null,null,null,null,"Hilos y cables aislados; cable de fibra óptica",null,null,null,null,null,null,{"$f":"C574&B574","v":"C8"}]
["2.3.2.01.01.003.04.04",8,"C",null,null,null,null,null,null,null,"Acumuladores, pilas y baterías primarias y sus partes y piezas",null,null,null,null,null,null,{"$f":"C575&B575","v":"C8"}]
["2.3.2.01.01.003.04.05",8,"C",null,null,null,null,null,null,null,"Lámparas eléctricas de incandescencia o descarga; lámparas de arco, equipo para alumbrado eléctrico; sus partes y piezas",null,null,null,null,null,null,{"$f":"C576&B576","v":"C8"}]
["2.3.2.01.01.003.04.06",8,"C",null,null,null,null,null,null,null,"Otro equipo eléctrico y sus partes y piezas",null,null,null,null,null,null,{"$f":"C577&B577","v":"C8"}]
["2.3.2.01.01.003.05",7,"A",null,null,null,null,null,null,"Equipo y aparatos de radio, televisión y comunicaciones",null,null,null,null,null,null,null,{"$f":"C578&B578","v":"A7"}]
["2.3.2.01.01.003.05.01",8,"C",null,null,null,null,null,null,null,"Válvulas y tubos electrónicos; componentes electrónicos; sus partes y piezas",null,null,null,null,null,null,{"$f":"C579&B579","v":"C8"}]
["2.3.2.01.01.003.05.02",8,"C",null,null,null,null,null,null,null,"Aparatos transmisores de televisión y radio; televisión, video y cámaras digitales; teléfonos",null,null,null,null,null,null,{"$f":"C580&B580","v":"C8"}]
["2.3.2.01.01.003.05.03",8,"C",null,null,null,null,null,null,null,"Radiorreceptores y receptores de televisión; aparatos para la grabación y reproducción de sonido y video; micrófonos, altavoces, amplificadores, etc.",null,null,null,null,null,null,{"$f":"C581&B581","v":"C8"}]
["2.3.2.01.01.003.05.04",8,"C",null,null,null,null,null,null,null,"Partes y piezas de los productos de las clases 4721 a 4733 y 4822",null,null,null,null,null,null,{"$f":"C582&B582","v":"C8"}]
["2.3.2.01.01.003.05.05",8,"C",null,null,null,null,null,null,null,"Discos, cintas, dispositivos de almacenamiento en estado sólido no volátiles y otros medios, no grabados",null,null,null,null,null,null,{"$f":"C583&B583","v":"C8"}]
["2.3.2.01.01.003.05.06",8,"C",null,null,null,null,null,null,null,"Grabaciones de audio, video y otros discos, cintas y otros medios físicos",null,null,null,null,null,null,{"$f":"C584&B584","v":"C8"}]
["2.3.2.01.01.003.05.07",8,"C",null,null,null,null,null,null,null,"Tarjetas con bandas magnéticas o plaquetas (chip)",null,null,null,null,null,null,{"$f":"C585&B585","v":"C8"}]
["2.3.2.01.01.003.06",7,"A",null,null,null,null,null,null,"Aparatos médicos, instrumentos ópticos y de precisión, relojes",null,null,null,null,null,null,null,{"$f":"C586&B586","v":"A7"}]
["2.3.2.01.01.003.06.01",8,"C",null,null,null,null,null,null,null,"Aparatos médicos y quirúrgicos y aparatos ortésicos y protésicos",null,null,null,null,null,null,{"$f":"C587&B587","v":"C8"}]
["2.3.2.01.01.003.06.02",8,"C",null,null,null,null,null,null,null,"Instrumentos y aparatos de medición, verificación, análisis, de navegación y para otros fines (excepto instrumentos ópticos); instrumentos de control de procesos industriales, sus partes, piezas y accesorios",null,null,null,null,null,null,{"$f":"C588&B588","v":"C8"}]
["2.3.2.01.01.003.06.03",8,"C",null,null,null,null,null,null,null,"Instrumentos ópticos y equipo fotográfico; partes, piezas y accesorios",null,null,null,null,null,null,{"$f":"C589&B589","v":"C8"}]
["2.3.2.01.01.003.06.04",8,"C",null,null,null,null,null,null,null,"Relojes y sus partes y piezas",null,null,null,null,null,null,{"$f":"C590&B590","v":"C8"}]
["2.3.2.01.01.003.07",7,"A",null,null,null,null,null,null,"Equipo de transporte",null,null,null,null,null,null,null,{"$f":"C591&B591","v":"A7"}]
["2.3.2.01.01.003.07.01",8,"C",null,null,null,null,null,null,null,"Vehículos automotores, remolques y semirremolques; y sus partes, piezas y accesorios",null,null,null,null,null,null,{"$f":"C592&B592","v":"C8"}]
["2.3.2.01.01.003.07.02",8,"C",null,null,null,null,null,null,null,"Carrocerías (incluso cabinas) para vehículos automotores; remolques y semirremolques; y sus partes, piezas y accesorios",null,null,null,null,null,null,{"$f":"C593&B593","v":"C8"}]
["2.3.2.01.01.003.07.03",8,"C",null,null,null,null,null,null,null,"Buques",null,null,null,null,null,null,{"$f":"C594&B594","v":"C8"}]
["2.3.2.01.01.003.07.04",8,"C",null,null,null,null,null,null,null,"Embarcaciones para deportes y recreo",null,null,null,null,null,null,{"$f":"C595&B595","v":"C8"}]
["2.3.2.01.01.003.07.05",8,"C",null,null,null,null,null,null,null,"Locomotoras y material rodante de ferrocarril y tranvía, y sus partes y piezas",null,null,null,null,null,null,{"$f":"C596&B596","v":"C8"}]
["2.3.2.01.01.003.07.06",8,"C",null,null,null,null,null,null,null,"Aeronaves y naves espaciales, y sus partes y piezas",null,null,null,null,null,null,{"$f":"C597&B597","v":"C8"}]
["2.3.2.01.01.003.07.07",8,"A",null,null,null,null,null,null,null,"Otro equipo de transporte, y sus partes y piezas",null,null,null,null,null,null,{"$f":"C598&B598","v":"A8"}]
["2.3.2.01.01.003.07.07.01",9,"C",null,null,null,null,null,null,null,null,"Motocicletas y sidecares (vehículos laterales a las motocicletas)",null,null,null,null,null,{"$f":"C599&B599","v":"C9"}]
["2.3.2.01.01.003.07.07.02",9,"C",null,null,null,null,null,null,null,null,"Bicicletas y sillones de ruedas para discapacitados",null,null,null,null,null,{"$f":"C600&B600","v":"C9"}]
["2.3.2.01.01.003.07.07.03",9,"C",null,null,null,null,null,null,null,null,"Vehículos n.c.p. sin propulsión mecánica",null,null,null,null,null,{"$f":"C601&B601","v":"C9"}]
["2.3.2.01.01.003.07.07.04",9,"C",null,null,null,null,null,null,null,null,"Partes y piezas para los productos de las clases 4991 y 4992",null,null,null,null,null,{"$f":"C602&B602","v":"C9"}]
["2.3.2.01.01.004",6,"A",null,null,null,null,null,"Activos fijos no clasificados como maquinaria y equipo",null,null,null,null,null,null,null,null,{"$f":"C603&B603","v":"A6"}]
["2.3.2.01.01.004.01",7,"A",null,null,null,null,null,null,"Muebles, instrumentos musicales, artículos de deporte y antigüedades",null,null,null,null,null,null,null,{"$f":"C604&B604","v":"A7"}]
["2.3.2.01.01.004.01.01",8,"A",null,null,null,null,null,null,null,"Muebles",null,null,null,null,null,null,{"$f":"C605&B605","v":"A8"}]
["2.3.2.01.01.004.01.01.01",9,"C",null,null,null,null,null,null,null,null,"Asientos",null,null,null,null,null,{"$f":"C606&B606","v":"C9"}]
["2.3.2.01.01.004.01.01.02",9,"C",null,null,null,null,null,null,null,null,"Muebles del tipo utilizado en la oficina",null,null,null,null,null,{"$f":"C607&B607","v":"C9"}]
["2.3.2.01.01.004.01.01.03",9,"C",null,null,null,null,null,null,null,null,"Muebles de madera, del tipo usado en la cocina",null,null,null,null,null,{"$f":"C608&B608","v":"C9"}]
["2.3.2.01.01.004.01.01.04",9,"C",null,null,null,null,null,null,null,null,"Otros muebles N.C.P.",null,null,null,null,null,{"$f":"C609&B609","v":"C9"}]
["2.3.2.01.01.004.01.01.05",9,"C",null,null,null,null,null,null,null,null,"Somieres, colchones con muebles, rellenos o guarnecidos interiormente con cualquier material, de caucho o plásticos celulares, recubiertos o no",null,null,null,null,null,{"$f":"C610&B610","v":"C9"}]
["2.3.2.01.01.004.01.01.06",9,"C",null,null,null,null,null,null,null,null,"Partes y piezas de muebles",null,null,null,null,null,{"$f":"C611&B611","v":"C9"}]
["2.3.2.01.01.004.01.02",8,"C",null,null,null,null,null,null,null,"Instrumentos musicales",null,null,null,null,null,null,{"$f":"C612&B612","v":"C8"}]
["2.3.2.01.01.004.01.03",8,"C",null,null,null,null,null,null,null,"Artículos de deporte",null,null,null,null,null,null,{"$f":"C613&B613","v":"C8"}]
["2.3.2.01.01.004.01.04",8,"C",null,null,null,null,null,null,null,"Antigüedades u otros objetos de arte",null,null,null,null,null,null,{"$f":"C614&B614","v":"C8"}]
["2.3.2.01.01.005",6,"A",null,null,null,null,null,"Otros activos fijos",null,null,null,null,null,null,null,null,{"$f":"C615&B615","v":"A6"}]
["2.3.2.01.01.005.01",7,"A",null,null,null,null,null,null,"Recursos biológicos cultivados",null,null,null,null,null,null,null,{"$f":"C616&B616","v":"A7"}]
["2.3.2.01.01.005.01.01",8,"A",null,null,null,null,null,null,null,"Recursos animales que generan productos en forma repetida  ",null,null,null,null,null,null,{"$f":"C617&B617","v":"A8"}]
["2.3.2.01.01.005.01.01.01",9,"C",null,null,null,null,null,null,null,null,"Animales de cría",null,null,null,null,null,{"$f":"C618&B618","v":"C9"}]
["2.3.2.01.01.005.01.01.02",9,"C",null,null,null,null,null,null,null,null,"Ganado lechero",null,null,null,null,null,{"$f":"C619&B619","v":"C9"}]
["2.3.2.01.01.005.01.01.03",9,"C",null,null,null,null,null,null,null,null,"Animales de tiro",null,null,null,null,null,{"$f":"C620&B620","v":"C9"}]
["2.3.2.01.01.005.01.01.04",9,"C",null,null,null,null,null,null,null,null,"Animales utilizados para la producción de lana",null,null,null,null,null,{"$f":"C621&B621","v":"C9"}]
["2.3.2.01.01.005.01.01.05",9,"C",null,null,null,null,null,null,null,null,"Animales empleados para el transporte",null,null,null,null,null,{"$f":"C622&B622","v":"C9"}]
["2.3.2.01.01.005.01.01.06",9,"C",null,null,null,null,null,null,null,null,"Animales empleados para las carreras",null,null,null,null,null,{"$f":"C623&B623","v":"C9"}]
["2.3.2.01.01.005.01.01.07",9,"C",null,null,null,null,null,null,null,null,"Animales empleados para el esparcimiento",null,null,null,null,null,{"$f":"C624&B624","v":"C9"}]
["2.3.2.01.01.005.01.01.08",9,"C",null,null,null,null,null,null,null,null,"Otros animales que generan productos en forma repetida",null,null,null,null,null,{"$f":"C625&B625","v":"C9"}]
["2.3.2.01.01.005.01.02",8,"A",null,null,null,null,null,null,null,"Árboles, cultivos y plantas que generan productos en forma repetida ",null,null,null,null,null,null,{"$f":"C626&B626","v":"A8"}]
["2.3.2.01.01.005.01.02.01",9,"C",null,null,null,null,null,null,null,null,"Árboles frutales",null,null,null,null,null,{"$f":"C627&B627","v":"C9"}]
["2.3.2.01.01.005.01.02.02",9,"C",null,null,null,null,null,null,null,null,"Árboles cultivados por sus nueces",null,null,null,null,null,{"$f":"C628&B628","v":"C9"}]
["2.3.2.01.01.005.01.02.03",9,"C",null,null,null,null,null,null,null,null,"Árboles cultivados por su savia",null,null,null,null,null,{"$f":"C629&B629","v":"C9"}]
["2.3.2.01.01.005.01.02.04",9,"C",null,null,null,null,null,null,null,null,"Árboles cultivados por su resina",null,null,null,null,null,{"$f":"C630&B630","v":"C9"}]
["2.3.2.01.01.005.01.02.05",9,"C",null,null,null,null,null,null,null,null,"Árboles cultivados por su corteza u hojas",null,null,null,null,null,{"$f":"C631&B631","v":"C9"}]
["2.3.2.01.01.005.01.02.06",9,"C",null,null,null,null,null,null,null,null,"Otros árboles, cultivos y plantas que generan productos en forma repetida",null,null,null,null,null,{"$f":"C632&B632","v":"C9"}]
["2.3.2.01.01.005.02",7,"A",null,null,null,null,null,null,"Productos de la propiedad intelectual",null,null,null,null,null,null,null,{"$f":"C633&B633","v":"A7"}]
["2.3.2.01.01.005.02.01",8,"C",null,null,null,null,null,null,null,"Investigación y desarrollo",null,null,null,null,null,null,{"$f":"C634&B634","v":"C8"}]
["2.3.2.01.01.005.02.02",8,"A",null,null,null,null,null,null,null,"Explotación y evaluación minera",null,null,null,null,null,null,{"$f":"C635&B635","v":"A8"}]
["2.3.2.01.01.005.02.02.01",9,"C",null,null,null,null,null,null,null,null,"Costos de las perforaciones de prueba y sondeo realizadas",null,null,null,null,null,{"$f":"C636&B636","v":"C9"}]
["2.3.2.01.01.005.02.02.02",9,"C",null,null,null,null,null,null,null,null,"Costos de precalificación",null,null,null,null,null,{"$f":"C637&B637","v":"C9"}]
["2.3.2.01.01.005.02.02.03",9,"C",null,null,null,null,null,null,null,null,"Obtención de licencias, adquisición y avalúos",null,null,null,null,null,{"$f":"C638&B638","v":"C9"}]
["2.3.2.01.01.005.02.02.04",9,"C",null,null,null,null,null,null,null,null,"Costos de transporte",null,null,null,null,null,{"$f":"C639&B639","v":"C9"}]
["2.3.2.01.01.005.02.02.05",9,"C",null,null,null,null,null,null,null,null,"Otros costos de evaluación y explotación minera",null,null,null,null,null,{"$f":"C640&B640","v":"C9"}]
["2.3.2.01.01.005.02.03",8,"A",null,null,null,null,null,null,null,"Programas de informática y bases de datos",null,null,null,null,null,null,{"$f":"C641&B641","v":"A8"}]
["2.3.2.01.01.005.02.03.01",9,"A",null,null,null,null,null,null,null,null,"Programas de informática",null,null,null,null,null,{"$f":"C642&B642","v":"A9"}]
["2.3.2.01.01.005.02.03.01.01",10,"C",null,null,null,null,null,null,null,null,null,"Paquetes de software",null,null,null,null,{"$f":"C643&B643","v":"C10"}]
["2.3.2.01.01.005.02.03.01.02",10,"C",null,null,null,null,null,null,null,null,null,"Gastos de desarrollo",null,null,null,null,{"$f":"C644&B644","v":"C10"}]
["2.3.2.01.01.005.02.03.02",9,"C",null,null,null,null,null,null,null,null,"Bases de datos",null,null,null,null,null,{"$f":"C645&B645","v":"C9"}]
["2.3.2.01.01.005.02.04",8,"C",null,null,null,null,null,null,null,"Originales de entretenimiento, literatura y arte",null,null,null,null,null,null,{"$f":"C646&B646","v":"C8"}]
["2.3.2.01.01.005.02.05",8,"C",null,null,null,null,null,null,null,"Otros productos de propiedad intelectual",null,null,null,null,null,null,{"$f":"C647&B647","v":"C8"}]
["2.3.2.01.02",5,"A",null,null,null,null,"Objetos de valor",null,null,null,null,null,null,null,null,null,{"$f":"C648&B648","v":"A5"}]
["2.3.2.01.02.001",6,"C",null,null,null,null,null,"Joyas y artículos conexos",null,null,null,null,null,null,null,null,{"$f":"C649&B649","v":"C6"}]
["2.3.2.01.02.002",6,"C",null,null,null,null,null,"Antigüedades u otros objetos de arte",null,null,null,null,null,null,null,null,{"$f":"C650&B650","v":"C6"}]
["2.3.2.01.02.003",6,"C",null,null,null,null,null,"Otros objetos valiosos",null,null,null,null,null,null,null,null,{"$f":"C651&B651","v":"C6"}]
["2.3.2.01.03",5,"A",null,null,null,null,"Activos no producidos",null,null,null,null,null,null,null,null,null,{"$f":"C652&B652","v":"A5"}]
["2.3.2.01.03.001",6,"C",null,null,null,null,null,"Tierras y terrenos",null,null,null,null,null,null,null,null,{"$f":"C653&B653","v":"C6"}]
["2.3.2.01.03.002",6,"C",null,null,null,null,null,"Recursos biológicos no cultivados",null,null,null,null,null,null,null,null,{"$f":"C654&B654","v":"C6"}]
["2.3.2.02",4,"A",null,null,null,"Adquisiciones diferentes de activos",null,null,null,null,null,null,null,null,null,null,{"$f":"C655&B655","v":"A4"}]
["2.3.2.02.01",5,"A",null,null,null,null,"Materiales y suministros",null,null,null,null,null,null,null,null,null,{"$f":"C656&B656","v":"A5"}]
["2.3.2.02.01.000",6,"C",null,null,null,null,null,"Agricultura, silvicultura y productos de la pesca",null,null,null,null,null,null,null,null,{"$f":"C657&B657","v":"C6"}]
["2.3.2.02.01.001",6,"C",null,null,null,null,null,"Minerales; electricidad, gas y agua",null,null,null,null,null,null,null,null,{"$f":"C658&B658","v":"C6"}]
["2.3.2.02.01.002",6,"C",null,null,null,null,null,"Productos alimenticios, bebidas y tabaco; textiles, prendas de vestir y productos de cuero",null,null,null,null,null,null,null,null,{"$f":"C659&B659","v":"C6"}]
["2.3.2.02.01.003",6,"C",null,null,null,null,null,"Otros bienes transportables (excepto productos metálicos, maquinaria y equipo)",null,null,null,null,null,null,null,null,{"$f":"C660&B660","v":"C6"}]
["2.3.2.02.01.004",6,"C",null,null,null,null,null,"Productos metálicos y paquetes de software",null,null,null,null,null,null,null,null,{"$f":"C661&B661","v":"C6"}]
["2.3.2.02.02",5,"A",null,null,null,null,"Adquisición de servicios",null,null,null,null,null,null,null,null,null,{"$f":"C662&B662","v":"A5"}]
["2.3.2.02.02.005",6,"C",null,null,null,null,null,"Servicios de la construcción",null,null,null,null,null,null,null,null,{"$f":"C663&B663","v":"C6"}]
["2.3.2.02.02.006",6,"C",null,null,null,null,null,"Servicios de alojamiento; servicios de suministro de comidas y bebidas; servicios de transporte; y servicios de distribución de electricidad, gas y agua",null,null,null,null,null,null,null,null,{"$f":"C664&B664","v":"C6"}]
["2.3.2.02.02.007",6,"C",null,null,null,null,null,"Servicios financieros y servicios conexos, servicios inmobiliarios y servicios de leasing",null,null,null,null,null,null,null,null,{"$f":"C665&B665","v":"C6"}]
["2.3.2.02.02.008",6,"C",null,null,null,null,null,"Servicios prestados a las empresas y servicios de producción ",null,null,null,null,null,null,null,null,{"$f":"C666&B666","v":"C6"}]
["2.3.2.02.02.009",6,"C",null,null,null,null,null,"Servicios para la comunidad, sociales y personales",null,null,null,null,null,null,null,null,{"$f":"C667&B667","v":"C6"}]
["2.3.2.02.02.010",6,"C",null,null,null,null,null,"Viáticos de los funcionarios en comisión",null,null,null,null,null,null,null,null,{"$f":"C668&B668","v":"C6"}]
["2.3.3",3,"A",null,null,"Transferencias corrientes",null,null,null,null,null,null,null,null,null,null,null,{"$f":"C669&B669","v":"A3"}]
["2.3.3.01",4,"A",null,null,null,"Subvenciones",null,null,null,null,null,null,null,null,null,null,{"$f":"C670&B670","v":"A4"}]
["2.3.3.01.01",5,"A",null,null,null,null,"A empresas públicas financieras ",null,null,null,null,null,null,null,null,null,{"$f":"C671&B671","v":"A5"}]
["2.3.3.01.02",5,"A",null,null,null,null,"A empresas públicas no financieras ",null,null,null,null,null,null,null,null,null,{"$f":"C672&B672","v":"A5"}]
["2.3.3.01.03",5,"C",null,null,null,null,"A empresas privadas financieras ",null,null,null,null,null,null,null,null,null,{"$f":"C673&B673","v":"C5"}]
["2.3.3.01.04",5,"A",null,null,null,null,"A empresas privadas no financieras",null,null,null,null,null,null,null,null,null,{"$f":"C674&B674","v":"A5"}]
["2.3.3.02",4,"A",null,null,null,"A empresas diferente de subvenciones",null,null,null,null,null,null,null,null,null,null,{"$f":"C675&B675","v":"A4"}]
["2.3.3.02.01",5,"A",null,null,null,null,"Actividades de atención a la salud humana y de asistencia social",null,null,null,null,null,null,null,null,null,{"$f":"C676&B676","v":"A5"}]
["2.3.3.02.01.001",6,"C",null,null,null,null,null,"Campaña y control antituberculosis",null,null,null,null,null,null,null,null,{"$f":"C677&B677","v":"C6"}]
["2.3.3.02.01.003",6,"C",null,null,null,null,null,"Programa emergencia sanitaria",null,null,null,null,null,null,null,null,{"$f":"C678&B678","v":"C6"}]
["2.3.3.02.02",5,"A",null,null,null,null,"Agricultura, ganadería, caza, silvicultura y pesca",null,null,null,null,null,null,null,null,null,{"$f":"C679&B679","v":"A5"}]
["2.3.3.05",4,"A",null,null,null,"A entidades del gobierno",null,null,null,null,null,null,null,null,null,null,{"$f":"C680&B680","v":"A4"}]
["2.3.3.05.03",5,"A",null,null,null,null,"Sistema General de Regalías",null,null,null,null,null,null,null,null,null,{"$f":"C681&B681","v":"A5"}]
["2.3.3.05.08",5,"C",null,null,null,null,"A esquemas asociativos",null,null,null,null,null,null,null,null,null,{"$f":"C682&B682","v":"C5"}]
["2.3.3.13",4,"A",null,null,null,"Sentencias y conciliaciones",null,null,null,null,null,null,null,null,null,null,{"$f":"C683&B683","v":"A4"}]
["2.3.3.13.01",5,"A",null,null,null,null,"Fallos nacionales",null,null,null,null,null,null,null,null,null,{"$f":"C684&B684","v":"A5"}]
["2.3.3.13.01.001",6,"C",null,null,null,null,null,"Sentencias",null,null,null,null,null,null,null,null,{"$f":"C685&B685","v":"C6"}]
["2.3.3.13.01.002",6,"C",null,null,null,null,null,"Conciliaciones",null,null,null,null,null,null,null,null,{"$f":"C686&B686","v":"C6"}]
["2.3.3.13.01.003",6,"C",null,null,null,null,null,"Laudos arbitrales",null,null,null,null,null,null,null,null,{"$f":"C687&B687","v":"C6"}]
["2.3.4",3,"A",null,null,"Transferencias de capital",null,null,null,null,null,null,null,null,null,null,null,{"$f":"C688&B688","v":"A3"}]
["2.3.4.02",4,"A",null,null,null,"Entidades del gobierno general",null,null,null,null,null,null,null,null,null,null,{"$f":"C689&B689","v":"A4"}]
["2.3.4.02.01",5,"C",null,null,null,null,"Órganos del PGN",null,null,null,null,null,null,null,null,null,{"$f":"C690&B690","v":"C5"}]
["2.3.4.02.02",5,"C",null,null,null,null,"Entidades territoriales distintas de participaciones y compensaciones",null,null,null,null,null,null,null,null,null,{"$f":"C691&B691","v":"C5"}]
["2.3.4.02.03",5,"C",null,null,null,null,"Esquemas asociativos",null,null,null,null,null,null,null,null,null,{"$f":"C692&B692","v":"C5"}]
["2.3.4.02.04",5,"C",null,null,null,null,"Entidades del gobierno general",null,null,null,null,null,null,null,null,null,{"$f":"C693&B693","v":"C5"}]
["2.3.4.03",4,"C",null,null,null,"Compensaciones de capital ",null,null,null,null,null,null,null,null,null,null,{"$f":"C694&B694","v":"C4"}]
["2.3.4.04",4,"C",null,null,null,"Para la adquisición de activos no financieros ",null,null,null,null,null,null,null,null,null,null,{"$f":"C695&B695","v":"C4"}]
["2.3.5",3,"A",null,null,"Gastos de comercialización y producción",null,null,null,null,null,null,null,null,null,null,null,{"$f":"C696&B696","v":"A3"}]
["2.3.5.01",4,"A",null,null,null,"Materiales y suministros",null,null,null,null,null,null,null,null,null,null,{"$f":"C697&B697","v":"A4"}]
["2.3.5.01.00",5,"C",null,null,null,null,"Agricultura, silvicultura y productos de la pesca",null,null,null,null,null,null,null,null,null,{"$f":"C698&B698","v":"C5"}]
["2.3.5.01.01",5,"C",null,null,null,null,"Minerales; electricidad, gas y agua",null,null,null,null,null,null,null,null,null,{"$f":"C699&B699","v":"C5"}]
["2.3.5.01.02",5,"C",null,null,null,null,"Productos alimenticios, bebidas y tabaco; textiles, prendas de vestir y productos de cuero",null,null,null,null,null,null,null,null,null,{"$f":"C700&B700","v":"C5"}]
["2.3.5.01.03",5,"C",null,null,null,null,"Otros bienes transportables (excepto productos metálicos, maquinaria y equipo)",null,null,null,null,null,null,null,null,null,{"$f":"C701&B701","v":"C5"}]
["2.3.5.01.04",5,"C",null,null,null,null,"Productos metálicos, maquinaria y equipo",null,null,null,null,null,null,null,null,null,{"$f":"C702&B702","v":"C5"}]
["2.3.5.02",4,"A",null,null,null,"Adquisición de servicios",null,null,null,null,null,null,null,null,null,null,{"$f":"C703&B703","v":"A4"}]
["2.3.5.02.05",5,"C",null,null,null,null,"Servicios de la construcción",null,null,null,null,null,null,null,null,null,{"$f":"C704&B704","v":"C5"}]
["2.3.5.02.06",5,"C",null,null,null,null,"Servicios de alojamiento; servicios de suministro de comidas y bebidas; servicios de transporte; y servicios de distribución de electricidad, gas y agua",null,null,null,null,null,null,null,null,null,{"$f":"C705&B705","v":"C5"}]
["2.3.5.02.07",5,"C",null,null,null,null,"Servicios financieros y servicios conexos, servicios inmobiliarios y servicios de leasing",null,null,null,null,null,null,null,null,null,{"$f":"C706&B706","v":"C5"}]
["2.3.5.02.08",5,"C",null,null,null,null,"Servicios prestados a las empresas y servicios de producción ",null,null,null,null,null,null,null,null,null,{"$f":"C707&B707","v":"C5"}]
["2.3.5.02.09",5,"C",null,null,null,null,"Servicios para la comunidad, sociales y personales",null,null,null,null,null,null,null,null,null,{"$f":"C708&B708","v":"C5"}]
["2.3.6",3,"A",null,null,"Adquisición de activos financieros",null,null,null,null,null,null,null,null,null,null,null,{"$f":"C709&B709","v":"A3"}]
["2.3.6.01",4,"A",null,null,null,"Concesión de préstamos",null,null,null,null,null,null,null,null,null,null,{"$f":"C710&B710","v":"A4"}]
["2.3.6.01.02",5,"C",null,null,null,null,"A establecimientos públicos",null,null,null,null,null,null,null,null,null,{"$f":"C711&B711","v":"C5"}]
["2.3.6.01.03",5,"C",null,null,null,null,"A otras entidades del gobierno general",null,null,null,null,null,null,null,null,null,{"$f":"C712&B712","v":"C5"}]
["2.3.6.01.04",5,"A",null,null,null,null,"A personas naturales",null,null,null,null,null,null,null,null,null,{"$f":"C713&B713","v":"A5"}]
["2.3.6.01.04.003",6,"C",null,null,null,null,null,"Fondo de préstamos",null,null,null,null,null,null,null,null,{"$f":"C714&B714","v":"C6"}]
["2.3.6.01.04.004",6,"C",null,null,null,null,null,"Préstamos por calamidad doméstica ",null,null,null,null,null,null,null,null,{"$f":"C715&B715","v":"C6"}]
["2.3.6.01.04.009",6,"C",null,null,null,null,null,"Préstamos educativos",null,null,null,null,null,null,null,null,{"$f":"C716&B716","v":"C6"}]
["2.3.6.02",4,"A",null,null,null,"Adquisición de acciones",null,null,null,null,null,null,null,null,null,null,{"$f":"C717&B717","v":"A4"}]
["2.3.6.02.01",5,"C",null,null,null,null,"De organizaciones internacionales",null,null,null,null,null,null,null,null,null,{"$f":"C718&B718","v":"C5"}]
["2.3.6.02.02",5,"C",null,null,null,null,"De empresas públicas financieras",null,null,null,null,null,null,null,null,null,{"$f":"C719&B719","v":"C5"}]
["2.3.6.02.03",5,"C",null,null,null,null,"De acciones de empresas públicas no financieras",null,null,null,null,null,null,null,null,null,{"$f":"C720&B720","v":"C5"}]
["2.3.6.02.04",5,"C",null,null,null,null,"De acciones de empresas privadas financieras",null,null,null,null,null,null,null,null,null,{"$f":"C721&B721","v":"C5"}]
["2.3.6.02.05",5,"C",null,null,null,null,"De empresas privadas no financieras",null,null,null,null,null,null,null,null,null,{"$f":"C722&B722","v":"C5"}]
["2.3.6.03",4,"A",null,null,null,"Adquisición de otras participaciones de capital",null,null,null,null,null,null,null,null,null,null,{"$f":"C723&B723","v":"A4"}]
["2.3.6.03.02",5,"C",null,null,null,null,"En empresas públicas financieras",null,null,null,null,null,null,null,null,null,{"$f":"C724&B724","v":"C5"}]
["2.3.6.03.03",5,"A",null,null,null,null,"En empresas públicas no financieras",null,null,null,null,null,null,null,null,null,{"$f":"C725&B725","v":"A5"}]
["2.3.6.03.03.001",6,"C",null,null,null,null,null,"Capitalización para el fortalecimiento de los canales públicos de televisión",null,null,null,null,null,null,null,null,{"$f":"C726&B726","v":"C6"}]
["2.3.7",3,"A",null,null,"Disminución de pasivos",null,null,null,null,null,null,null,null,null,null,null,{"$f":"C727&B727","v":"A3"}]
["2.3.7.05",4,"A",null,null,null,"Programas de saneamiento fiscal y financiero",null,null,null,null,null,null,null,null,null,null,{"$f":"C728&B728","v":"A4"}]
["2.3.7.05.01",5,"C",null,null,null,null,"Programas de saneamiento fiscal y financiero Empresas Sociales del Estado (ESE)",null,null,null,null,null,null,null,null,null,{"$f":"C729&B729","v":"C5"}]
["2.3.7.05.02",5,"C",null,null,null,null,"Pago de indemnizaciones originadas en programas de saneamiento fiscal y financiero",null,null,null,null,null,null,null,null,null,{"$f":"C730&B730","v":"C5"}]
["2.3.7.05.03",5,"C",null,null,null,null,"Pago de déficit fiscal, de pasivo laboral y prestacional en programas de saneamiento fiscal y financiero",null,null,null,null,null,null,null,null,null,{"$f":"C731&B731","v":"C5"}]
["2.3.7.05.04",5,"C",null,null,null,null,"Causado con anterioridad al 31 de diciembre de 2000",null,null,null,null,null,null,null,null,null,{"$f":"C732&B732","v":"C5"}]
["2.3.7.05.05",5,"C",null,null,null,null,"Causado después del 31 de diciembre de 2000",null,null,null,null,null,null,null,null,null,{"$f":"C733&B733","v":"C5"}]
["2.3.8",3,"A",null,null,"Gastos por tributos, multas, sanciones e intereses de mora",null,null,null,null,null,null,null,null,null,null,null,{"$f":"C734&B734","v":"A3"}]
["2.3.8.01",4,"A",null,null,null,"Impuestos",null,null,null,null,null,null,null,null,null,null,{"$f":"C735&B735","v":"A4"}]
["2.3.8.01.01",5,"C",null,null,null,null,"Impuesto sobre la renta y complementarios",null,null,null,null,null,null,null,null,null,{"$f":"C736&B736","v":"C5"}]
["2.3.8.01.02",5,"C",null,null,null,null,"Impuesto sobre la renta para la equidad CREE",null,null,null,null,null,null,null,null,null,{"$f":"C737&B737","v":"C5"}]
["2.3.8.01.03",5,"C",null,null,null,null,"Sobretasa CREE",null,null,null,null,null,null,null,null,null,{"$f":"C738&B738","v":"C5"}]
["2.3.8.01.04",5,"C",null,null,null,null,"Impuesto para preservar la seguridad democrática",null,null,null,null,null,null,null,null,null,{"$f":"C739&B739","v":"C5"}]
["2.3.8.01.05",5,"C",null,null,null,null,"Impuesto al patrimonio",null,null,null,null,null,null,null,null,null,{"$f":"C740&B740","v":"C5"}]
["2.3.8.01.06",5,"C",null,null,null,null,"Impuesto al patrimonio (Decreto legislativo 4825/2010)",null,null,null,null,null,null,null,null,null,{"$f":"C741&B741","v":"C5"}]
["2.3.8.01.07",5,"C",null,null,null,null,"Sobretasa impuesto al patrimonio (Decreto legislativo 4825/2010)",null,null,null,null,null,null,null,null,null,{"$f":"C742&B742","v":"C5"}]
["2.3.8.01.08",5,"C",null,null,null,null,"Impuesto a la riqueza",null,null,null,null,null,null,null,null,null,{"$f":"C743&B743","v":"C5"}]
["2.3.8.01.09",5,"C",null,null,null,null,"Impuesto nacional al consumo",null,null,null,null,null,null,null,null,null,{"$f":"C744&B744","v":"C5"}]
["2.3.8.01.10",5,"C",null,null,null,null,"Impuesto de remate y adjudicaciones",null,null,null,null,null,null,null,null,null,{"$f":"C745&B745","v":"C5"}]
["2.3.8.01.51",5,"C",null,null,null,null,"Impuesto sobre vehículos automotores",null,null,null,null,null,null,null,null,null,{"$f":"C746&B746","v":"C5"}]
["2.3.8.01.52",5,"C",null,null,null,null,"Impuesto predial unificado",null,null,null,null,null,null,null,null,null,{"$f":"C747&B747","v":"C5"}]
["2.3.8.01.53",5,"C",null,null,null,null,"Impuesto de registro",null,null,null,null,null,null,null,null,null,{"$f":"C748&B748","v":"C5"}]
["2.3.8.01.54",5,"C",null,null,null,null,"Impuesto de industria y comercio",null,null,null,null,null,null,null,null,null,{"$f":"C749&B749","v":"C5"}]
["2.3.8.01.55",5,"C",null,null,null,null,"Impuesto sobre delineación urbana",null,null,null,null,null,null,null,null,null,{"$f":"C750&B750","v":"C5"}]
["2.3.8.01.56",5,"C",null,null,null,null,"Impuesto de alumbrado público",null,null,null,null,null,null,null,null,null,{"$f":"C751&B751","v":"C5"}]
["2.3.8.02",4,"C",null,null,null,"Estampillas",null,null,null,null,null,null,null,null,null,null,{"$f":"C752&B752","v":"C4"}]
["2.3.8.03",4,"A",null,null,null,"Tasas y derechos administrativos",null,null,null,null,null,null,null,null,null,null,{"$f":"C753&B753","v":"A4"}]
["2.3.8.03.03",5,"C",null,null,null,null,"Certificados catastrales",null,null,null,null,null,null,null,null,null,{"$f":"C754&B754","v":"C5"}]
["2.3.8.04",4,"A",null,null,null,"Contribuciones",null,null,null,null,null,null,null,null,null,null,{"$f":"C755&B755","v":"A4"}]
["2.3.8.04.01",5,"C",null,null,null,null,"Cuota de fiscalización y auditaje",null,null,null,null,null,null,null,null,null,{"$f":"C756&B756","v":"C5"}]
["2.3.8.04.02",5,"C",null,null,null,null,"Contribución - Superintendencia Financiera de Colombia",null,null,null,null,null,null,null,null,null,{"$f":"C757&B757","v":"C5"}]
["2.3.8.04.03",5,"C",null,null,null,null,"Contribución de valorización",null,null,null,null,null,null,null,null,null,{"$f":"C758&B758","v":"C5"}]
["2.3.8.04.04",5,"C",null,null,null,null,"Contribución sector eléctrico",null,null,null,null,null,null,null,null,null,{"$f":"C759&B759","v":"C5"}]
["2.3.8.05",4,"A",null,null,null,"Multas, sanciones e intereses de mora",null,null,null,null,null,null,null,null,null,null,{"$f":"C760&B760","v":"A4"}]
["2.3.8.05.01",5,"A",null,null,null,null,"Multas y sanciones",null,null,null,null,null,null,null,null,null,{"$f":"C761&B761","v":"A5"}]
["2.3.8.05.01.001",6,"C",null,null,null,null,null,"Multas Superintendencias",null,null,null,null,null,null,null,null,{"$f":"C762&B762","v":"C6"}]
["2.3.8.05.02",5,"C",null,null,null,null,"Intereses de mora",null,null,null,null,null,null,null,null,null,{"$f":"C763&B763","v":"C5"}]
["X","X","X","X","X","X","X","X","X","X","X","X","X","X","X","X","X",null,"X","X","X","X","X","X","X"]